Workbook

Sheet Cover

Sheet Home
D4: ESG Databook 2025
B8: Home
B31: How to use this Databook
B47: About Vale

Sheet References
G4: ESG Databook 2025
B8: References
B10: Documents | C10: 2021 | D10: 2022 | E10: 2023 | F10: 2024 | G10: 2025
B11: Integrated Report | C11: Download | D11: Download | E11: Download | F11: Download | G11: -
B12: Annual Report | C12: - | D12: - | E12: - | F12: - | G12: Download
B13: Form 20F | C13: Download | D13: Download | E13: Download | F13: Download | G13: Download
B14: Tax Contribution Report | C14: Download | D14: Download | E14: Download | F14: Download | G14: Download
B15: Reference Form | C15: Download | D15: Download | E15: Download | F15: Download | G15: Download
B16: Ethics and Compliance Program Report | C16: - | D16: Download | E16: Download | F16: Download | G16: Download
B17: Financial statements | C17: Download | D17: Download | E17: Download | F17: Download | G17: Download
B19: ESG Portal

Sheet Content
C4: ESG Databook 2025
B8: Content
B10: Advances in Commitments | C10: Advances
B12: Material Topics | C12: Material Topics
B14: Economic | C14: Economic
B15: Economic Performance | C15: Economic Performance
B16: Governance and Compliance | C16: Governance and Compliance
B18: Environmental | C18: Environmental
B19: Energy and Climate | C19: Energy and Climate
B20: Biodiversity | C20: Biodiversity
B21: Environmental Management | C21: Environmental Management
B22: Dams | C22: Dams
B24: Social | C24: Social
B25: Safe Operations | C25: Safe Operations
B26: People | C26: People
B27: Communities and Territories | C27: Communities and Territories
B29: Frameworks | C29: Frameworks
B30: Principles of International Council on Mining and Metals (ICMM) | C30: ICMM Principles
B31: ICMM Performance Expectations | C31: ICMM Report
B32: ICMM Subject Matters | C32: Subject Matters | ICMM
B33: ICMM SERF (Social and Economic Reporting Framework) | C33: ICMM SERF
B34: Taskforce on Nature-related Financial Disclosures - TNFD | C34: TNFD
B35: Responsible Sourcing | C35: Responsible Sourcing
B36: Swiss Code | C36: Swiss Code
B38: Premises base | C38: Premises base

Sheet Advances
J4: ESG Databook 2025 | L4: ESG Databook 2023
B8: Advances in Public Commitments
B10: Goals for 2030
B12: 2030 Commitment | D12: Baseline | F12: Target | H12: Status until 2025 (cumulative result)
B13: Climate Change | D13: 2017 Baseline: 10.5 MtCO2e | F13: Reduce Scope 1 and 2 absolute greenhouse gas (GHG) emissions by 33% (based on 2017) by 2030. Achieve net zero scope 1 and 2 emissions by 2050. | H13: Scope 1 and 2 emissions reduced by 25.3%1
D14: 2018 Baseline: 530.5 MtCO2e2 | F14: Reduce scope 3 net emissions by 15% by 2035. | H14: Scope 3 emissions reduced by 8.2%
B15: Energy | D15: 2017 Baseline:
D16: Brazil: consumption of renewables in Brazil was 83%. | F16: Brazil: 100% renewable electricity consumption by 2025. | H16: 100%3 of the purchased electricity consumption certified by renewable declarations.
D17: Global: the consumption of renewables was 79%. | F17: Global: 100% renewable electricity consumption by 2030. | H17: 87,2 % consumption.4
D18: Global: the energy efficiency was 0.294 GJ/tFeEq 5 | F18: Improve the global energy efficiency indicator by 5% by 2030. | H18: In 2025, energy efficiency declined by 1.7% relative to the base year.
B19: Forests | D19: 2019 Baseline | F19: Recover and protect over 500,000 ha of forest areas beyond company boundaries by 2030. | H19: 6,920.57 ha restored through impact businesses and forest funds To date: 225,457 ha of habitat protected and restored since 2020, 25,364 ha restored and 200,093 ha protected.
B20: Social ambition | F20: Attain a top-three position in the leading external ESG assessments. | H20: Evolution in the indices and ratings of the main external assessments (MSCI, Sustainalytics, and DJSI). See the result in the Annual Report, section Indices and Ratings.
D21: 2021 Baseline | F21: Help 500,000 people leave extreme poverty.7 | H21: In 2025, around 60,000 people were involved in initiatives across six Brazilian states - 85% of whom were in Pará and Maranhão.
D22: 2021 Baseline | F22: Support all indigenous communities neighboring Vale’s operations in drawing up and implementing their plans to uphold the rights set out in the United Nations Declaration on the Rights of Indigenous Peoples (UNDRIP). | H22: In 2025, the Ka’apor People, from the Alto Turiaçu Indigenous Land (Maranhão), developed their Life Plan, and the Tupiniquim People, from the Comboios Indigenous Land (Espírito Santo), prepared their Consultation Protocol. That same year, a training course was also launched for the Indigenous members of the Guajajara peoples, from Maranhão, who serve as Forest Guardians and Warriors in the Rio Pindaré and Caru Indigenous Lands. Vale also carried out engagement with the Awá people of the Awá, Caru, and Alto Turiaçu Indigenous Lands (Maranhão), who are of recent contact, with methodological guidelines developed by specialists. Thus, a total of 5 out of Vale’s 11 Indigenous communities of engagement in the country (Kayapó/PA, the Guajajara from the Rio Pindaré and Caru Indigenous Lands, the Ka’apor, and the Tupiniquim from the Comboios Indigenous Land) are engaged in defining their plans and implementing the company’s commitment to the rights described in the UNDRIP.
B23: Atmospheric emissions | D23: 2018 Baseline:
D24: Particulate matter: 4.1 kt | F24: Reduce particulate matter emissions by 16% | H24: Particulate Matter: 2.8 kt Compared to the base year of 2018, there was a 30% reduction in the amount of particulate matter emitted in 2025.8
D25: Sulfur oxides: 118.1 kt | F25: Reduce sulfur oxide emissions by 16% | H25: Sulphur oxides: 34.5 kt Compared to the 2018 figures, there was a 68% in Sulphur oxide emissions in 2025.8
D26: Nitrogen oxides: 76.7 kt | F26: Reduce nitrogen oxide emis sions by 10% | H26: Nitrogen oxides: 52.4 kt Considering the base year of 2018, there was a significant 32% reduction in the emission of nitrogen oxides in 2025.8
B27: Water | D27: 2017 Baseline | F27: Reduce the cumulative average specific use of new water by 27% by 2030 (compared to the 2017 baseline), especially in regions with the greatest water stress | H27: In 2025, we achieved a 32% reduction in the specific use of new water in our operations.9
B28: Diversity, equity and inclusion (DEI) | D28: Baseline 2019: Women in the workforce: 13% | F28: Increase the presence of women in the workforce to 26% by 2025. | H28: 28.2% of the workforce is composed of women
D29: Baseline 2019: Women in senior leadership: 12% | F29: Increase the presence of women in senior leadership (executive manager positions and above) to 26% by 2025.10 | H29: 23.1% of senior leadership positions are held by women
D30: Baseline 2021: Black leadership | F30: Reach 40% of the leadership in Brazil made up of black people by 2026. | H30: 45.1% of leadership positions in Brazil are held by Black employees11
B31: Health and safety | D31: Baseline 2023: 21 N1 and N2 registered | F31: Reduction of N1+N2 compared to the previous year's closing results. | H31: 14 registrations in 2025, a 22% decrease compared to 2024 results.
D32: - | F32: Zero fatalities | H32: 3 fatalities occurred in our operations. Vale remains committed to achieving zero fatalities.
D33: - | F33: Eliminate all risk situations classified as “very high” for health, safety, the environment and communities | H33: During 2025, we recorded a 37.5% reduction in process safety risk scenarios classified as Very High.12
D34: 2019 baseline: 23,000 exposures recorded | F34: Reduce the number of exposures in the workplace to agents harmful to health by 50% by 2025 | H34: We reached 8.5 thousand exposures, representing a 63% decrease compared to the baseline.
B35: Dams | D35: - | F35: No tailings dam in critical safety condition (emergency level 3) by 2025.13 | H35: No dam is currently in a critical safety condition (emergency level 3). The Forquilha III dam had its emergency level reduced from 3 to 2 in August 2025.
D36: - | F36: Implementation of Global Industry Standard on Tailings Management (GISTM) in all tailings storage facilities (TSFs) by August 2025 | H36: All TSFs had the GISTM implemented by August 2025.
B37: Notas: | D37: - | F37: Decharacterize all upstream dams in Brazil by 203514 | H37: 63% of the structures decharacterized.
B38: 1 This reduction is primarily due to lower production compared to 2017 and improved operational discipline. The emissions curve is expected to rise as production grows in the coming years. However, this will be offset by technological initiatives to be implemented by 2030. 2 Scope 3 emissions were recalculated, starting from the 2018 base year, to reflect new investments incorporated into Category 15 in 2024. Additionally, emissions related to leased vessels under our operational control—which in previous years were accounted for in Scope 3 (Categories 4 and 9)—have been transferred to Scope 1. 3 Purchased electricity consumption is verified by renewable declaration certificates. This target was achieved in 2023, two years ahead of schedule. 4 The percentage of renewable electricity varies year to year based on consumption, the volume of certificates obtained and the electricity generation mix of each country where we operate. 5 The production volumes of Vale’s main products, such as pellets, nickel and copper, are converted into tonnes of iron ore equivalent. 6 The indicator measures total energy consumption per unit of production and accounts for the effects of divestments since the 2017 base year. In 2025, the indicator was 1.7% above the base year, mainly reflecting changes in the production profile and the effects of operational transitions and expansions. These factors were partially offset by technological advances, process standardization and the adoption of digital solutions, which improved operational performance. 7 The international extreme poverty line is defined as USD 2.15 per person per day, according to the World Bank, using 2017 prices. This means that anyone living on less than USD 2.15 per day is in a situation of extreme poverty. 8 Although the 2025 results already indicate achievement of the target set for 2030, emissions are projected to increase in the coming years due to higher production levels. Therefore, continued implementation of reduction initiatives is necessary. 9 Over the coming years, the specific use of freshwater will continue to be monitored in relation to the expected increase in production, so as to ensure that the established target is met. 10 Includes positions at director level and above. 11 The 45.1% figure refers to Vale’s total leadership positions, in accordance with the current job architecture. For the purpose of internal monitoring of the racial diversity target, Vale adopts a methodological approach that excludes the effects of nominal adjustments resulting from job reviews (Career Y) and considers exclusively the Brazil scope of the Iron Ore Solutions business, resulting in a rate of 39.8%. 12 It is important to note that risk management is dynamic, impacted not only by risk reduction but also by the monitoring of protective barriers and the identification of risks arising from new operations and processes implemented in operational areas. Of particular note is the maturity achieved in the management and treatment of “Very High” risks, supported by the diligent establishment and monitoring of treatment and contingency strategies for these risks. 13 Emergency level is a category established by Brazilian legislation (ANM Resolution 95 of 2022) to classify potential risks that could compromise dam safety. 14 Decharacterization is the process of reshaping the terrain of upstream tailings dams and partially or totally removing tailings from the reservoir, functionally reintegrating the structure into the environment so that it no longer serves its primary purpose of tailings containment.

Sheet Material Topics
D4: ESG Databook 2025
B8: Material Topics
B10: The SASB metrics will be included in this Databook during the same publication period as the 2025 Sustainability-Related Financial Information Report.
B12: Safe Operations and Dams
B13: Circular Mining
B14: Communities and Territories
B15: Energy and Climate Change
B16: Biodiversity and Ecosystems
B17: Environmental Management (water, effluents, air emissions, and pollution)
B18: Human Rights
B19: Governance and Integrity
B20: People
B23: Safe Operations and Dams
B24: Management of material topics – GRI 3-3 | 14.6.1 | 14.15.1 |14.16.1
B25: Impacts (main risks and opportunities) Main risks: - Accidents resulting in fatalities and serious injuries; - Risks related to employee health; - Process accidents or catastrophic events (process safety and operational risk management) in activities including open-pit mining, underground mining, and metal refining and processing; - Failures in dams and tailings structures; - Process safety incidents involving leaks or contamination, with the potential to generate severe impacts on people, communities, the environment, operational continuity and the company’s reputation; - Evacuation of areas. Main opportunities: - Strengthening of safety culture; - Reduction of incidents and shutdowns; - Accelerate the use of technology to remove people from risk; - Increased trust from communities, regulators, investors and customers; - Position Vale as an industry leader in dam management and operational safety; - Technologies that reduce dependence on dams. Negative impacts Vale recognizes that, as a dam operator, it is associated with potential negative impacts related to the safety of its structures. For this reason, it has continuously worked to improve its management and risk prevention practices, implementing rigorous standards and innovative measures that reduce the likelihood of incidents while striving for increasingly safe and transparent operations. The company maintains channels for ongoing dialogue with employees and contractors regarding safe operations and dams, using different forums for listening and interaction: • Safety dialogues, Internal Accident Prevention Committees, and health and safety committees; • Internal campaigns and awareness programs regarding risks; • Regular meetings and emergency drills with potentially affected communities; • Distribution of informational materials on risks and response procedures. Policies and commitments Management of this topic is guided by Vale’s Health, Safety and Environment Policy and its Code of Conduct, which are applicable to employees and contractors, as well as by technical standards and specific internal standards for tailings containment structures. The company applies requirements to all its units based on internationally recognized practices developed by organizations such as the Federal Emergency Management Agency (FEMA) and the International Council on Mining and Metals (ICMM), using tools such as the Incident Command System (ICS) and the Awareness and Preparedness for Emergencies at Local Level (APELL program developed by the United Nations Environment Program (UNEP). With regard to dam management, Vale has adopted the Global Industry Standard on Tailings Management (GISTM). These international standards have strengthened the company’s governance with the aim of reducing risks and achieving greater operational safety throughout the lifecycle of structures, including planning, design, operation and post-closure. The company has made public commitments that express its ambition for safe and responsible operations: - No upstream tailings dams in critical safety condition (emergency level 3); - Implementation of the Global Industry Standard on Tailings Management (GISTM) at all tailings storage facilities; - Decharacterization of all upstream dams in Brazil by 2035; - At least a 10% reduction in N1+N2 occurrences compared to the previous year-end result; - Zero fatalities; - Elimination of all hazards classified as “very high” for health, safety, the environment and communities; - A 50% reduction in exposure to harmful agents in the workplace. Measures taken to manage the topic To manage this topic, Vale operates the Vale Production System (VPS) for occupational health and safety management, based on hazard identification, risk assessment and control, integrated into operational planning. Dam and tailings structure management is supported by standardized processes, specialized teams and intensive use of monitoring and technology. Measures include: • Continuous dam monitoring through instrumentation, monitoring centers and independent technical inspections; • Maintenance of Mining Dam Emergency Action Plans, including identified self-rescue zones, evacuation routes and alert systems; • Emergency drills conducted jointly with communities and local civil defense authorities; • Ongoing training programs for employees and contractors, focused on safe practices and emergency response; • Tools and channels for reporting unsafe conditions and conduct, with structured handling of each record. Effectiveness monitoring The effectiveness of management is monitored through a set of indicators and governance mechanisms that enable the evaluation of results and continuous improvement. These elements are systematically monitored and reported to the Company’s decision-making bodies: • Accident frequency and severity rates, number of fatalities and near misses; • Dams' risk classification, stability and compliance with internal and external standards; • Progress of upstream dam decharacterization projects; • Results of internal and external audits on health, safety and tailings management; • Periodic presentation of safety results to specialized committees and the Board of Directors.
B29: GRI 306-3 | 14.15.2 | C29: Significant Spills | D29: Environmental Management
B30: GRI 403-1 | 14.16.2 | C30: Occupational health and safety management system | D30: Safe Operations
B31: GRI 403-2 | 14.16.3 | C31: Hazard identification, risk assessment and incident investigation | D31: Safe Operations
B32: GRI 403-3 | 14.16.4 | C32: Occupational health services | D32: Safe Operations
B33: GRI 403-4 | 14.16.5 | C33: Worker participation, consultation and communication on occupational health and safety | D33: Safe Operations
B34: GRI 403-5 | 14.16.6 | C34: Worker training on occupational health and safety | D34: Safe Operations
B35: GRI 403-6 | 14.16.7 | C35: Promotion of worker health | D35: Safe Operations
B36: GRI 403-7 | 14.16.8 | C36: Prevention and mitigation of occupational health and safety impacts directly linked by business relationships | D36: Safe Operations
B37: GRI 403-8 | 14.16.9 | C37: Workers covered by an occupational health and safety management system | D37: Safe Operations
B38: GRI 403-9 | 14.16.10 | C38: Work-related injuries | D38: Safe Operations
B39: GRI 403-10 | 14.16.11 | C39: Work-related ill health | D39: Safe Operations
B40: SASB EM-MM-150a.4 | C40: Total weight of non-mineral waste generated
B41: SASB EM-MM-150a.5 | C41: Total weight of tailings produced
B42: SASB EM-MM-150a.6 | C42: Total weight of waste rock generated
B43: SASB EM-MM-150a.7 | C43: Total weight of hazardous waste generated
B44: SASB EM-MM-150a.8 | C44: Total weight of recycled hazardous waste
B45: SASB EM-MM-150a.9 | C45: Number of significant incidents associated with hazardous materials and waste management
B46: SASB EM-MM-150a.10 | C46: Description of waste and hazardous materials management policies and procedures for active and inactive operations
B47: SASB EM-MM-320a.1 | C47: (1) Mine Safety and Health Administration (MSHA) total incidence rate, (2) fatality rate, (3) near miss frequency rate (NMFR), and (4) average hours of health, safety, and emergency response training emergencies for (a) full-time employers and (b) contract employees.
B48: SASB EM-MM-540a.1 | C48: Tailings storage facility inventory table: (1) facility name, (2) location, (3) ownership status, (4) operational status, (5) construction method, (6) maximum allowable storage capacity , (7) current amount of tailings stored, (8) consequence ranking, (9) date of most recent independent technical review, (10) material findings, (11) mitigation measures, (12) site-specific EPRP
B49: SASB EM-MM-540a.2 | C49: Summary of tailings management systems and governance structure used to monitor and maintain the stability of tailings storage facilities
B50: SASB EM-MM-540a.3 | C50: Approach to developing Emergency Preparedness and Response Plans (EPRPs) for tailings storage facilities
B53: Circular Mining
B54: Management of material topics – GRI 3-3
B55: Impacts (main risks and opportunities) Main risks: - High generation of tailings and waste rock; - Increased demand for areas to dispose of mineral waste; - Environmental and safety risks associated with dams and piles. Main opportunities: - Development of coproducts from tailings; - Reduction in volumes sent to disposal structures; - Contribution to a more circular mineral economy. Negative impacts Circular mining, by promoting the reuse of tailings and waste rock and the generation of coproducts, seeks to reduce disposal in dams and piles and increase efficiency in the use of mineral resources. Nevertheless, such initiatives may generate current and potential negative impacts for Vale and its stakeholders, particularly when they involve new technological processes, still-developing markets and greater dispersion of materials across regions. Below are the main negative impacts associated with this topic: • Increased exposure to accidents and failures in structures or applications that use tailings and waste rock, if they are not properly designed, tested and monitored; • Consolidation of diffuse environmental liabilities, making it more difficult to trace the origin of impacts and assign responsibility; • Possible indirect impacts on traditional activities (agriculture, fishing and resource extraction) if there are changes in environmental quality or the landscape without adequate social participation; • Technical performance issues with coproducts, leading to rework, additional costs and contractual disputes when specifications are not fully met; • Dependence on niche markets for certain coproducts, with a risk of investment loss if demand declines; • Risk of differing interpretations regarding the legal classification of reused materials (product vs. waste), with possible challenges from environmental authorities and the need to revise permits; • Risk of greenwashing perceptions if circular mining is communicated solely in terms of benefits, without transparency regarding risks, limitations and controls. Policies and commitments Vale's circular mining activities are underpinned by internal guidelines on operational efficiency and optimized use of mineral resources, encouraging maximum use of extracted materials and waste reduction. The topic is integrated into the company’s broader commitments related to optimizing asset life and seeking solutions that minimize the need for new disposal structures. Measures taken to manage the topic To manage this topic, Vale conducts research and development projects focused on reusing tailings and waste rock and generating coproducts that add value to production chains: • Incorporation of circular mining criteria into technical and economic feasibility studies; • Consideration of reuse alternatives in mine planning and in defining process routes; • Partnerships with customers, suppliers and research institutions to test and scale up safe applications that meet regulatory and market requirements. Effectiveness monitoring The effectiveness of management is monitored through indicators that make it possible to compare the progress of material reuse and traditional disposal, as well as evaluate the economic and environmental benefits generated: • Volumes of tailings reused in relation to volumes disposed of; • Number, maturity stage and implementation of coproduct projects; • Periodic assessments of economic and environmental gains and risk reduction associated with reuse; • Integration of results into circular mining investment prioritization decisions.
B64: Communities and Territories
B65: Management of material topics – GRI 3-3 | 14.9.1 | 14.10.1 | 14.11.1 | 14.12.1 |14.13.1
B66: Impacts (main risks and opportunities) Main risks: - Impacts on livelihoods, income and employment; - Social and environmental impacts resulting from operations; - Risks of safety incidents in communities; - Land use conflicts; - Negative effects on Indigenous peoples, traditional communities, and artisanal and small-scale mining; - Risks of local economic dependence and loss of social license to operate. Main opportunities: - Generation of jobs, income and local economic activity; - Strengthening of productive capacities; - Development of shared regional development plans; - Consolidation of trust-based relationships with communities and authorities. Negative impacts Vale’s activities in communities and regions take place in settings often marked by social vulnerabilities, land use disputes and strong economic dependence on mining activities. In these situations, even when structured through engagement and local development programs, operations may generate current and potential negative impacts on the livelihoods, income, social organization and future expectations of surrounding populations, including Indigenous peoples, traditional communities and groups linked to artisanal and small-scale mining. These risks manifest across different dimensions—social, economic, cultural, regional and human rights. The main negative impacts associated with the topic are outlined below: • Changes in local labor market dynamics, with the possible replacement of traditional activities by temporary or more unstable jobs in the mining value chain; • Changes to mobility routes, access to public services and areas used by communities (rivers, roads, crop gathering areas and traditional lands); • Weakening of cultural practices, traditional knowledge and forms of community organization if adequate protection and effective participation of these groups in decisions affecting their lands are lacking; • Perceived risk or insecurity due to proximity to operational structures, heavy vehicle traffic and changes in urban and rural dynamics; • Additional pressure on urban infrastructure and public services (healthcare, education, sanitation, housing, mobility) when operational expansion attracts new residents to areas of influence; • Risk of ongoing challenges to the company’s presence in the region, leading to conflicts, political pressure and weakening of social license to operate, with impacts on project continuity and relationships with other stakeholders. Policies and commitments Vale's activities in communities and regions are guided by corporate policies and guidelines that establish principles and procedures for engagement with communities, Indigenous peoples and traditional communities. These instruments are complemented by public commitments that connect the company’s regional activities to human rights and development agendas: • Support 500,000 people in exiting extreme poverty; • Support all Indigenous communities neighboring Vale’s operations in the development and implementation of their plans in pursuit of the rights set out in the United Nations Declaration on the Rights of Indigenous Peoples (UNDRIP). Measures taken to manage the topic Management of this topic combines impact assessment tools, local development programs and specific mechanisms to address sensitive issues such as involuntary resettlement, land access, and artisanal and small-scale mining: • Execution of social impact assessments and development of impact management plans throughout the life of each mine; • Implementation of private social investment programs and strengthening of local value chains; • Implementation of structured involuntary resettlement processes and regularization of land access, together with social, economic and legal support; • Development of specific actions to mitigate impacts on artisanal and small-scale mining, promoting sustainable income-generating alternatives. Effectiveness monitoring The effectiveness of actions aimed at communities and regions is monitored through socioeconomic indicators, engagement data and stakeholder perceptions: • Economic value generated and distributed, social investments and participation of local suppliers and employment; • Number of complaints reported by communities, their nature and resolution time; • Results of social impact assessments and community perception surveys regarding the company’s activities in different regions.
B71: GRI 201-1 | 14.9.2 | C71: Direct economic value generated and distributed | D71: Economic Performance
B72: GRI 203-1 | 14.9.3 | C72: Infrastructure investments and services supported | D72: Communities and Territories
B73: GRI 203-2 | 14.9.4 | C73: Significant Indirect Economic Impacts | D73: Communities and Territories
B74: GRI 204-1 | 14.9.5 | C74: Proportion of spending on local suppliers | D74: Economic Performance
B75: GRI 411-1 | 14.11.2 | C75: Incidents of violation involving rights of indigenous peoples | D75: Communities and Territories
B76: GRI 413-1 | 14.10.2 | C76: Operations with local community engagement, impact assessments, and development programs | D76: Communities and Territories
B77: GRI 413-2 | 14.10.3 | C77: Operations with significant actual and potential negative impacts on local communities | D77: Communities and Territories
B78: GRI 14.11.3 | C78: List the locations of operations and proven reserves where Indigenous Peoples are present and are or may be affected by the activities of the organization. | D78: Communities and Territories
B79: GRI 14.11.4 | C79: Report whether the organization has been involved in a process of seeking free, prior, and informed consent (FPIC) from Indigenous Peoples for any of the organization’s activities. | D79: Communities and Territories
B80: GRI 14.12.2 | C80: List the mine sites where involuntary resettlement is planned, ongoing, or has taken place. | D80: Communities and Territories
B81: GRI 14.12.3 | C81: List the locations of operations where conflicts or violations of land and resource rights (including customary, collective, and informal tenure rights) occurred, and describe the incidents and the stakeholders whose rights are or could be affected. | D81: Communities and Territories
B82: GRI 14.13.2 | C82: List the mine sites where ASM occurs on or in close proximity to the site. | D82: Communities and Territories
B83: GRI 14.13.3 | C83: Report the total number and the nature of incidents involving ASM (Artisanal and Small-Scale Mining) and the actions taken to resolve them. | D83: Communities and Territories
B84: SASB EM-MM-210a.1 | C84: Percentage of (1) proven reserves and (2) probable reserves in or near conflict areas
B85: SASB EM-MM-210a.2 | C85: Percentage of (1) proven reserves and (2) probable reserves on or near indigenous lands
B86: SASB EM-MM-210a.3 | C86: Discussion of engagement processes and due diligence practices with respect to human rights, indigenous rights and operation in conflict areas
B87: SASB EM-MM-210b.1 | C87: Discussion of the process for managing risks and opportunities associated with community rights and interests
B88: SASB EM-MM-210b.2 | C88: Number and duration of non-technical delays
B91: Energy and Climate Change
B92: Management of material topics – GRI 3-3 | 14.1.1 | 14.2.1
B93: Impacts (main risks and opportunities) Main risks: - Political, legal and market: exposure to regulations related to GHG emissions, potentially leading to reduced market share and increased operating costs (transition risk); - Political and legal: increased freight costs due to carbon taxation imposed by the International Maritime Organization (transition risk); - Reputational: failure to meet the 2030 carbon target for Scope 1 and 2 emissions reductions (market-based), and increased scrutiny of voluntary commitments and GHG reductions, including but not limited to Scope 3 emissions reductions (transition risk); - Intensification of extreme weather conditions affecting operational areas, the value chain and communities (physical risk). Main opportunities: - Increased demand for high-quality, higher-efficiency products and agglomerates with the potential to reduce GHG emissions; - Growing demand for nickel, copper and other metals for the energy transition. Negative impacts The climate change and decarbonization topic involves both the impact of Vale’s value chain emissions (Scopes 1, 2 and 3) on global warming and the effects of extreme weather events on operations, logistics and communities. Even with emissions reduction targets and projects in place, activities remain associated with current and potential negative impacts for different stakeholders, in the context of transition to a low-carbon economy. These risks combine physical, regulatory, economic, social and reputational dimensions, requiring integrated management, engagement with customers, suppliers, communities and investors, and transparency regarding the transition pathway. The main negative impacts associated with the climate change and decarbonization topic are outlined below: • Contribution of greenhouse gas emissions from operations (Scopes 1 and 2) and from the use of products by the steelmaking value chain and other customers (Scope 3) to global warming; • Exposure to extreme weather events (heavy rainfall, prolonged droughts and heat waves) that may affect dams, operational structures, logistics, supply chains and surrounding communities; • Asset devaluation or shortened operational lifespan for operations that fail to adapt to the requirements of a low-carbon economy; • Dependence on carbon-intensive sectors, particularly steelmaking, with increasing pressure for lower-emission products and for demonstrated climate performance; • Potential negative impacts on suppliers and partners that are unable to meet decarbonization requirements imposed by customers and markets; • Exposure to carbon pricing schemes, climate taxation, reporting requirements and green taxonomy criteria, with the risk of additional costs, investment constraints and restricted market access; • Potential penalties, litigation or stakeholder challenges if climate targets and commitments are not met or adequately demonstrated; • Allegations of greenwashing in cases of misalignment between communicated climate ambitions and actual results delivered, impacting trust and social license to operate. Policies and commitments Climate management is anchored in a strategy with public targets for emission reductions across Scopes 1, 2 and 3 and expansion of renewable energy use, in line with long-term carbon neutrality commitments. These commitments are aligned with international references such as the Paris Agreement and TCFD/IFRS S2 recommendations, and they guide the company’s planning for the transition to a low-carbon economy. In addition, to lead the decarbonization agenda and supported by its global climate change policy, Vale has maintained a recurring forum since 2019, composed of Executive Committee members and senior leadership, whose variable compensation is linked to emissions reduction targets. Vale’s commitments include: • Reduce absolute Scope 1 and 2 GHG emissions by 33% by 2030; • Global: Achieve net-zero Scope 1 and 2 emissions by 2050; • Reduce net Scope 3 emissions by 15% by 2035; • Global: 100% renewable electricity consumption by 2030; • Brazil: 100% renewable electricity consumption by 2025; • Improve the company's global energy efficiency indicator by 5% by 2030. Measures taken to manage the topic To manage the topic, Vale prepares its greenhouse gas inventory based on recognized methodologies and maintains a portfolio of decarbonization projects covering different technological and operational fronts, including: • Equipment and fleet electrification in operations; • Energy efficiency projects in processes and facilities; • Replacement of more carbon-intensive fuels with lower-impact alternatives; • Procurement and development of proprietary renewable energy sources; • Projects in partnership with customers for lower-carbon steelmaking and new technological processes. Effectiveness monitoring The effectiveness of climate initiatives is monitored through a set of indicators and interim targets that enable tracking of the decarbonization pathway and business resilience, such as: • Absolute emissions and emission intensity by scope and by product; • Percentage of electricity from renewable sources; • Energy efficiency indicators by production unit; • Progress against medium- and long-term emissions reduction targets, with regular reporting to senior management and investors.
B99: GRI 201-2 | 14.2.2 | C99: Financial implications and other risks and opportunities due to climate change | D99: Energy and Climate
B100: GRI 302-1 | 14.1.2 | C100: Energy consumption within the organization | D100: Energy and Climate
B101: GRI 302-2 | 14.1.3 | C101: Energy consumption outside the organization | D101: Energy and Climate
B102: GRI 302-3 | 14.1.4 | C102: Energy intensity | D102: Energy and Climate
B103: GRI 305-1 | 14.1.5 | C103: Direct (Scope 1) GHG emissions | D103: Energy and Climate
B104: GRI 305-2 | 14.1.6 | C104: Energy indirect (Scope 2) GHG emissions | D104: Energy and Climate
B105: GRI 305-3 | 14.1.7 | C105: Other indirect (Scope 3) GHG emissions | D105: Energy and Climate
B106: GRI 305-4 | 14.1.8 | C106: GHG emissions intensity | D106: Energy and Climate
B107: GRI 305-5 | 14.1.9 | C107: Reduction of greenhouse gas (GHG) emissions | D107: Energy and Climate
B108: SASB EM-MM-110a.1 | C108: Scope 1 gross global emissions, percentage covered by emission limitation regulations
B109: SASB EM-MM-110a.2 | C109: Discussion of the long-term and short-term strategy or plan to manage Scope 1 emissions, emissions reduction targets and a review of performance against these targets
B110: SASB EM-MM-130a.1 | C110: (1) total energy consumed, (2) percentage of grid electricity, (3) percentage of renewable energy
B113: Biodiversity and Ecosystems
B114: Management of material topics – GRI 3-3 | 14.4.1
B115: Impacts (main risks and opportunities) Main risks: - Habitat loss and fragmentation; - Impacts on endemic and threatened species; - Potential suspension, non-renewal or conditioning of environmental licenses and permits due to impacts on sensitive species and habitats. - Loss of social license and reputational damage resulting from environmental harm; - Increased input costs due to disruption of ecosystem services that provide resources; - Loss of market access due to failure to comply with or adhere to new nature-related commitments; - Scrutiny and exposure to litigation due to impacts on legally protected areas, areas of high biodiversity value, critical ecosystems and/or endangered species. Main opportunities: - Ecosystem conservation and restoration; - Maintenance of essential ecosystem services; - Expansion of partnerships with communities and environmental organizations; - Access to nature-related financial instruments. Negative impacts Even with conservation, monitoring and restoration programs, the presence and expansion of operations may affect the ecological integrity of the areas where Vale operates and the provision of essential ecosystem services for communities and for economic activities themselves. These risks combine ecological, social, regulatory and reputational dimensions. The main negative impacts related to biodiversity are summarized below: • Loss and fragmentation of native vegetation due to mines, waste piles, roads, transmission lines and other associated infrastructure; • Changes to watercourses, hydrological regimes, and soil and water quality, with effects on aquatic and terrestrial ecosystems; • Impacts on endemic, threatened or disturbance-sensitive species, with risk of population decline or loss of critical habitats; • Changes in wildlife movement patterns and increases in roadkill and wildlife–infrastructure conflicts; • Potential promotion of opportunistic or invasive species, altering local ecological balance; • Risks associated with locating new mining fronts and infrastructure in areas of high environmental sensitivity, increasing the complexity of mitigation and offsetting measures; • Risk of review or restriction of environmental licenses, with stricter conditions for vegetation clearing, land use and habitat conservation; • Questions regarding consistency between public conservation commitments and observed field results, with risk of criticism from civil society organizations and the media. Policies and commitments Biodiversity management is guided by environmental policies that incorporate explicit commitments to halt and reverse biodiversity loss. Vale has established targets for the protection and restoration of forest areas beyond its operational boundaries (to restore and protect 500,000 hectares beyond its sites), aligned with global conservation agendas, and integrates these objectives into its sustainability strategy and long-term planning. The company is committed to preventing and offsetting significant impacts in new projects and expansions located in areas of high biodiversity value, seeking to achieve no net loss and, whenever possible, generate positive impacts. Vale adheres to the Sustainable Mining Principles of the International Council on Mining and Metals (ICMM), including Principle 7 and its performance expectations focused on biodiversity conservation, as well as the Brazilian Business Commitment for Biodiversity of the Brazilian Business Council for Sustainable Development (CEBDS). The company has also publicly formalized its decision not to operate in UNESCO World Natural Heritage Sites. This commitment is part of its biodiversity management guidelines and processes. It is important to note that Vale has no projects or operations in these areas, and it helps protect an important site, the Atlantic Forest Discovery Coast Reserves, made up of the Vale Natural Reserve and the Sooretama Biological Reserve. Measures taken to manage the topic To manage impacts on biodiversity and ecosystems, the company carries out specific impact assessments during the licensing and operational phases: • Implementation of fauna and flora management plans tailored to each ecological setting; • Establishment of ecological corridors and conservation areas within and beyond operational areas; • Development of nature-based solutions and research projects in partnership with scientific institutions. In addition, the recovery of degraded areas is an integral part of the biodiversity approach throughout the project life cycle, based on the impact mitigation hierarchy. When impacts cannot be avoided, these actions help minimize, restore and offset damage by mitigating effects on the physical environment, supporting ecological succession, enhancing biological diversity and compensating for residual impacts on biodiversity and ecosystem services. See more on the ESG Portal’s Biodiversity page. Effectiveness monitoring The effectiveness of biodiversity actions is monitored through environmental indicators and field-based performance assessments, which make it possible to verify whether the measures adopted are delivering the intended results. This work encompasses: • Conserved, restored and offset areas, including habitat connectivity metrics; • Monitoring of key species and changes in ecosystem condition; • Periodic assessments of conservation program performance against internal targets and global commitments.
B120: GRI 101-1 | 14.4.2 | C120: Policies to halt and reverse biodiversity loss | D120: Biodiversity
B121: GRI 101-2 | 14.4.3 | C121: Management of biodiversity impacts | D121: Biodiversity
B122: GRI 101-4 | 14.4.4 | C122: Identification of biodiversity impacts | D122: Biodiversity
B123: GRI 101-5 | 14.4.5 | C123: Locations with biodiversity impact | D123: Biodiversity
B124: GRI 101-6 | 14.4.6 | C124: Direct drivers of biodiversity loss | D124: Biodiversity
B125: GRI 101-7 | 14.4.7 | C125: Changes to the state of biodiversity | D125: Biodiversity
B126: GRI 101-8 | 14.4.8 | C126: Ecosystem services | D126: Biodiversity
B127: SASB EM-MM-160a.1 | C127: Description of environmental management policies and practices for active sites
B128: SASB EM-MM-160a.2 | C128: Percentage of mine sites where acid rock drainage is present: (1) predicted to occur, (2) actively mitigated, and (3) under treatment or remediation
B129: SASB EM-MM-160a.3 | C129: Percentage of (1) proven reserves and (2) probable reserves in or near sites with protected conservation status or threatened species habitat
B132: Environmental Management (water, effluents, air emissions, and pollution)
B133: Management of material topics – GRI 3-3 | 14.3.1 | 14.7.1
B134: Impacts (main risks and opportunities) Main risks: - Impacts on water resources; - Conflicts over water use; - Pollution of air, soil and water bodies; - Risks of noncompliance with legal requirements, penalties and operational restrictions. Main opportunities: - Increased water and energy efficiency; - Reduced operating costs; - Strengthened reputation as a leader in environmental management; - Greater trust among communities and regulators; - Expansion of water monitoring network and search for new technologies; - Efficient use of water resources through dry processing; - Global strategy to reduce air emissions. Negative impacts Vale recognizes that its activities both impact and depend on water resources. It therefore has an important role to play in promoting the responsible use of this resource by users in the watersheds where it operates. Another relevant aspect of its eco-efficiency is air emissions. Mining activities emit particulate matter, sulfur oxides (SOx) and nitrogen oxides (NOx), which affect air quality and ecosystems surrounding operations. The company also engages with environmental authorities to develop air quality improvement and effluent management plans through: • participation in watershed management forums and local committees, such as the International Council on Mining and Metals (ICMM) and the Brazilian Mining Institute (IBRAM), contributing to improved water governance and sector guidelines; • shared agreements and action plans to reduce impacts on water and air; • transparency regarding environmental monitoring results through appropriate channels. Policies and commitments Vale’s environmental management is guided by policies such as the Water Resources Policy, as well as internal standards that establish principles and requirements for water, effluents, air emissions and waste. The company has set targets to reduce atmospheric pollutant emissions and decrease the specific use of freshwater, with a particular focus on operations in areas facing greater water stress, including: • Reduce particulate matter emissions by 16%; • Reduce sulfur oxide (SOx) emissions by 16%; • Reduce nitrogen oxide (NOx) emissions by 10%; • Achieve a cumulative average reduction of 27% in specific freshwater use by 2030 (compared to the 2017 base year), focusing on regions facing greater water stress. Measures taken to manage the topic At Vale, risk management is an essential pillar for guaranteeing sustainability and operational integrity. Environmental risk governance follows a model based on three lines of defense, ensuring alignment between strategic decisions, operational performance and risk management. The Executive Sustainability Committee, the Audit and Risk Committee and the Board of Directors periodically oversee processes to ensure alignment with international best practices. To manage this topic, the company maintains environmental control systems aligned with recognized best practices and, where applicable, certifiable standards, including: • monitoring of water withdrawal, consumption, recirculation and discharge; • regular analysis of liquid effluent quality; • use of equipment and technologies to control air emissions, such as filters, scrubbers, enclosures and spraying systems; • water management plans in critical areas, including actions to prevent acid mine drainage and other impacts on soil and water bodies. Effectiveness monitoring The effectiveness of environmental management is assessed through performance indicators and the degree of compliance with legal and licensing requirements: • Water withdrawal, consumption and recirculation by production unit; • Effluent quality parameters compared with legal limits and licensing conditions; • Air emission levels (particulate matter, NOx, SOx and other pollutants) relative to environmental standards; • Number of environmental incidents and fines, and progress of associated action plans; • Results of internal and external environmental management audits.
B139: GRI 303-1 | 14.7.2 | C139: Interactions with water as a shared resource | D139: Environmental Management
B140: GRI 303-2 | 14.7.3 | C140: Management of water discharge-related impacts | D140: Environmental Management
B141: GRI 303-3 | 14.7.4 | C141: Water withdrawl | D141: Environmental Management
B142: GRI 303-4 | 14.7.5 | C142: Water discharge | D142: Environmental Management
B143: GRI 303-5 | 14.7.6 | C143: Water consumption | D143: Environmental Management
B144: GRI 305-7 | 14.3.2 | C144: Nitrogen oxides (NOx), sulfur oxides (SOx), and other significant air emissions | D144: Environmental Management
B145: SASB EM-MM-120a.1 | C145: Atmospheric emissions of the following pollutants: (1) CO, (2) NOx (excluding N2O), (3) SOx, (4) particulate matter (PM10), (5) mercury (Hg), (6) lead (Pb), and (7) volatile organic compounds (VOCs)
B146: SASB EM-MM-140a.1 | C146: (1) Total water withdrawn, (2) Total water consumed, percentage of each in regions with High or Extremely High Baseline Water Stress
B147: SASB EM-MM-140a.2 | C147: Number of incidents of non-compliance associated with water quality licenses, standards and regulations
B150: Human Rights
B151: Management of material topics – GRI 3-3 | 14.14.1 | 14.18.1 | 14.19.1
B152: Impacts (main risks and opportunities) Main risks: - Occurrence of human rights violations in operations and in the value chain. Main opportunities: - Strengthening of organizational culture based on respect for human rights; - Promotion of safer, more inclusive work environments; - Establishment of more stable and responsible relationships with the supply chain. Negative impacts The human rights topic involves risks of actual and potential negative impacts in Vale’s own operations and in its value chain, with direct effects on workers, communities, Indigenous peoples, traditional communities and other vulnerable groups. Even with policies, due diligence processes and grievance mechanisms in place, the complexity of the environments in which the company operates could lead to violations or to the perception that rights are not being fully respected or remedied. These risks manifest across labor, social, security, community relations and reputational dimensions, requiring early identification, structured response and ongoing dialogue with stakeholders. The main negative impacts associated with the human rights topic are outlined below. • Risk of child labor, forced labor or degrading conditions in supply chain tiers or in outsourced activities; • Violations of labor rights, excessive working hours, inadequate health and safety conditions and pay disparities, affecting well-being, income and dignity; • Discrimination and harassment based on gender, race, sexual orientation, origin or other characteristics, with a direct impact on inclusion and opportunities; • Risks to the economic, social, cultural and environmental rights of surrounding communities, Indigenous peoples and traditional communities, especially in historically vulnerable settings; • Displacement or resettlement processes that, if poorly conducted, may lead to loss of ties, income insecurity and disruption of social networks; • Potential abuses by public or private security agents involved in protecting people and assets, with risks of physical violence, intimidation and violations of civil rights, particularly in local conflicts, protests or tense situations; • Barriers to access to clear information on risks, decisions and impacts, especially for groups with lower capacity for organization or representation; • Risk that remediation measures may be perceived as insufficient, delayed or misaligned with the expectations of affected people. Policies and commitments Respect for human rights is a non-negotiable condition and a fundamental principle for Vale. The company’s firm approach to this subject across operations and the value chain reflects ongoing learning and the evolution of practices, supported by continuous dialogue with society. This premise is essential for resolving issues and building a culture that respects the dignity and integrity of people potentially affected by the company’s activities and business relationships. The company’s commitment is connected to its Ethics & Compliance Program and its cultural transformation journey. Vale upholds international human rights standards, such as the United Nations Guiding Principles on Business and Human Rights, the principles of the United Nations Global Compact, the Universal Declaration of Human Rights, and the principles and guidelines of the International Council on Mining and Metals. In addition, Vale commits to: • conducting external human rights due diligence across all operations, projects and critical assets every three to five years; • conducting external human rights due diligence for critical suppliers; • supporting Indigenous peoples and traditional communities in promoting their rights, valuing their culture and advancing their development; • combating and preventing child sexual exploitation and forced labor conditions; • remediating impacts caused by the company and, where it played a role in the impact, acting to ensure that Vale is part of the solution. Vale also maintains a listening and response mechanism to receive human rights complaints from society. In addition, it has committed to responding to 100% of allegations on this topic submitted through the Business & Human Rights Resource Centre (BHRRC). Measures taken to manage the topic To manage this topic, Vale carries out mapping and prioritization of human rights risks in operations and in the supply chain, and develops mitigation plans tailored to each situation, through: • periodic human rights risk assessments by country, operation, activity or supplier category; • specific training for security teams and managers on human rights, proportional use of force and appropriate conduct; • establishment of contractual requirements and due diligence procedures for suppliers on issues such as child labor, forced labor and working conditions; • monitoring of partners and adoption of corrective measures or disengagement in cases of serious noncompliance. Effectiveness monitoring The effectiveness of human rights management is monitored through indicators that reflect both the scope of preventive actions and the response to potential violations, such as: • the number of operations and suppliers assessed for human rights risks; • the number, nature and resolution of complaints related to the topic; • the incorporation of lessons learned from investigations and assessments into policies, processes and training programs.
B159: GRI 408-1 | 14.18.2 | C159: Operations and suppliers at significant risk for incidents of child labor | D159: Communities and Territories
B160: GRI 409-1 | 14.19.2 | C160: Operations and suppliers at significant risk for incidents of forced or compulsory labor | D160: Communities and Territories
B161: GRI 410-1 | 14.14.2 | C161: Security personnel trained in human rights policies or procedures | D161: Communities and Territories
B164: Governance and Integrity
B165: Management of material topics – GRI 3-3 | 14.22.1 | 14.23.1 | 14.24.1
B166: Impacts (main risks and opportunities) - Market risks; - Operational risks; - Legal and tax risks; - Mergers, acquisitions and divestments; - Abusive and discriminatory practices; - Strategic, financial and cyber risks; - Changes in laws and regulations. Main opportunities: - Strengthening of corporate governance; - Access to capital on more favorable terms; - Improved ESG ratings; - Contribution to a more ethical and transparent business environment. Negative impacts The governance and integrity topic involves risks of negative impacts that could directly affect business continuity, stakeholder trust and Vale’s legal compliance. Even with governance structures, compliance programs and reporting channels in place, the company remains exposed to risks of corruption, fraud, conflicts of interest and other misconduct due to its operations across multiple jurisdictions, complex value chains and frequent interaction with the public sector. These risks translate into financial, regulatory, reputational and social impacts, with potential consequences for employees, shareholders, customers, suppliers, communities and authorities. The main negative impacts associated with the topic are outlined below: • Occurrence of cases of corruption, bribery, fraud, money laundering, cartel activity or other illicit practices in internal operations or in the value chain; • Improper involvement with public officials, affecting fair competition and trust in institutions; • Investigations, administrative proceedings and lawsuits that may result in fines, penalties, significant financial settlements, regulatory restrictions and debarment from public procurement; • Increased cost of capital, loss of access to certain sources of financing or more restrictive conditions imposed by investors and creditors; • Requirement for external monitoring, additional commitments and structural changes in governance, with impacts on management and resource allocation; • Internal environment of low trust if misconduct cases are not handled with transparency, fairness and consistency with company policies; • Termination of contracts or business relationships due to investigations, with economic impacts on small suppliers and communities dependent on these value chain links; • Significant damage to institutional reputation resulting from integrity scandals, with scrutiny from civil society, media, investors and regulators. Policies and commitments Vale strives to align with national and international governance best practices, including having a majority of independent board members, a lead independent director, a Board of Directors self-assessment process and limits on the number of terms for board members. The company acts firmly to preserve integrity and eliminate conflicts of interest, rejecting any conduct, influence or decision driven by interests that conflict with the standards set out in its Code of Conduct. Its anti-corruption rules are designed to ensure compliance with all applicable legislation, including the U.S. Foreign Corrupt Practices Act (FCPA), the Brazilian Anti-Corruption Law (Law 12,846 of 2013) and local laws in each country where it operates. These rules are set out in Vale’s Global Anti-Corruption Policy and detailed in an internal document. Vale’s Global Anti-Corruption Policy establishes: • “Employees and officers must fully cooperate with Vale’s investigations into issues or conduct related to anti-corruption policies and rules and maintain the confidentiality of the information under investigation.” • “Violations of Vale’s anti-corruption rules will result in the application of appropriate disciplinary measures.” • “In addition to the consequences applicable to employees and officers, violations of anti-corruption and anti-bribery laws may subject the offender, as well as Vale and its subsidiaries and controlled entities, to civil and/or criminal penalties, including fines and imprisonment. Vale takes these risks extremely seriously and requires all its officers, employees and contractors to do the same.” Measures taken to manage the topic Vale maintains a governance structure composed of a Board of Directors, advisory committees and the Compliance, Internal Audit and Legal areas, responsible for overseeing integrity risks and ensuring the effectiveness of internal controls, through: • compliance programs that include periodic assessments of corruption and integrity risks; • third-party due diligence processes for the engagement of suppliers, partners and intermediaries; • continuous monitoring of internal controls and integrity indicators; • communication campaigns and recurring training on ethics, integrity and anti-corruption for different internal and external audiences. Effectiveness monitoring The effectiveness of governance and integrity management is monitored through indicators that assess both the robustness of preventive mechanisms and the response to identified cases, encompassing the following: • The number, severity and outcomes of integrity investigations; • Ethics and compliance training coverage, frequency and adherence; • Occurrences of legal and tax noncompliance and effectiveness of associated action plans; • Periodic assessments of the maturity of integrity programs and resulting adjustments.
B172: GRI 201-1 | 14.23.2 | C172: Direct economic value generated and distributed | D172: Economic Performance
B173: GRI 201-4 | 14.23.3 | C173: Financial assistance received from the government | D173: Economic Performance
B174: GRI 205-1 | 14.22.2 | C174: Operations assessed for risks related to corruption | D174: Governance and Compliance
B175: GRI 205-2 | 14.22.3 | C175: Communication and training on anti-corruption policies and procedures | D175: Governance and Compliance
B176: GRI 205-3 | 14.22.4 | C176: Confirmed cases of corruption and actions taken | D176: Governance and Compliance
B177: GRI 207-1 | 14.23.4 | C177: Approach to tax | D177: Economic Performance
B178: GRI 207-2 | 14.23.5 | C178: Tax governance, control and risk management | D178: Economic Performance
B179: GRI 207-3 | 14.23.6 | C179: Stakeholder engagement and management of concerns related to tax | D179: Economic Performance
B180: GRI 207-4 | 14.23.7 | C180: Country-bycountry report | D180: Economic Performance
B181: SASB EM-MM-510a.1 | C181: Description of the management system for preventing corruption and bribery throughout the value chain
B182: SASB EM-MM-510a.2 | C182: Production in countries that have Transparency International's 20 lowest corruption perception scores
B186: People
B187: Management of material topics – GRI 3-3 | 14.17.1 | 14.20.1 | 14.21.1
B188: Impacts (main risks and opportunities) Main risks: - Difficulty attracting and retaining talent; - Misalignment between skills and business needs, as well as inequalities in pay and access to opportunities; - Occurrence of harassment and discrimination, affecting engagement, productivity and organizational climate; - Use of third-party labor; - Leadership succession planning. Main opportunities: - Development of an engaged, diverse and skilled workforce capable of driving innovation, improving results and strengthening the company’s reputation as an employer of choice; - Implementation and acceleration of the Technical Training Program for employees; - Training and activation of operational leaders in the company's cultural transformation. Negative impacts The people material topic involves current and potential negative impacts on employees, contractors and other stakeholders who engage with Vale as a workplace. Even with development, health, safety and diversity policies and programs in place, there is a risk that people management practices may not adequately meet the expectations and needs of these groups, affecting well-being, engagement and perceptions of fairness. These risks arise across the dimensions of talent attraction and retention, working conditions, physical and mental health, diversity and equity, labor relations and organizational climate, with direct effects on the employee experience and on the company’s ability to execute its strategy. The main negative impacts associated with the topic are summarized below: • Difficulty attracting and retaining qualified professionals in certain regions, technical areas or critical roles, leading to team overload and affecting operational continuity; • Perceived lack of career prospects or development opportunities, resulting in disengagement, high turnover and loss of organizational knowledge; • Risks to physical and mental health, including stress, anxiety, occupational illness and absences, if comprehensive health and psychosocial support programs are insufficient or not accessible; • Persistence of inequalities in pay and access to opportunities (promotions, leadership roles and training) across different groups, especially regarding gender, race and other social markers; • Occurrence of psychological or sexual harassment, discrimination and microaggressions in the workplace, affecting psychological safety, well-being and retention of underrepresented groups; • Tensions in labor relations with unions and worker representatives, especially during collective bargaining or changes in contractual conditions, with risks of work stoppages and conflicts; • Differences in the quality of working conditions and benefits between employees and contractors, leading to perceptions of unequal treatment and affecting engagement, safety and team climate in mixed teams. Policies and commitments People management is guided by a set of policies that establish principles and guidelines for topics such as people development, diversity and inclusion, compensation and benefits, health and well-being and labor relations. These instruments are complemented by public targets and commitments on diversity and equity: • People and Diversity & Inclusion policies. • Diversity targets for leadership positions and the overall workforce, considering gender, race and other social markers; • Commitments to promoting equal opportunities and combating all forms of discrimination. Measures taken to manage the topic To manage the topic, Vale maintains structured programs that cover the employee journey and seek to align human development with business strategy: • Talent attraction and career development programs, including succession planning; • Performance evaluations linked to development and recognition plans; • Comprehensive health, well-being and mental health support programs; • Diversity, equity and inclusion initiatives and affinity groups, providing awareness and training actions; • Collective agreements and formal channels for dialogue with unions and employee representatives. Effectiveness monitoring The effectiveness of people management is monitored through indicators related to attraction, retention, development and diversity, as well as climate and engagement metrics: • Turnover, retention rate, hires and terminations; • Training hours per employee and participation in development and succession programs; • Diversity indicators by hierarchical level and pay equity across different groups; • Engagement and climate survey results; • Number and handling of cases of discrimination and other labor rights violations.
B193: GRI 202-1 | 14.17.2 | C193: Ratios of standard entry level wage by gender compared to local minimum wage | D193: People
B194: GRI 202-2 | 14.21.2 | C194: Proportion of senior management hired from the local community | D194: People
B195: GRI 401-1 | 14.17.3 | C195: New employee hires and employee turnover | D195: People
B196: GRI 401-3 | 14.17.5 | 14.21.3 | C196: Parental leave | D196: People
B197: GRI 402-1 | 14.17.6 | C197: Minimum notice periods regarding operational changes | D197: People
B198: GRI 404-1 | 14.17.7 | 14.21.4 | C198: Average hours of training per year, per employee | D198: People
B199: GRI 404-2 | 14.17.8 | C199: Programs for upgrading employee skill and transition assistance programs | D199: People
B200: GRI 405-1 | 14.21.5 | C200: Diversity of governance bodies and employees | D200: People
B201: GRI 405-2 | 14.21.6 | C201: Ratio of basic salary and remuneration of women to men | D201: People
B202: GRI 406-1 | 14.21.7 | C202: Incidents of discrimination and corrective actions taken | D202: People
B203: GRI 407-1 | 14.20.2 | C203: Operations and suppliers where the right to freedom of association and collective bargaining may be at risk | D203: People
B204: GRI 14.20.3 | C204: Report the number of strikes and lockouts involving 1,000 or more workers lasting one full shift or longer, and their total duration in worker days idle. | D204: People
B205: SASB EM-MM-310a.1 | C205: Percentage of active workforce covered by collective bargaining agreements
B206: SASB EM-MM-310a.2 | C206: Number and duration of strikes and lockouts

Sheet Index
D4: ESG Databook 2025
B8: Index
B10: The SASB metrics will be included in this Databook during the same publication period as the 2025 Sustainability-Related Financial Information Report.
B12: Indicator | C12: Description | D12: Location
B13: GRI 2-7 | C13: Employees | D13: =HYPERLINK("#'People'!B10","People") -> People
B14: GRI 2-8 | C14: Workers who are not employees | D14: =HYPERLINK("#'People'!B10","People") -> People
B15: GRI 2-27 | C15: Compliance with laws and regulations | D15: =HYPERLINK("#'Governance and Compliance'!B122","Governance and Compliance") -> Governance and Compliance
B16: GRI 201-1 | 14.9.2 | 14.23.2 | C16: Direct economic value generated and distributed | D16: =HYPERLINK("#'Economic Performance'!B71","Economic Performance") -> Economic Performance
B17: GRI 201-2 | 14.2.2 | C17: Financial implications and other risks and opportunities due to climate change | D17: =HYPERLINK("#'Energy and Climate'!B10","Energy and Climate") -> Energy and Climate
B18: GRI 201-3 | C18: Defined benefit plan obligations and other retirement plans | D18: =HYPERLINK("#'People'!B514","People") -> People
B19: GRI 201-4 | 14.23.3 | C19: Financial assistance received from the government | D19: =HYPERLINK("#'Governance and Compliance'!B10","Governance and Compliance") -> Governance and Compliance
B20: GRI 202-1 | 14.17.2 | C20: Ratios of standard entry level wage by gender compared to local minimum wage | D20: =HYPERLINK("#'People'!B529","People") -> People
B21: GRI 202-2 | 14.9.6 | 14.21.2 | C21: Proportion of senior management hired from the local community | D21: =HYPERLINK("#'People'!B543","People") -> People
B22: GRI 203-1 | 14.9.3 | C22: Infrastructure investments and services supported | D22: =HYPERLINK("#'Communities and Territories'!B10","Communities and Territories") -> Communities and Territories
B23: GRI 203-2 | 14.9.4 | C23: Significant Indirect Economic Impacts | D23: =HYPERLINK("#'Communities and Territories'!B23","Communities and Territories") -> Communities and Territories
B24: GRI 204-1 | 14.9.5 | C24: Proportion of spending on local suppliers | D24: =HYPERLINK("#'Economic Performance'!B10","Economic Performance") -> Economic Performance
B25: GRI 205-1 | 14.22.2 | C25: Operations assessed for risks related to corruption | D25: =HYPERLINK("#'Governance and Compliance'!B24","Governance and Compliance") -> Governance and Compliance
B26: GRI 205-2 | 14.22.3 | C26: Communication and training on anti-corruption policies and procedures | D26: =HYPERLINK("#'Governance and Compliance'!B37","Governance and Compliance") -> Governance and Compliance
B27: GRI 205-3 | 14.23.4 | C27: Confirmed cases of corruption and actions taken | D27: =HYPERLINK("#'Governance and Compliance'!B85","Governance and Compliance") -> Governance and Compliance
B28: GRI 206-1 | C28: Legal actions for anti-competitive behavior, anti-trust, and monopoly practices | D28: =HYPERLINK("#'Governance and Compliance'!B98","Governance and Compliance") -> Governance and Compliance
B29: GRI 207-1 | 14.23.4 | C29: Approach to tax | D29: =HYPERLINK("#'Economic Performance'!B23","Economic Performance") -> Economic Performance
B30: GRI 207-2 | 14.23.5 | C30: Tax governance, control and risk management | D30: =HYPERLINK("#'Economic Performance'!B36","Economic Performance") -> Economic Performance
B31: GRI 207-3 | 14.23.6 | C31: Stakeholder engagement and management of concerns related to tax | D31: =HYPERLINK("#'Economic Performance'!B49","Economic Performance") -> Economic Performance
B32: GRI 207-4 | 14.23.7 | C32: Country-by-country reporting | D32: =HYPERLINK("#'Economic Performance'!B62","Economic Performance") -> Economic Performance
B33: GRI 302-1 | 14.1.2 | C33: Energy consumption within the organization | D33: =HYPERLINK("#'Energy and Climate'!B38","Energy and Climate") -> Energy and Climate
B34: GRI 302-2 | 14.1.3 | C34: Energy consumption outside the organization | D34: =HYPERLINK("#'Energy and Climate'!B124","Energy and Climate") -> Energy and Climate
B35: GRI 302-3 | 14.1.4 | C35: Energy intensity | D35: =HYPERLINK("#'Energy and Climate'!B137","Energy and Climate") -> Energy and Climate
B36: GRI 302-4 | C36: Reduction of energy consumption | D36: =HYPERLINK("#'Energy and Climate'!B149","Energy and Climate") -> Energy and Climate
B37: GRI 303-1 | 14.7.2 | C37: Interactions with water as a shared resource | D37: =HYPERLINK("#'Environmental Management'!B10","Environmental Management") -> Environmental Management
B38: GRI 303-2 | 14.7.3 | C38: Management of water discharge-related impacts | D38: =HYPERLINK("#'Environmental Management'!B28","Environmental Management") -> Environmental Management
B39: GRI 303-3 | 14.7.4 | C39: Water withdrawl | D39: =HYPERLINK("#'Environmental Management'!B40","Environmental Management") -> Environmental Management
B40: GRI 303-4 | 14.7.5 | C40: Water discharge | D40: =HYPERLINK("#'Environmental Management'!B53","Environmental Management") -> Environmental Management
B41: GRI 303-5 | 14.7.6 | C41: Water consumption | D41: =HYPERLINK("#'Environmental Management'!B66","Environmental Management") -> Environmental Management
B42: GRI 101-1 | 14.4.2 | C42: Policies to halt and reverse biodiversity loss | D42: =HYPERLINK("#'Biodiversity'!B10","Biodiversity") -> Biodiversity
B43: GRI 101-2 | 14.4.3 | C43: Management of biodiversity impacts | D43: =HYPERLINK("#'Biodiversity'!B19","Biodiversity") -> Biodiversity
B44: GRI 101-4 | 14.4.4 | C44: Identification of biodiversity impacts | D44: =HYPERLINK("#'Biodiversity'!B140","Biodiversity") -> Biodiversity
B45: GRI 101-5 | 14.4.5 | C45: Locations with biodiversity impact | D45: =HYPERLINK("#'Biodiversity'!B149","Biodiversity") -> Biodiversity
B46: GRI 101-6 | 14.4.6 | C46: Direct drivers of biodiversity loss | D46: =HYPERLINK("#'Biodiversity'!B264","Biodiversity") -> Biodiversity
B47: GRI 101-7 | 14.4.7 | C47: Changes to the state of biodiversity | D47: =HYPERLINK("#'Biodiversity'!B385","Biodiversity") -> Biodiversity
B48: GRI 101-8 | 14.4.8 | C48: Ecosystem services | D48: =HYPERLINK("#'Biodiversity'!B695","Biodiversity") -> Biodiversity
B49: GRI 305-1 | 14.1.5 | C49: Direct (Scope 1) GHG emissions | D49: =HYPERLINK("#'Energy and Climate'!B162","Energy and Climate") -> Energy and Climate
B50: GRI 305-2 | 14.1.6 | C50: Energy indirect (Scope 2) GHG emissions | D50: =HYPERLINK("#'Energy and Climate'!B179","Energy and Climate") -> Energy and Climate
B51: GRI 305-3 | 14.1.7 | C51: Other indirect (Scope 3) GHG emissions | D51: =HYPERLINK("#'Energy and Climate'!B194","Energy and Climate") -> Energy and Climate
B52: GRI 305-4 | 14.1.8 | C52: GHG emissions intensity | D52: =HYPERLINK("#'Energy and Climate'!B221","Energy and Climate") -> Energy and Climate
B53: GRI 305-5 | 14.1.9 | C53: Reduction of greenhouse gas (GHG) emissions | D53: =HYPERLINK("#'Energy and Climate'!B234","Energy and Climate") -> Energy and Climate
B54: GRI 305-6 | C54: Emissions of ozone-depleting substances (ODS) | D54: =HYPERLINK("#'Energy and Climate'!B248","Energy and Climate") -> Energy and Climate
B55: GRI 305-7 | 14.3.2 | C55: Nitrogen oxides (NOx), sulfur oxides (SOx), and other significant air emissions | D55: =HYPERLINK("#'Environmental Management'!B78","Environmental Management") -> Environmental Management
B56: GRI 306-1 | 14.5.1 | C56: Waste generation and significant waste-related impacts | D56: =HYPERLINK("#'Environmental Management'!B186","Environmental Management") -> Environmental Management
B57: GRI 306-2 | 14.5.3 | C57: Management of significant waste-related impacts | D57: =HYPERLINK("#'Environmental Management'!B197","Environmental Management") -> Environmental Management
B58: GRI 306-3 | 14.5.4 | C58: Waste generated (non-mineral waste) | D58: =HYPERLINK("#'Environmental Management'!B211","Environmental Management") -> Environmental Management
B59: GRI 306-4 | 14.5.5 | C59: Waste diverted from disposal (non-mineral waste) | D59: =HYPERLINK("#'Environmental Management'!B250","Environmental Management") -> Environmental Management
B60: GRI 306-5 | 14.5.6 | C60: Waste directed to disposal (non-mineral waste) | D60: =HYPERLINK("#'Environmental Management'!B250","Environmental Management") -> Environmental Management
B61: GRI 14.15.2 | C61: Significant Spills | D61: =HYPERLINK("#'Environmental Management'!B333","Environmental Management") -> Environmental Management
B62: GRI 308-1 | C62: New suppliers that were screened using environmental criteria | D62: =HYPERLINK("#'Environmental Management'!B294","Environmental Management") -> Environmental Management
B63: GRI 308-2 | C63: Negative environmental impacts in the supply chain and actions taken | D63: =HYPERLINK("#'Environmental Management'!B307","Environmental Management") -> Environmental Management
B64: GRI 401-1 | 14.17.3 | C64: New employee hires and employee turnover | D64: =HYPERLINK("#'People'!B102","People") -> People
B65: GRI 401-2 | 14.17.4 | C65: Benefits provided to full-time employees that are not provided to temporary or part-time employees | D65: =HYPERLINK("#'People'!B174","People") -> People
B66: GRI 401-3 | 14.17.5 | 14.21.3 | C66: Parental leave | D66: =HYPERLINK("#'People'!B199","People") -> People
B67: GRI 402-1 | 14.8.2 | 14.17.6 | C67: Minimum notice periods regarding operational changes | D67: =HYPERLINK("#'People'!B216","People") -> People
B68: GRI 403-1 | 14.16.2 | C68: Occupational health and safety management system | D68: =HYPERLINK("#'Safe Operations'!B10","Safe Operations") -> Safe Operations
B69: GRI 403-2 | 14.16.3 | C69: Hazard identification, risk assessment and incident investigation | D69: =HYPERLINK("#'Safe Operations'!B22","Safe Operations") -> Safe Operations
B70: GRI 403-3 | 14.16.4 | C70: Occupational health services | D70: =HYPERLINK("#'Safe Operations'!B38","Safe Operations") -> Safe Operations
B71: GRI 403-4 | 14.16.5 | C71: Worker participation, consultation and communication on occupational health and safety | D71: =HYPERLINK("#'Safe Operations'!B51","Safe Operations") -> Safe Operations
B72: GRI 403-5 | 14.16.6 | C72: Worker training on occupational health and safety | D72: =HYPERLINK("#'Safe Operations'!B63","Safe Operations") -> Safe Operations
B73: GRI 403-6 | 14.16.7 | C73: Promotion of worker health | D73: =HYPERLINK("#'Safe Operations'!B75","Safe Operations") -> Safe Operations
B74: GRI 403-7 | 14.16.8 | C74: Prevention and mitigation of occupational health and safety impacts directly linked by business relationships | D74: =HYPERLINK("#'Safe Operations'!B87","Safe Operations") -> Safe Operations
B75: GRI 403-8 | 14.16.9 | C75: Workers covered by an occupational health and safety management system | D75: =HYPERLINK("#'Safe Operations'!B100","Safe Operations") -> Safe Operations
B76: GRI 403-9 | 14.16.10 | C76: Work-related injuries | D76: =HYPERLINK("#'Safe Operations'!B112","Safe Operations") -> Safe Operations
B77: GRI 403-10 | 14.16.11 | C77: Work-related ill health | D77: =HYPERLINK("#'Safe Operations'!B137","Safe Operations") -> Safe Operations
B78: GRI 404-1 | 14.17.7 | 14.21.4 | C78: Average hours of training per year, per employee | D78: =HYPERLINK("#'People'!B228","People") -> People
B79: GRI 404-2 | 14.8.3 | C79: Programs for upgrading employee skill and transition assistance programs | D79: =HYPERLINK("#'People'!B313","People") -> People
B80: GRI 404-3 | C80: Percentage of employees receiving regular performance and career development reviews | D80: =HYPERLINK("#'People'!B325","People") -> People
B81: GRI 405-1 | 14.21.5 | C81: Diversity of governance bodies and employees | D81: =HYPERLINK("#'People'!B346","People") -> People
B82: GRI 405-2 | 14.21.6 | C82: Ratio of basic salary and remuneration of women to men | D82: =HYPERLINK("#'People'!B471","People") -> People
B83: GRI 406-1 | 14.21.7 | C83: Incidents of discrimination and corrective actions taken | D83: =HYPERLINK("#'Governance and Compliance'!B110","Governance and Compliance") -> Governance and Compliance
B84: GRI 407-1 | 14.20.2 | C84: Operations and suppliers where the right to freedom of association and collective bargaining may be at risk | D84: =HYPERLINK("#'People'!B490","People") -> People
B85: GRI 408-1 | 14.18.2 | C85: Operations and suppliers at significant risk for incidents of child labor | D85: =HYPERLINK("#'Communities and Territories'!B38","Communities and Territories") -> Communities and Territories
B86: GRI 409-1 | 14.19.2 | C86: Operations and suppliers at significant risk for incidents of forced or compulsory labor | D86: =HYPERLINK("#'Communities and Territories'!B50","Communities and Territories") -> Communities and Territories
B87: GRI 410-1 | 14.14.2 | C87: Security personnel trained in human rights policies or procedures | D87: =HYPERLINK("#'Communities and Territories'!B62","Communities and Territories") -> Communities and Territories
B88: GRI 411-1 | 14.11.2 | C88: Incidents of violation involving rights of indigenous peoples | D88: =HYPERLINK("#'Communities and Territories'!B74","Communities and Territories") -> Communities and Territories
B89: GRI 413-1 | 14.10.2 | C89: Operations with local community engagement, impact assessments, and development programs | D89: =HYPERLINK("#'Communities and Territories'!B87","Communities and Territories") -> Communities and Territories
B90: GRI 413-2 | 14.10.3 | C90: Operations with significant actual and potential negative impacts on local communities | D90: =HYPERLINK("#'Communities and Territories'!B99","Communities and Territories") -> Communities and Territories
B91: GRI 414-1 | 14.17.9 | C91: New suppliers that were screened using social criteria | D91: =HYPERLINK("#'Communities and Territories'!B111","Communities and Territories") -> Communities and Territories
B92: GRI 414-2 | 14.17.10 | C92: Negative social impacts in the supply chain and actions taken | D92: =HYPERLINK("#'Communities and Territories'!B123","Communities and Territories") -> Communities and Territories
B93: GRI 415-1 | 14.24.2 | C93: Political contributions | D93: =HYPERLINK("#'Governance and Compliance'!B146","Governance and Compliance") -> Governance and Compliance
B94: GRI 14.5.4 | 14.5.6 | C94: Waste generated, waste directed to disposal (mineral waste) | D94: =HYPERLINK("#'Dams'!B10","Dams") -> Dams
B95: GRI 14.20.3 | C95: Number of strikes and lockouts involving 1,000 or more workers lasting one full shift or longer, and their total duration in worker days idle. | D95: =HYPERLINK("#'People'!B502","People") -> People
B96: GRI 14.11.3 and 14.11.4 | C96: Locations of operations and proven reserves where Indigenous Peoples are present and are or may be affected by the activities of the organization. Report whether the organization has been involved in a process of seeking free, prior, and informed consent (FPIC) from Indigenous Peoples for any of the organization’s activities. | D96: =HYPERLINK("#'Communities and Territories'!B147","Communities and Territories") -> Communities and Territories
B97: GRI 14.12.3 | C97: Locations of operations where conflicts or violations of land and resource rights (including customary, collective, and informal tenure rights) occurred, and describe the incidents and the stakeholders whose rights are or could be affected. | D97: =HYPERLINK("#'Communities and Territories'!B160","Communities and Territories") -> Communities and Territories
B98: GRI 14.13.2 and 14.13.3 | C98: Mine sites where ASM occurs on or in close proximity to the site, total number and nature of incidents involving ASM and actions taken to address them. | D98: =HYPERLINK("#'Communities and Territories'!B172","Communities and Territories") -> Communities and Territories
B99: GRI 14.12.2 | C99: Mine sites where involuntary resettlement is planned, ongoing, or has taken place. | D99: =HYPERLINK("#'Communities and Territories'!B186","Communities and Territories") -> Communities and Territories
B100: GRI 14.8.4 and 14.8.8 | C100: For each mine site, report whether it, has a closure and rehabilitation plan in place, is undergoing closure and rehabilitation activities, has been closed and rehabilitated. For financial provisions made by the organization for closure and rehabilitation, including environmental and socioeconomic post-closure monitoring and aftercare for mine sites, report the total estimated closure cost (not discounted), whether the financial provision covers the full amount of the current estimated closure cost, and whether the financial provision made is in line with the applicable regulatory requirements, by mine site, the methodology used to calculate the estimated closure cost, financial instruments used or developed to guarantee adequate financial provisions for closure and rehabilitation. | D100: =HYPERLINK("#'Environmental Management'!B319","Environmental Management") -> Environmental Management
B101: WEF | C101: Metric: Board Composition | D101: =HYPERLINK("#'Governance and Compliance'!B183","Governance and Compliance") -> Governance and Compliance
B102: WEF | C102: Metric: Material Issues Affecting Stakeholders | D102: =HYPERLINK("#'Governance and Compliance'!B216","Governance and Compliance") -> Governance and Compliance
B103: WEF | C103: Metric: Anti-corruption | D103: =HYPERLINK("#'Governance and Compliance'!B171","Governance and Compliance") -> Governance and Compliance
B104: WEF | C104: Metric: Integrating Risk and Opportunity into Business Processes | D104: =HYPERLINK("#'Governance and Compliance'!B159","Governance and Compliance") -> Governance and Compliance
B105: WEF | C105: Metric: Greenhouse gas (GHG) emissions | D105: =HYPERLINK("#'Energy and Climate'!B162","Energy and Climate") -> Energy and Climate
B106: WEF | C106: Metric: TCFD Implementation | D106: =HYPERLINK("#'Energy and Climate'!B261","Energy and Climate") -> Energy and Climate
B107: WEF | C107: Metric: Land use and ecological sensitivity | D107: =HYPERLINK("#'Biodiversity'!B166","Biodiversity") -> Biodiversity
B108: WEF | C108: Metric: Consumption and abstraction of water in areas of water stress | D108: =HYPERLINK("#'Environmental Management'!B40","Environmental Management") -> Environmental Management
B109: WEF | C109: Metric: Equal pay (%) | D109: =HYPERLINK("#'People'!B529","People") -> People
B110: WEF | C110: Metric: Diversity and inclusion (%) | D110: =HYPERLINK("#'People'!B346","People") -> People
B111: WEF | C111: Metric: Salary level (%) | D111: =HYPERLINK("#'People'!B471","People") -> People
B112: WEF | C112: Metric: Risk of incidence of child, forced or compulsory labor | D112: =HYPERLINK("#'Communities and Territories'!B38","Communities and Territories") -> Communities and Territories
B113: WEF | C113: Metric: Health and Safety (%) | D113: =HYPERLINK("#'Safe Operations'!B112","Safe Operations") -> Safe Operations
B114: WEF | C114: Metric: Training provides (#) | D114: =HYPERLINK("#'People'!B228","People") -> People
B115: WEF | C115: Metric: Net number of jobs created | D115: =HYPERLINK("#'People'!B102","People") -> People
B116: WEF | C116: Metric: Net Economic Contribution | D116: =HYPERLINK("#'Economic Performance'!B71","Economic Performance") -> Economic Performance
B117: WEF | C117: Metric: Financial Investment Contribution | D117: =HYPERLINK("#'Economic Performance'!B161","Economic Performance") -> Economic Performance
B118: WEF | C118: Metric: R&D Expenditure Rate (%) | D118: =HYPERLINK("#'Economic Performance'!B161","Economic Performance") -> Economic Performance
B119: WEF | C119: Metric: Total Taxes Paid | D119: =HYPERLINK("#'Economic Performance'!B62","Economic Performance") -> Economic Performance
B120: WEF | C120: Metric: Purpose Definition | D120: =HYPERLINK("#'Governance and Compliance'!B196","Governance and Compliance") -> Governance and Compliance
B121: WEF | C121: Metric: Secure Mechanisms for Ethical Guidance and Reporting | D121: =HYPERLINK("#'Governance and Compliance'!B208","Governance and Compliance") -> Governance and Compliance

Sheet Economic
D4: ESG Databook 2025
B8: Economic
B10: Indicator | C10: Description | D10: Location
B11: GRI 2-27 | C11: Compliance with laws and regulations | D11: =HYPERLINK("#'Governance and Compliance'!B122","Governance and Compliance") -> Governance and Compliance
B12: GRI 201-1 | 14.9.2 | 14.23.2 | C12: Direct economic value generated and distributed | D12: =HYPERLINK("#'Economic Performance'!B72","Economic Performance") -> Economic Performance
B13: GRI 201-4 | 14.23.3 | C13: Financial assistance received from the government | D13: =HYPERLINK("#'Governance and Compliance'!B10","Governance and Compliance") -> Governance and Compliance
B14: GRI 204-1 | 14.9.5 | C14: Proportion of spending on local suppliers | D14: =HYPERLINK("#'Economic Performance'!B10","Economic Performance") -> Economic Performance
B15: GRI 205-1 | 14.22.2 | C15: Operations assessed for risks related to corruption | D15: =HYPERLINK("#'Governance and Compliance'!B24","Governance and Compliance") -> Governance and Compliance
B16: GRI 205-2 | 14.22.3 | C16: Communication and training on anti-corruption policies and procedures | D16: =HYPERLINK("#'Governance and Compliance'!B37","Governance and Compliance") -> Governance and Compliance
B17: GRI 205-3 | 14.23.4 | C17: Confirmed cases of corruption and actions taken | D17: =HYPERLINK("#'Governance and Compliance'!B82","Governance and Compliance") -> Governance and Compliance
B18: GRI 206-1 | C18: Legal actions for anti-competitive behavior, anti-trust, and monopoly practices | D18: =HYPERLINK("#'Governance and Compliance'!B97","Governance and Compliance") -> Governance and Compliance
B19: GRI 207-1 | 14.23.4 | C19: Approach to tax | D19: =HYPERLINK("#'Economic Performance'!B23","Economic Performance") -> Economic Performance
B20: GRI 207-2 | 14.23.5 | C20: Tax governance, control and risk management | D20: =HYPERLINK("#'Economic Performance'!B38","Economic Performance") -> Economic Performance
B21: GRI 207-3 | 14.23.6 | C21: Stakeholder engagement and management of concerns related to tax | D21: =HYPERLINK("#'Economic Performance'!B53","Economic Performance") -> Economic Performance
B22: GRI 207-4 | 14.23.7 | C22: Country-by-country reporting | D22: =HYPERLINK("#'Economic Performance'!B68","Economic Performance") -> Economic Performance
B23: GRI 406-1 | 14.21.7 | C23: Incidents of discrimination and corrective actions taken | D23: =HYPERLINK("#'Governance and Compliance'!B108","Governance and Compliance") -> Governance and Compliance
B24: GRI 415-1 | 14.24.2 | C24: Political contributions | D24: =HYPERLINK("#'Governance and Compliance'!B143","Governance and Compliance") -> Governance and Compliance
B25: WEF | C25: Metric: Board Composition | D25: =HYPERLINK("#'Governance and Compliance'!B188","Governance and Compliance") -> Governance and Compliance
B26: WEF | C26: Metric: Material Issues Affecting Stakeholders | D26: =HYPERLINK("#'Governance and Compliance'!B201","Governance and Compliance") -> Governance and Compliance
B27: WEF | C27: Metric: Anti-corruption | D27: =HYPERLINK("#'Governance and Compliance'!B168","Governance and Compliance") -> Governance and Compliance
B28: WEF | C28: Metric: Integrating Risk and Opportunity into Business Processes | D28: =HYPERLINK("#'Governance and Compliance'!B157","Governance and Compliance") -> Governance and Compliance
B29: WEF | C29: Metric: Net Economic Contribution | D29: =HYPERLINK("#'Economic Performance'!B72","Economic Performance") -> Economic Performance
B30: WEF | C30: Metric: Financial Investment Contribution | D30: =HYPERLINK("#'Economic Performance'!B145","Economic Performance") -> Economic Performance
B31: WEF | C31: Metric: R&D Expenditure Rate (%) | D31: =HYPERLINK("#'Economic Performance'!B171","Economic Performance") -> Economic Performance
B32: WEF | C32: Metric: Total Taxes Paid | D32: =HYPERLINK("#'Economic Performance'!B68","Economic Performance") -> Economic Performance
B33: WEF | C33: Metric: Purpose Definition | D33: =HYPERLINK("#'Governance and Compliance'!B197","Governance and Compliance") -> Governance and Compliance
B34: WEF | C34: Metric: Secure Mechanisms for Ethical Guidance and Reporting | D34: =HYPERLINK("#'Governance and Compliance'!B201","Governance and Compliance") -> Governance and Compliance
B36: Monte as formulas de Hiperlink para cada um dos indicadores, em formato de tabela

Sheet Economic Data (hidden)
I4: ESG Databook 2024
B8: Economic
B10: GRI 201-2 (2016)
B12: Description: Financial implications and other risks and opportunities due to climate change
B14: Year | C14: Vale's answer | I14: Assurance
B15: 2020 | C15: Physical Risk: Impacts associated with climate change, such as increased temperatures, changes in precipitation patterns, extreme events and rising sea levels can negatively impact operations, workforce and surrounding communities and environment. Among the potential implications, there may be a production stoppage, the need for repairs and modifications to infrastructure, among others. Financial implications before taking preventive measures is variable. The loss of machinery and production downtime can eventually run into millions of dollars. For risk management, Vale has developed an adaptation strategy based on the inclusion of climate change variables in existing risk management processes - this makes it possible to predict possible future problems and reassess controls, eliminating and/or minimizing thus the impacts. Regulatory Risk: A carbon pricing may imply additional costs, both directly and indirectly, which in turn may impact the competitiveness of companies. Carbon pricing can impact the company in three main ways: (i) operating costs; (ii) cost of electricity; (iii) fuel costs. As a way of managing risk, Vale monitors climate legislation in areas where Vale operates and maintains engagement in the process of developing regulations, either directly or through forums and associations in which Vale participates. General Risk: A change in the pattern of coal consumption as a result of the perception of it as a highly emitting product could impact the demand for the commodity in the future. Vale conducts regulatory monitoring of the pricing of greenhouse gas emissions, mainly in the countries where its customers are located. Among the opportunities arising from climate change are: replacing the purchase of electricity with self-production of clean and/or renewable energy; Greater demand for less carbon intensive products could positively impact Vale, which has the lowest carbon intensity per unit of gross revenue among large mining companies; Vale identifies as an opportunity the maintenance of the forest carbon stock, mainly in Brazil, in the context of defining the national carbon market. | I15: Independently assured by Bureau Veritas Certification
B16: 2021 | C16: At Vale, we assess transition risks (i.e. carbon prices, reputation issues, new technology issues) and physical risks (i.e. operational impacts caused by climate variables) related to climate change in accordance with the TCFD recommendation . Our Climate Change Team works with our Risk Management Team to constantly map transition risks related to climate change recorded in Vale's Bwise System. As for physical risks, we have developed a methodology called "Vale Climate Forecast" to deal with short- and long-term risks related to physical impacts on our assets. For more information, please consult Vale's Climate Change Report: http://www.vale.com/esg/pt/Documents/vale-CCR-2021-PT.pdf | I16: -
B17: 2022 | C17: We assess transition risks (for example, emerging regulations at state, national and international levels related to the price of carbon, issues of a reputational nature that could potentially arise from the perception of our performance in addressing climate change, and issues related to technology that may materially disrupt or alter planning and trade routes), as well as physical risks (e.g. operational impacts due to extreme weather conditions whose intensity is increased as a consequence of climate change) as per the recommendations of the Task Force on Climate Related Financial Disclosures (TCFD). Our climate change team identifies and monitors risks with the support of our risk management team to constantly map transition risks related to climate change. For transition risks, we have a systematic approach to monitoring the regulatory landscape and emerging climate-related trends such as proposals, initiatives, laws, etc. Potential impacts are calculated and qualified within Vale's executive committee and through the governance of the company's "Low Carbon Forum". In parallel, we seek cutting-edge information and stakeholder alignment, as well as the company's advanced positioning on climate-related policies, through our broader senior management process around climate change, with participation in Global Forums, such as the International Conference on Mining and Metals (ICMM), the World Economic Forum, the World Business Council on Sustainable Development, and international events on this topic, such as the annual Conference of the Parties (COP), the annual meeting of the UN General Assembly and "NYC Climate Week", and other events in critical jurisdictions such as Brazil, Canada, China, USA, Europe, Indonesia, Middle East. For physical risks, we have developed a methodology called "Vale Climate Forecast" to deal with short and long term risks related to physical impacts on our assets due to climate change. For more information, please see https://www.vale.com/web/esg/climate-change. | I17: -
B18: 2023 | C18: We assess transition risks (e.g., emerging regulations at state, national, and international levels related to carbon pricing, issues of a reputational nature that may potentially arise from the perception of our performance in addressing climate change, and emerging technology-related issues that may disturb or materially alter planning and trade routes), as well as physical risks (e.g. operational impacts due to extreme weather conditions whose intensity is increased as a consequence of climate change) in accordance with the recommendations of the Task Force on Climate Related Financial Disclosures (TCFD). Our climate change team identifies and monitors risks with the support of our risk management team to constantly map transition risks related to climate change. For transition risks, we have a systematic approach to monitoring the regulatory landscape and emerging climate-related trends, such as proposals, initiatives, laws, etc. Potential impacts are calculated and qualified within Vale's executive committee and through the governance of the company's "Low Carbon Forum". In parallel, we seek cutting-edge information and stakeholder alignment, as well as the company's advanced positioning on climate-related policies, through our broader senior management process around climate change, with participation in Global Forums such as the International Council on Mining and Metals (ICMM), the World Economic Forum, the World Business Council on Sustainable Development, and international events on this topic, such as the annual Conference of the Parties (COP), the annual meeting of the UN General Assembly and the "NYC Climate Week", and other events in critical jurisdictions such as Brazil, Canada, China, USA, Europe, Indonesia, the Middle East. For physical risks, we have developed a methodology called "Vale Climate Forecast" to address short- and long-term risks related to physical impacts on our assets due to climate change. For more information, please see the Climate page on the ESG Portal. | I18: -
B19: 2024 | C19: We assess both transition risks (such as state, national, and international regulations related to carbon pricing, reputational issues arising from the perception of our performance in addressing climate change, and emerging technologies that may materially alter planning and trade routes) and physical risks (such as operational impacts due to extreme weather conditions intensified by climate change) in compliance with IFRS S2. As an early adopter, Vale is committed to providing detailed information on climate-related risks and opportunities. Climate risk governance at Vale is overseen by the Executive Committee and the "Low Carbon Forum." Our climate change team, together with the risk management team, continuously identifies and monitors transition and physical risks. We actively participate in global forums such as the ICMM, the World Economic Forum, and COP to align our policies and practices with international best practices. We adopt an integrated approach to identify, assess, prioritize, and monitor climate risks. Our processes are incorporated into the company's overall risk management, ensuring that strategic decisions consider climate risks and opportunities. We report our performance and progress on climate-related issues, including: greenhouse gas (GHG) emissions, with a breakdown of Scope 1, Scope 2, and Scope 3 emissions; emission reduction targets, with progress towards Vale's established decarbonization goals; and sustainability initiatives, such as the development of sustainable technologies, including dual-fuel and electric trucks, and strategic partnerships for innovation. For more information, please refer to the Climate page on Vale's ESG Portal. | I19: -
B20: Links: | C20: ESG Portal - Climate
B23: 2024 - Risks and opportunities arising from climate change
B24: Type | C24: Category | D24: Subcategory | E24: Impact on | F24: Description | H24: Level | I24: Financial Implications before action is taken | J24: Methods used to manage risk/opportunity | L24: Costs of measures taken to manage risk/opportunity
B25: Risk | C25: Regulatory | D25: Regulation of emissions at international, national, regional or state level | E25: Cost | F25: Increase in restrictive, unbalanced, and/or unfair regulations related to GHG emissions, impacting business value. | H25: Intermediate | I25: In the base case, costs related to carbon pricing for the Iron Ore Solutions and Energy Transition Metals business total approximately R$12 billion (US$2 billion) and R$3 billion (US$500 million), values incorporated into Vale's Strategic Planning. Vale evaluates its exposure to risk in different climate scenarios each cycle. | J25: Vale S.A. adopts a multifaceted approach to managing risks and opportunities within the company, always seeking to balance these elements to maximize investment return and minimize potential losses. Vale's central strategy is diversification, investing in technology and innovation in the mining sector with a primary focus on less carbon-intensive technologies. | L25: In 2024, Vale spent USD 153.8 million on CAPEX and R&D in solutions for Scope 1 and 2 decarbonization.
B26: Risk | C26: Regulatory | D26: Regulation of emissions at international, national, regional or state level | E26: Cost | F26: The ambition of the International Maritime Organization (IMO) includes achieving net-zero emissions by or around 2050. The Organization is developing technical and economic mechanisms to enable the sector's energy transition, including carbon pricing. Intermediate goals include, but are not limited to: 1. Reduction of carbon intensity: The goal is to reduce the carbon intensity of international maritime transport by at least 40% by 2030, compared to 2018 levels. 2. Adoption of low-carbon technologies and fuels: By 2030, at least 5% of the energy consumed by international maritime transport should come from zero or near-zero emission technologies, fuels, and/or energy sources, aiming for an ambition of 10%. The implementation of carbon pricing involves different economic mechanisms that are still being studied and discussed; however, an increase in freight costs due to imposed pricing on ships is likely. | H26: High | I26: Indirect exposure of iron ore and energy transition metals businesses to risk. The financial exposure to risk is indirect and has a very high degree of uncertainty. | J26: Vale S.A. adopts a multifaceted approach to managing risks and opportunities within the company, always seeking to balance these elements to maximize investment return and minimize potential losses. Vale's central strategy is diversification, investing in technology and innovation in the mining sector with a primary focus on less carbon-intensive technologies. Regarding navigation, the company has the Ecoshipping program, which is an initiative to reduce carbon emissions and promote sustainability in maritime transport. It uses technologies such as rotor sails and hull lubrication, in addition to investing in low-carbon fuels. Vale also collaborates with ports and invests in research. | L26: The expenditure related to the Ecoshipping program was R$104 million in 2024.
B27: Risk | C27: Reputational | D27: Failure to meet the 2030 carbon target | E27: Reputational | F27: Reputational impact caused by failure to meet established targets such as Vale's "Failure to meet the 2030 Carbon Target," which is to reduce Scope 1 and 2 emissions by 33% by 2030. | H27: High | I27: Not applicable | J27: The Bowtie Risk Analysis method is used, with risk registration and monitoring through the Bwise system (Vale's Risk Management system). Preventive and mitigating controls have been created to manage the risk in question. | L27: In 2024, Vale spent USD 153.8 million on CAPEX and R&D in solutions for Scope 1 and 2 decarbonization.
B28: Opportunity | C28: General | D28: Growing demand for nickel, copper, and other energy transition metals. | E28: Revenue | F28: Growing demand for nickel, copper, and other energy transition metals. | H28: Não identificado | I28: Not applicable | J28: Not applicable | L28: Not applicable
B29: Opportunity | C29: General | D29: Aumento da procura de produtos e aglomerados de alta qualidade. | E29: Revenue | F29: Increased revenue due to demand for high-quality products and agglomerates. | H29: Não identificado | I29: Not applicable | J29: Not applicable | L29: Not applicable
B30: Risk | C30: Physical | D30: Chronic changes in climate patterns and extreme events | E30: Revenue and cost | F30: Variable. There is potential for process disruption, impacting revenue volume, and also the associated costs to adapt operations to mitigate the effects of climate change. | H30: To be determined. | I30: Variable. The potential for loss and damage can reach millions of dollars. | J30: The methodology is inspired by the Bowtie Risk Management Methodology. Vale has developed an adaptation strategy based on the inclusion of climate change variables in existing risk management processes, including climate scenarios - this allows for predicting potential future problems and reassessing controls, thus eliminating and/or minimizing impacts. | L30: In 2024, values were identified for long-term climate simulations and climate-related risk mapping, with the sum being immaterial for the company.
B35: GRI 201-3 (2016)
B37: Description: Defined benefit plan obligations and other retirement plans
B39: Year | C39: Vale's answer | I39: Assurance
B40: 2020 | C40: Brazilian employees of Vale and most of its Brazilian subsidiaries can participate in retirement plans managed by Valia. Most participants in Valia's plans are participants in a plan called “Vale Mais”, which Valia implemented in 2000. This plan is primarily a defined contribution plan with a defined benefit in relation to service prior to 2000 and other defined benefits to cover temporary or permanent disability, retirement and financial protection for dependents in the event of death. Valia also operates a defined benefit plan, closed to new members since May 2000, with benefits based on years of service, salary and social security benefits. This plan covers retired participants and their beneficiaries, as well as a relatively small number of employees who did not want to switch from the old plan to the “Vale Mais” plan, when it was established in May 2000. Employees of our base metals operations participate in defined benefit pension plans and defined contribution pension plans. Defined benefit plans have been closed to new participants since 2009, and all new employees in our Base Metals operations are eligible to participate in defined contribution pension plans. | I40: Independently audited by PriceWaterhouseCoopers Auditores Independentes in financial statements.
B41: 2021 | C41: Salaries and benefits for Vale and its subsidiaries are generally established on a business basis. Our benefits policy is in line with our attraction and retention strategy, in accordance with applicable laws and market practices in the countries where we operate. We provide an attractive and competitive benefits package that guarantees health, well-being, protection and quality of life. Among the main benefits offered are medical and dental assistance, life insurance, private pension plans and short- and long-term disability benefits. Brazilian employees of Vale and most of its Brazilian subsidiaries can participate in retirement plans managed by Valia. Most participants in Valia's plans are participants in a plan called “Vale Mais”, which Valia implemented in 2000. This plan is primarily a defined contribution plan with a defined benefit in relation to service prior to 2000 and other defined benefits to cover temporary or permanent disability, retirement and financial protection for dependents in the event of death. Valia also operates a defined benefit plan, closed to new members since May 2000, with benefits based on years of service, salary and social security benefits. This plan covers retired participants and their beneficiaries, as well as a relatively small number of employees who did not want to switch from the old plan to the “Vale Mais” plan, when it was established in May 2000. Employees of our base metals operations participate in defined benefit pension plans and defined contribution pension plans. Defined benefit plans have been closed to new participants since 2009, and all new employees in our Base Metals operations are eligible to participate in defined contribution pension plans. | I41: Independently audited by PricewaterhouseCoopers Auditores Independentes Ltda in financial statements
B42: 2022 | C42: Brazilian employees of Vale and most of its Brazilian subsidiaries can participate in retirement plans managed by Valia. Most participants in Valia's plans are participants in a plan called “Vale Mais”, which Valia implemented in 2000. This plan is primarily a defined contribution plan with a defined benefit in relation to service prior to 2000 and other defined benefits to cover temporary or permanent disability, retirement and financial protection for dependents in the event of death. Valia also operates a defined benefit plan, closed to new members since May 2000, with benefits based on years of service, salary and social security benefits. This plan covers retired participants and their beneficiaries, as well as a relatively small number of employees who did not want to switch from the old plan to the “Vale Mais” plan, when it was established in May 2000. Employees of our base metals operations participate in defined benefit pension plans and defined contribution pension plans. Defined benefit plans have been closed to new participants since 2009, and all new employees in our Base Metals operations are eligible to participate in defined contribution pension plans. | I42: Independently audited by PricewaterhouseCoopers Auditores Independentes Ltda in financial statements
B43: 2023 | C43: Brazilian employees of Vale and most of its Brazilian subsidiaries can participate in retirement plans administered by Valia. Most of the participants in Valia's plans are participants in a plan called "Vale Mais", which Valia implemented in 2000. This plan is primarily a defined contribution plan with a defined benefit in relation to pre-2000 service and other defined benefits to cover temporary or permanent disability, retirement, and financial protection for dependents in the event of death. Valia also operates a defined benefit plan, closed to new entrants since May 2000, with benefits based on years of service, salary and social security benefits. This plan covers retired participants and their beneficiaries, as well as a relatively small number of employees who did not want the change from the old plan to the "Vale Mais" plan when it was established in May 2000. The majority of employees in our base metals’ operations participate in defined benefit pension plans and defined contribution pension plans. Defined benefit plans have been closed to new entrants since 2009, and all new employees in our Base Metals’ operations are eligible to participate in defined contribution pension plans. In 2023, Vale Canada, as the administrator of Canadian defined benefit pension plans, completed the purchase of annuity contracts to transfer approximately US$ 836 million of pension plan obligations and associated assets to approximately 3,000 Canadian retirees and beneficiaries. | I43: -
B44: 2024 | C44: In Brazil, the Vale do Rio Doce Social Security Foundation (“Valia”) is responsible for managing the company’s private pension plans. Valia is a nonprofit organization with administrative and financial autonomy. The pension plans in Brazil are as follows: - “Vale Mais” and “Valiaprev” benefits plans – Most of the company’s employees who participate in Valia are enrolled in the Vale Mais pension plan, which has a defined benefit component (a paid-up benefit from the former defined benefit pension plan and coverage for death, permanent disability and sickness benefits) and a defined contribution component (for programmable benefits). The Valiaprev pension plan is similar to Vale Mais, except it does not include the paid-up benefit and sickness benefit. The Vale Mais and Valiaprev pension plans were in surplus as of December 31, 2024 and 2023. - Defined benefit plan – This pension plan has been closed to new members since the year 2000, when Vale Mais was launched. It is a private pension plan with defined benefit characteristics, which almost exclusively covers retirees and their beneficiaries. The plan was in surplus on December 31, 2024 and 2023 and the contributions made by the company to fund it are not material. - Complementary allowance benefit plan – The company sponsors a specific group of former employees entitled to receive supplementary payments on top of Valia’s normal benefits. The company’s contributions were terminated in 2014. The complementary allowance benefit plan was in surplus on December 31, 2024 and 2023. - Other benefits – The company sponsors health insurance plans for employees who meet specific criteria, as well as for those participating in the complementary allowance benefit plan. While they are not pension plans, actuarial calculations are used to estimate future obligations. Since these health insurance plans are unfunded, they were presented as liabilities on December 31, 2024 and 2023. Outside Brazil, our pension plans are administered according to their respective regions, divided between Canada, the United States and the United Kingdom. In Canada, the pension plans include both defined benefit and defined contribution components. Currently, the defined benefit plans are closed to new members. Most of the defined benefit plans outside Brazil were in deficit as of December 31, 2024 and 2023, and two plans were in surplus on the same dates. In December 2023, the company entered into annuity contracts to transfer US$836 million (R$4.178 billion) in pension plan obligations and their associated assets. This transaction resulted in the settlement and remeasurement of the pension plans. As a consequence, the company recognized a non-cash loss of US$5 (R$25 million) in its income statement, under “Other expenses.” This loss reflects the difference between the premiums paid and the obligations transferred. | I44: -
B45: Note: More detailed information on retirement plans can be found in the Financial Statements - IFRS (Chapter "Explanatory Notes to the Financial Statements" item "27. Employee benefits" sub-item "Obligations with retirement benefits").
B47: Links: | C47: Financial Statements | E47: Reference Form
B49: GRI 201-4 (2016)
B51: Description: Financial assistance received from the government.
B53: Year | C53: Vale's answer | I53: Assurance
B54: 2020 | C54: Within the concept of financial support received from the government, Vale has some tax incentives, which are informed in the Financial Statements and Fiscal Transparency Report, available for consultation. | I54: -
B55: 2021 | C55: Within the concept of financial support received from the government, Vale has some tax incentives, which are informed in the Financial Statements and Fiscal Transparency Report, available for consultation. | I55: -
B56: 2022 | C56: Within the concept of financial support received from the government, Vale has some tax incentives, which are informed in the Financial Statements and Fiscal Transparency Report, available for consultation. | I56: -
B57: 2023 | C57: Within the concept of financial support received from the government, Vale has some tax incentives, which are informed in the Financial Statements and Fiscal Transparency Report, available for consultation. | I57: -
B58: 2024 | C58: In terms of financial support received from the government, Vale benefits from certain tax incentives, which are reported in the Financial Statements and Fiscal Transparency Report,1 both of which are available for public consultation. | I58: -
B59: Notes: 1 The publication of the 2024 Tax Transparency Report will take place after the Integrated Report is published, to access it simply access the link in the table below.
B60: Links: | C60: Tax Transparency report | E60: Financial Statements
B62: GRI 202-1 (2016)
B64: Description: Ratios of standard entry level wage by gender compared to local minimum wage
B66: Year | C66: Vale's answer | I66: Assurance
B67: 2020 | C67: Vale respects the local minimum wage defined by law, and there is no difference in base wages between women and men who perform the same functions, as determined by the Human Resources Policy. | I67: Independently assured by Bureau Veritas Certification
B68: 2021 | C68: Vale respects the local minimum wage defined by law, and there is no difference in base wages between women and men who perform the same functions, as determined by the Human Resources Policy. | I68: -
B69: 2022 | C69: Vale remunerates 100% of its employees within the international parameters of the Living Wage global coalition (a term for living wages) , aimed at establishing remuneration standards necessary for the well-being of workers and their families. | I69: -
B70: 2023 | C70: We pay 100% of our employees a living wage1, according to an external evaluation carried out in 2022. Deductions or restrictions on remuneration that could result in the employee being indebted to the company are prohibited. | I70: -
B71: 2024 | C71: We pay 100% of our employees a living wage,1 corroborated by an external assessment carried out by Business for Social Responsibility (BSR), finalized in January 2025. This analysis used the Wage Indicator Benchmark, based on the remuneration practiced by Vale in 2024 and in line with the principles of the UN Global Compact’s Ambition 2030 and Decent Wage Movement. Pay deductions or restrictions that could result in employees owing money to the company are prohibited. | I71: -
B72: Note: 1 Paying a living wage means offering the amount necessary to provide a decent standard of living for workers and their families, taking into account the circumstances of each country and calculated on the work done during regular working hours.
B74: GRI 202-2 (2016)
B76: Description: Proportion of senior management hired from the local community
B78: Year | C78: Vale's answer | I78: Assurance
B79: 2020 | C79: 66% of own employees come from local communities 40% of senior management members are from the local hiring community | I79: Independently assured by Bureau Veritas Certification
B80: 2021 | C80: 54% of own employees come from local communities 45% of senior management members are from the local hiring community | I80: -
B81: 2022 | C81: 62% of own employees come from local communities 48% of senior management members are from the local hiring community | I81: -
B82: 2023 | C82: 60% of own employees come from local communities 34% of senior management members are from the local hiring community | I82: -
B83: 2024 | C83: 63% of employees come from local communities. 37% of senior management members are from the local hiring community. | I83: -
B84: Note: In Brazil, senior leadership is understood as the positions of President, Vice President, and Director; In other countries, senior leadership is understood as the positions of President, Vice President, Director, and General Managers. The definition of a local community employee takes into account the employee's state of birth, which must be the same as the workplace.
B86: GRI 203-1 (2016)
B88: Description: Investments in infrastructure and services supported
B90: Year | C90: Vale's answer | I90: Assurance
B91: 2020 | C91: In 2020, Vale contributed USD 1 billion in socio-environmental expenditures, including projects related to repairing the rupture of Dam I, in Brumadinho. In the social sphere, the largest investments were focused on health (43%) – including actions to combat Covid-19, urban infrastructure (12%), culture (12%), education (6%) and social protection (6% ), for a total of US$390 million. In the environmental field, the amount spent was USD 609.9 million, mainly related to water resources (21%), environmental liabilities (18%), waste (13%), environmental conservation (13%) and atmospheric emissions (11%) . | I91: Independently assured by Bureau Veritas Certification
B92: 2021 | C92: In 2021, Vale contributed USD 1.3 billion in socio-environmental expenditures, including those related to Brumadinho, which represented an increase of 28% compared to 2020. As for environmental expenditures, the contribution totaled USD 804.2 million, of which water, environmental liabilities and energy the biggest expenses. Social expenditures totaled USD 473.5, of which 73% came from own resources and 27% through incentive laws. The main expenditures were on urban infrastructure and mobility, culture, health and social protection. | I92: Independently assured by PricewaterhouseCoopers Auditores Independentes Ltda.
B93: 2022 | C93: In 2022, there were US$2.4 billion in socio-environmental and institutional expenditures, including those related to Brumadinho, which represented a 83% increase compared to 2021, as follows: - US$1,609 billion dedicated to social and institutional initiatives, of which 94% are own resources and 6% are investments from incentivized resources. The main expenses were in the areas of infrastructure and mobility, social protection, health, and culture. - US$766.9 million dedicated to environmental initiatives considering Vale's internal expenditures, with main expenses in environmental liabilities, water resources and atmospheric emissions. | I93: Independently assured by PricewaterhouseCoopers Auditores Independentes Ltda.
B94: 2023 | C94: In 2023, Vale contributed around USD 1.6 billion in socio-environmental and institutional expenditures, including those related to Brumadinho, as follows: - USD 677.3 million dedicated to social and institutional initiatives, of which approximately 40% is related to voluntary investment and institutional relations and operational impact management (USD 269 million); 41% are obligations (USD 277 million) and 19% are investments from Incentivized Resources1 (USD 131 million) - USD 913.9 million dedicated to environmental initiatives, considering Vale's internal and external expenditures | I94: Independently assured by PricewaterhouseCoopers Auditores Independentes Ltda.
B95: 2024 | C95: In 2024, Vale incurred USD 2.1 billion of social, environmental and institutional spending, including items related to Brumadinho, as follows: - USD 1.2 billion in environmental initiatives, especially aimed at environmental liabilities, atmospheric emissions, and water resources. - USD 0.9 billion dedicated to social and institutional initiatives, with a focus on infrastructure and mobility actions, social assistance and protection, Traditional Communities and Indigenous Peoples, and culture. | I95: -
B96: Notes: 1 Amount includes expenses with Incentive Laws and Pará Structure Program The concept of significant investments used for reporting indicator 203-1 can be verified on the "Base of Preparation" tab of this document.
B99: GRI 203-2 (2016)
B101: Description: Significant indirect economic impacts
B103: Year | C103: Vale's answer | I103: Assurance
B104: 2020 | C104: The significant indirect economic impacts identified were: ◦ Increased pressure on public infrastructure (health, education, security, social protection and housing); ◦ Increase in the local cost of living; ◦ Development of social investment and local development programs and actions; ◦ Development and hiring of local labor, suppliers and purchases of local products and services, generating an increase in tax collection and the public power's investment capacity; ◦ Increase in the population's income level, incentives for the expansion of the service sector, commercial activities and greater formalization of the economy; ◦ Strengthening community organization based on social participation in the company's initiatives and its value chain. | I104: Independently assured by Bureau Veritas Certification
B105: 2021 | C105: The significant indirect economic impacts identified in the socio-environmental studies presented for the environmental licensing processes were: • Increased pressure on public infrastructure (health, education, security, social protection and housing) • Road system overload • Change in the population's daily life, in social and cultural relationships built and uncomfortable for the population • Generation of Expectations Regarding Employability and Business • Generation of Expectations regarding the Land Negotiation • Strengthening Community Organization and Social Development • Generation of opportunities and new business • Development and hiring of local labor, suppliers and purchases of local products and services, generating an increase in tax collection and investment capacity of the public authorities • Increase in the population's income level, incentives for the expansion of the service sector, commercial activities and greater formalization of the economy | I105: -
B106: 2022 | C106: The significant indirect economic impacts identified in the socio-environmental studies presented for the environmental licensing processes were: • Increased pressure on public infrastructure (health, education, security, social protection and housing) • Road system overload • Change in the population's daily life, in social and cultural relationships built and uncomfortable for the population • Change in migration flow • Generation of Expectations Regarding Employability and Business • Generation of Expectations regarding the Land Negotiation • Strengthening Community Organization and Social Development • Generation of opportunities and new business • Development and hiring of local labor, suppliers and purchases of local products and services, generating an increase in tax collection and investment capacity of the public authorities • Increase in the population's income level, incentives for the expansion of the service sector, commercial activities and greater formalization of the economy Other information on the indirect economic impact can be verified in the "Material Issues" tab of this document in the Management Form of the theme Local Communities. | I106: -
B107: 2023 | C107: The significant indirect economic impacts identified in the socio-environmental studies presented for the environmental licensing processes were: Positive: - Improvement of local accessibility - Dynamization of economic activities - Strengthening Community Organization and Social Development - Development of local suppliers - Generation of direct and indirect jobs - Tax Revenue Collection - Local development - Demands for services, equipment and inputs with local suppliers - Inclusion of workers in the social safety net - Improvement of local employability conditions - Increase in household income and purchasing power of the population - Dynamization of the tertiary sector - Generation of opportunities and new business - Strengthening of companies by increasing the demand for goods and services - Preparation for the labour market. Negative: - Nuisances associated with mobility, noise, vibration and particulate emissions. - Generation of vehicle and people traffic - Alteration in the social and cultural relations built - Change in Pressure on Public Services and Equipment - Changing Demographic Dynamics - Alteration of the Daily Life of Populations - Loss of Archaeological Heritage - Negative impact on fishing areas due to the creation of an exclusion zone - Alteration of the Health Conditions of the Population - Generation of Expectations regarding Land Negotiation - Generation of Expectations regarding Employability and Business - Alteration of existing productive activities - Disorderly occupation of urban space - Increase in the sale and rental value of properties - Changing Economic Dynamics - Change in the Labour and Goods and Services Market - Generation of expectations in the population - Visual disturbance due to the alteration of the landscape. | I107: -
B109: 2024 | C109: The following significant indirect economic impacts were identified in the social and environmental studies submitted for environmental licensing processes: Positive: - Improved local accessibility - Boosting of economic activities - Strengthening of production chains and social development - Development of local suppliers - Direct and indirect job creation - Tax revenue - Local development - Integration of workers into the social security system - Improved local employability conditions - Increase in the population’s purchasing power - Generation of opportunities and new businesses - Strengthening of companies through increased demand for goods and services - Enhancement of local workforce Negative: - Changes in social and cultural relations - Changes in pressure on public services and facilities - Changes in demographic dynamics - Changes in people’s everyday lives - Loss of archaeological heritage - Negative impact on fishing areas due to creation of exclusion zones - Creation of expectations regarding land and property negotiations - Changes in existing productive activities - Changes in economic dynamics - Changes in labor, goods and services markets - Generation of expectations among the population - Visual disturbance due to landscape changes | I109: -
B112: GRI 204-1 (2016)
B114: Description: Proportion of spending on local suppliers
B116: Year | C116: Vale's answer | I116: Assurance
B117: 2020 | C117: In 2020, the percentage of Vale's local purchases, considering purchases made within the states/provinces of the operations that made the purchases, was 52%. | I117: -
B118: 2021 | C118: In 2021, the percentage of Vale's local purchases, considering purchases made within the states/provinces of the operations that made the purchases, was 53%. | I118: -
B119: 2022 | C119: In 2022, the percentage of Vale's local purchases, considering purchases made within the states/provinces of the operations that made the purchases, was 56%. | I119: -
B120: 2023 | C120: In 2023, the percentage of Vale's local purchases, considering purchases made within the states/provinces of the operations that made the purchases, was 55%. | I120: -
B121: 2024 | C121: In 2024, 58% of Vale’s purchases were categorized as local, defined as purchases made within the states or provinces where the operations that made the purchases are located. | I121: -
B122: Note: The data has no differentiation of important Operational Units, as these are the values referring to local purchases for the entire company. The reporting will be improved for the next cycles.
B125: GRI 205-1 (2016)
B127: Description: Operations assessed for risks related to corruption
B129: Year | C129: Vale's answer | I129: Assurance
B130: 2020 | C130: 17 controls related to Vale's anti-corruption rules, 6 of which are classified as key controls. They are: socio-environmental investments, donations and sponsorships, suppliers in general, high-risk suppliers, hiring public agents and training. These controls are replicated to 41 risk owners (first line of defense), who must monitor their areas more closely, bearing in mind Vale's risk methodology, based on the three lines of defense. 100% of Vale's operations are covered by such controls and were assessed for risks related to corruption. | I130: Independently assured by Bureau Veritas Certification
B131: 2021 | C131: In 2021, 100% of Vale's operations were subject to an assessment of risks related to corruption, the Corporate Integrity model of operation is segmented by region and not by line of business. We have 3 regions: Latin America and Africa; Canada and Europe; APME. These risks are deployed internally among the areas according to the degree of exposure to corruption and have associated controls and clear anti-corruption rules. In total, 17 controls are related to Vale's anti-corruption rules, six of which are classified as key controls and related to approvals of socio-environmental investments, specific conditions for donations and sponsorships, suppliers in general, high-risk suppliers, hiring public agents and Ethics & Compliance Program training. | I131: Independently assured by PricewaterhouseCoopers Auditores Independentes Ltda.
B132: 2022 | C132: In 2022, 100% of Vale's operations (57 operating units) were subject to an assessment of risks related to corruption, the Corporate Integrity model of operation is segmented by region and not by business line. We have 3 regions: Latin America and Africa; Canada and Europe; APME. These risks are deployed internally among the areas according to the degree of exposure to corruption and have associated controls and clear anti-corruption rules. In total, 19 controls are related to Vale's anti-corruption rules, six of which are classified as key controls and related to approvals of socio-environmental investments, specific conditions for donations and sponsorships, suppliers in general, high-risk suppliers, hiring public agents and Ethics & Compliance Program training. | I132: Independently assured by PricewaterhouseCoopers Auditores Independentes Ltda.
B133: 2023 | C133: In 2023, 100% of Vale's operations (57 operating units) were submitted to a risk assessment related to corruption, the Corporate Integrity operating model is segmented by regions and not by line of business. We have 3 regions: Latin America and Africa; Canada and Europe; APME. These risks are deployed internally across areas according to the degree of exposure to corruption and have associated controls and clear anti-corruption rules. In total, 17 controls are related to Vale's anti-corruption rules, five of which are classified as key controls and related to approvals of social and environmental investments, specific conditions for donations and sponsorships, suppliers in general, high-risk suppliers, hiring of public agents and Ethics & Compliance Program training. | I133: Independently assured by PricewaterhouseCoopers Auditores Independentes Ltda.
B134: 2024 | C134: In 2024, 100% of Vale’s operations (52 operating sites) underwent a corruption risk assessment. The company’s corporate integrity operating model is segmented by region rather than by business line. We have three regions: (1) Americas, (2) Asia Pacific, Europe, and Middle East; (3) Canada, Indonesia, and Japan. These risks are analyzed internally across different areas according to the degree of exposure to corruption and they have associated controls and clear anti-corruption rules. In all, there are 15 controls related to Vale’s anti-corruption rules. Five of them are classified as key controls. They are related to approvals of social and environmental investments, suppliers in general, high-risk suppliers, hiring of public officials, and Ethics and Compliance Program training. | I134: Independently assured by PricewaterhouseCoopers Auditores Independentes Ltda.
B135: Note: Reports prior to 2020 referred to due diligences carried out for transactions with Vale. As of 2020, we changed the criteria and are reporting more in line with the company's risk map. We started to report the number of controls we have related to anti-corruption rules. In Vale's consolidated risk map, there are 3 potential risks related to corruption pointed out. They are: (1) public agent corruption; (2) liabilities from unlawful acts related to corruption due to corporate transactions; and (3) undue influence during the investigation process, related to corruption, conducted by public bodies. And for these 3 potential risks mentioned, Vale has 15 controls related to anti-corruption rules, 13 of which are preventive and 2 are mitigating.
B138: GRI 205-2 (2016)
B140: Description: Communication and training on anti-corruption policies and procedures
B142: Year | C142: Vale's answer | I142: Assurance
B143: 2020 | C143: 82.88% of own employees participated in the Movement for Integrity, which addresses ethics and integrity issues. 79.16% of employees received specific training on anti-corruption policies and rules. 1,603 employees from areas classified as priority (more sensitive to the risk of corruption) received specific and targeted training on Vale's anti-corruption rules. 57% of senior governance employees were informed about the anti-corruption policy and procedures. Regarding training on the subject, in 2020, no specific training was carried out on anti-corruption rules for Vale's senior governance, which from 2020 became biannual. Only follow-up meetings were held. Training for this audience was carried out in 2019 and will be repeated in 2021. With regard to commercial partners, 2.46% suppliers (100% of those classified as high risk) were informed about the organization's anti-corruption policy and procedures. | I143: Independently assured by Bureau Veritas Certification
B144: 2021 | C144: In 2021, 83.54% of Vale's workforce signed the new Code acknowledgment and commitment term. 100% of senior management (50 members), directors, executive managers, supervisors, area managers and coordinators were informed about the anti-corruption policy and procedures adopted by the organization. Regarding the staffs, 72% were notified. For business partners, 1597 partners (2.4%) were informed about Vale's anti-corruption policy. This percentage takes into account only suppliers classified as “high risk” of corruption that have active contracts with Vale. All suppliers at high risk of corruption must receive a copy of Vale's anti-corruption guide and adhere to its terms. In 2021, mass communication actions were also carried out for Vale's suppliers, including the release of a message from the company's leadership on the International Day Against Corruption: http://www.vale.com/brasil/PT/aboutvale/ news/Pages/dia-internacional-contra-a-corrupcao-learn-more-about-the-valley-commitment-to-ethics.aspx. We carried out the first global edition of the conflict of interest campaign at a global level, with the participation of 34,422 employees (64.17% of employees with access to a computer). In the year, there was also the launch of a new online ethics and compliance course, where 89.0% of the staff was trained. With regard to high governance, 74% of members were trained in combating corruption. | I144: Independently assured by PricewaterhouseCoopers Auditores Independentes Ltda.
B145: 2022 | C145: About notices regarding Vale's anti-corruption policies and procedures: • The 22 members (100%) of Vale's top leadership received communications about the company's anti-corruption rules, participated in the Ethics Week and/or accountability meetings of the Ethics & Compliance Program; • 100% of senior leadership (22 members), directors (40 employees), executive managers (159 employees), supervisors (2748 employees), area managers and coordinators (2166 employees) were informed about the anti-corruption policy and procedures adopted by organization. Regarding the staffs, 74% (43757 employees with access to e-mail) were notified. • With regard to commercial partners, 525 were communicated on the subject, representing 6% of the partners. This percentage takes into account only suppliers classified as “high risk” of corruption that have active contracts with Vale. All suppliers at high risk of corruption must receive a copy of Vale's anti-corruption guide available at https://vale.com/fornecedores On anti-corruption training: • More than 60,000 Vale employees received training, representing 93% of the workforce; • 20 members (91%) of Vale's senior management, including the Executive Committee and Board of Directors, underwent training. | I145: Independently assured by PricewaterhouseCoopers Auditores Independentes Ltda.
B146: 2023 | C146: Communications regarding Vale’s anti-corruption policies and procedures: • All 22 members (100%) of Vale’s top leadership received communications about the company’s anti-corruption rules and participated in Ethics Week activities and/or reporting meetings as part of the Ethics and Compliance Program. • The following people were informed of the company’s anti-corruption policy and procedures: 100% of top management (22 people, comprising nine members of the Executive Committee, including the CEO, and 13 members of the Board of Directors), 96.0% of directors (217 employees), 100% of general managers (292 employees), 99.2% of managers (1,189 employees), 99.3% of coordinators (973 employees), 100% of supervisors (2,749 employees), 87.2% of technical specialists (130 employees), 97.2% of administrative staff (1,557 employees), 98.8% of operational staff (45,538 employees) and 99.8% of professional technicians (12,474 employees). • With regard to business partners, 492 were informed about this subject, representing 6% of partners. This percentage only includes suppliers classified as being at “high risk” of corruption that have active contracts with Vale. All high-risk suppliers are required to receive a copy of Vale’s anti-corruption guide, available at https://vale.com/en/suppliers. Anti-corruption training: • More than 63,000 of Vale’s employees received training, representing 95.7% of the company’s workforce. • 20 members (90.9%) of Vale’s top governance bodies, namely the Executive Committee and Board of Directors, underwent training. | I146: Independently assured by PricewaterhouseCoopers Auditores Independentes Ltda.
B147: 2024 | C147: Communications regarding Vale’s anti-corruption policies and procedures: • The following people were informed of the company’s anti-corruption policy and procedures: 100% of top management (23 people, comprising 10 members of the Executive Committee, including the CEO, and 13 members of the Board of Directors), 95.4% of directors (206 employees), 100% of general managers (320 employees), 99.9% of managers (1,114 employees), 99.9% of coordinators (1,057 employees), 100% of supervisors (2,601 employees), 99.5% of technical specialists (191 employees), 97.2% of administrative staff (1,392 employees), 98.1% of operational staff (43,296 employees) and 99.5% of professional technicians (13,483 employees). • With regard to business partners, 1,055 were informed about this subject, representing 13% of partners. This percentage takes into account two criteria. (1) Suppliers classified as 'high risk' of corruption who have active contracts with Vale. All high-risk corruption suppliers must receive a copy of Vale's anti-corruption guide available on the website https://vale.com/suppliers. (2) Suppliers with active contracts who also participated in Anti-Corruption or Ethics & Compliance training were also considered. Anti-corruption training: • More than 61,000 of Vale’s employees received training, representing 95.2% of the company’s workforce. • Seven members (30.4%) of Vale’s top governance bodies, namely the Executive Committee and Board of Directors, underwent training. | I147: -
B148: Note: Corrections were made to the percentages of employees trained in 2023, across all functional categories (GRI 2-4).
B150: Country | C150: Employees (GRI 2-7) | D150: Total people communicated | E150: % of people communicated | F150: Total people who received training | G150: % of people who received training | H150: Total number of people who received specific training | I150: % of people who received specific training
B151: Brazil | C151: 55,663 | D151: 55,084 | E151: 99.0% | F151: 53,850 | G151: 0.967 | H151: 1,964 | I151: 0.035
B152: Argentina | C152: 1 | D152: 1 | E152: 100% | F152: 1 | G152: 1 | H152: 0 | I152: 0
B153: Australia | C153: 11 | D153: 11 | E153: 100% | F153: 11 | G153: 1 | H153: 0 | I153: 0
B154: Canada | C154: 7,262 | D154: 6,894 | E154: 94.9% | F154: 6,033 | G154: 0.831 | H154: 188 | I154: 0.026
B155: Chile | C155: 16 | D155: 16 | E155: 100% | F155: 14 | G155: 0.875 | H155: 5 | I155: 0.313
B156: China | C156: 138 | D156: 136 | E156: 98.6% | F156: 134 | G156: 0.971 | H156: 70 | I156: 0.507
B157: India | C157: 1 | D157: 1 | E157: 100% | F157: 1 | G157: 1 | H157: 0 | I157: 0
B158: Indonesia | C158: 92 | D158: 92 | E158: 100% | F158: 90 | G158: 0.978 | H158: 28 | I158: 0.304
B159: Japan | C159: 80 | D159: 80 | E159: 100% | F159: 80 | G159: 1 | H159: 2 | I159: 0.025
B160: Malaysia | C160: 394 | D160: 394 | E160: 100% | F160: 394 | G160: 1 | H160: 13 | I160: 0.033
B161: Netherlands | C161: 19 | D161: 19 | E161: 100% | F161: 18 | G161: 0.947 | H161: 3 | I161: 0.158
B162: Oman | C162: 598 | D162: 598 | E162: 100% | F162: 592 | G162: 0.99 | H162: 68 | I162: 0.114
B163: Peru | C163: 24 | D163: 23 | E163: 95.8% | F163: 20 | G163: 0.833 | H163: 7 | I163: 0.292
B164: Singapore | C164: 40 | D164: 40 | E164: 100% | F164: 38 | G164: 0.95 | H164: 7 | I164: 0.175
B165: Switzerland | C165: 52 | D165: 52 | E165: 100% | F165: 52 | G165: 1 | H165: 7 | I165: 0.135
B166: Dubai, United Arab Emirates | C166: 16 | D166: 16 | E166: 100% | F166: 16 | G166: 1 | H166: 10 | I166: 0.625
B167: United Kingdom | C167: 200 | D167: 200 | E167: 100% | F167: 169 | G167: 0.845 | H167: 6 | I167: 0.03
B168: United States | C168: 3 | D168: 3 | E168: 100% | F168: 1 | G168: 0.333 | H168: 2 | I168: 0.667
B169: Global Total, Vale | C169: 64,610 | D169: 63,660 | E169: 0.985 | F169: 61,514 | G169: 0.952 | H169: 2,380 | I169: 0.037
B170: Note: Members of the Board of Directors were not included, as they are not employees.
B173: GRI 205-3 (2016)
B175: Description: Confirmed cases of corruption and measures taken
B177: Year | C177: Vale's answer | I177: Assurance
B178: 2020 | C178: In 2020, 7 cases of private corruption were confirmed, in all cases employees were dismissed or punished. There was also the blocking of 3 suppliers after verification. There were no corruption-related lawsuits filed against the organization or its employees during the reporting period. | I178: Independently assured by Bureau Veritas Certification
B179: 2021 | C179: In 2021, no cases of corruption involving public agents were identified. Through the company's Whistleblower Channel, 3 cases of bribery involving private companies were identified, all of which resulted in actions to terminate the employees involved. There were no corruption-related legal proceedings filed/initiated between January 1 and December 31, 2021. | I179: Independently assured by PricewaterhouseCoopers Auditores Independentes Ltda.
B180: 2022 | C180: In 2022, 4 cases of private corruption were confirmed, which resulted in the dismissal of an employee and a notification to a third party. There were no cases of termination or non-renewal of contracts due to corruption in any jurisdiction. Vale is a party to confidential and non-confidential judicial, administrative and arbitration proceedings, considered relevant individually or jointly, and, based on applicable legislation and regulations, duly discloses such proceedings in its Reference Form available on the company's website : https://vale.com/pt/comunicados-resultados-apresentacoes-e-reports. | I180: Independently assured by PricewaterhouseCoopers Auditores Independentes Ltda.
B181: 2023 | C181: In 2023, 2 cases of private corruption were confirmed. In the first case, the accused was demobilized from the contract during the investigation process for low performance, in the second case, the employee will be terminated for misconduct, in addition to its low performance, according to the ongoing action plan. There have been no cases of termination or non-renewal of contracts due to corruption in any jurisdiction. Vale is a party to confidential and non-confidential judicial, administrative and arbitration proceedings, considered relevant individually or jointly, and, based on the applicable laws and regulations, duly discloses such proceedings in its 2023 Reference Form. | I181: Independently assured by PricewaterhouseCoopers Auditores Independentes Ltda.
B182: 2024 | C182: In 2024, no cases of corruption involving public officials were identified. One case of private corruption was confirmed. In this case, an analyst was found to have received illegal payments from suppliers, in collusion with the coordinator and other analysts in the area. All the employees involved in this case were dismissed. There were no cases of termination or non-renewal of contracts due to corruption in any jurisdiction. Vale is a party to confidential and non-confidential judicial, administrative and arbitration proceedings, considered relevant individually or jointly, and, based on applicable legislation and regulations, duly disclosed such proceedings in its 2024 Reference Form, submitted to the Brazilian Securities and Exchange Commission (CVM). | I182: Independently assured by PricewaterhouseCoopers Auditores Independentes Ltda.
B183: Links: | C183: Reference Form
B185: GRI 206-1 (2016)
B187: Description: Legal actions for anti-competitive behavior, anti-trust, and monopoly practices
B189: Year | C189: Vale's answer | I189: Assurance
B190: 2020 | C190: There were no lawsuits for competitive behavior, antitrust and monopoly practices | I190: Independently assured by Bureau Veritas Certification
B191: 2021 | C191: There were no lawsuits for competitive behavior, antitrust and monopoly practices | I191: -
B192: 2022 | C192: There were no lawsuits for competitive behavior, antitrust and monopoly practices | I192: -
B193: 2023 | C193: There were no lawsuits for competitive behavior, antitrust and monopoly practices | I193: -
B194: 2024 | C194: There were no lawsuits against the company for anticompetitive, antitrust or monopolistic practices. | I194: -
B197: GRI 207-1 (2019)
B199: Description: Approach to tax
B201: Year | C201: Vale's answer | I201: Assurance
B202: 2022 | C202: The data referring to this indicator was not part of the assurance reporting scope, since the Tax Transparency Report will be published after the publication date of the Integrated Report. The data should be consulted through the link: https://www.vale.com/en/comunicados-resultados-apresentacoes-e-relatorios. | I202: -
B203: 2023 | C203: Vale discloses its approach to tax risks, its approach to tax planning and other general guidelines through its Tax Compliance Policy - POL-0046-G. The data referring to this indicator that are not in the Tax Compliance Policy were not part of the scope of assurance reporting, since the Tax Transparency Report that will contain references to this indicator will be released after the date of publication of the Integrated Report. The data should be consulted through the link below. | I203: -
B204: 2024 | C204: Vale discloses its approach to tax risks, its approach to tax planning and other general guidelines in its Tax Compliance Policy – POL-0046-G. The data relating to this indicator was not part of the scope of the assurance report, since the Tax Transparency Report will contain references to this indicator and will be published after the date of publication of the Integrated Report. This data should be consulted via the link below. | I204: -
B206: Links: | C206: Tax Policy - POL-0046-G | E206: Tax Transparency Report
B208: GRI 207-2 (2019)
B210: Description: Tax governance, control and risk management
B212: Year | C212: Vale's answer | I212: Assurance
B213: 2022 | C213: The data referring to this indicator was not part of the assurance reporting scope, since the Tax Transparency Report will be published after the publication date of the Integrated Report. The data should be consulted through the link: https://www.vale.com/en/comunicados-resultados-apresentacoes-e-relatorios. | I213: -
B214: 2023 | C214: Vale discloses its approach to tax risks, its approach to tax planning and other general guidelines through its Tax Compliance Policy - POL-0046-G. The data referring to this indicator that are not in the Tax Compliance Policy were not part of the scope of assurance reporting, since the Tax Transparency Report that will contain references to this indicator will be released after the date of publication of the Integrated Report. The data should be consulted through the link below. | I214: -
B215: 2024 | C215: Vale discloses its approach to tax risks, its approach to tax planning and other general guidelines in its Tax Compliance Policy – POL-0046-G. The data relating to this indicator was not part of the scope of the assurance report, since the Tax Transparency Report will contain references to this indicator and will be published after the date of publication of the Integrated Report. This data should be consulted via the link below. | I215: -
B217: Links: | C217: Tax Policy - POL-0046-G | E217: Tax Transparency report
B219: GRI 207-3 (2019)
B221: Description: Stakeholder engagement and management of concerns related to tax
B223: Year | C223: Vale's answer | I223: Assurance
B224: 2022 | C224: The data referring to this indicator was not part of the assurance reporting scope, since the Tax Transparency Report will be published after the publication date of the Integrated Report. The data should be consulted through the link: https://www.vale.com/en/comunicados-resultados-apresentacoes-e-relatorios. | I224: -
B225: 2023 | C225: Vale discloses its approach to tax risks, its approach to tax planning and other general guidelines through its Tax Compliance Policy - POL-0046-G. The data referring to this indicator that are not in the Tax Compliance Policy were not part of the scope of assurance reporting, since the Tax Transparency Report that will contain references to this indicator will be released after the date of publication of the Integrated Report. The data should be consulted through the link below. | I225: -
B226: 2024 | C226: Vale discloses its approach to tax risks, its approach to tax planning and other general guidelines in its Tax Compliance Policy – POL-0046-G. The data relating to this indicator was not part of the scope of the assurance report, since the Tax Transparency Report will contain references to this indicator and will be published after the date of publication of the Integrated Report. This data should be consulted via the link below. | I226: -
B228: Links: | C228: Tax Policy - POL-0046-G | E228: Tax Transparency report
B230: GRI 2-27 (2021)
B232: Description: Compliance with laws and regulations
B233: Note: The information reported in this indicator was independently assured by PricewaterhouseCoopers Auditores Independentes Ltda.
B234: Region | C234: Vale's answer
C235: Non-monetary sanctions and fines for significant1 cases in 2024
C236: Environment | E236: Social | G236: Mining regulation | I236: Labor | K236: Others1
C237: Non-monetary sanctions | D237: Fines | E237: Non-monetary sanctions | F237: Fines | G237: Non-monetary sanctions | H237: Fines | I237: Non-monetary sanctions | J237: Fines | K237: Non-monetary sanctions | L237: Fines
B238: South America | C238: 3 | D238: 5 | E238: 0 | F238: 0 | G238: 0 | H238: 107² | I238: 0 | J238: 0 | K238: 0 | L238: 0
B239: North America | C239: 0 | D239: 0 | E239: 0 | F239: 0 | G239: 0 | H239: 0 | I239: 0 | J239: 0 | K239: 0 | L239: 0
B240: Europe | C240: 0 | D240: 0 | E240: 0 | F240: 0 | G240: 0 | H240: 0 | I240: 0 | J240: 0 | K240: 0 | L240: 0
B241: Asia | C241: 0 | D241: 0 | E241: 0 | F241: 0 | G241: 0 | H241: 0 | I241: 0 | J241: 0 | K241: 0 | L241: 0
B242: Notes: ¹ For information on the definition of the term “significant,” as well as the other legal areas covered by the report, which are addressed in the “Other” column of the tables, see the Databook’s “Glossary – Preparation Basis” tab. ² These correspond to 107 infraction notices for noncompliance with regulatory standards issued between 2021 and 2022. At the time the infraction notices were issued, requests for reconsideration were filed with the National Mining Agency and, in 2024, decisions were published rejecting the requests for reconsideration and imposing the fines. Of these 107 infraction notices, new appeals were filed for 101. The company paid the fines for the other six in 2024.
B245: Region | C245: Vale's answer
C246: Fines paid in the reporting year | H246: Total monetary value of fines paid in the reporting year (USD)
C247: Environment | D247: Social | E247: Mining regulation | F247: Labor | G247: Others | H247: Environment | I247: Social | J247: Mining regulation | K247: Labor | L247: Others
B248: South America | C248: 5 | D248: 19 | E248: 6 | F248: 44 | G248: 3 | H248: 187560.5529 | I248: 80500.74955 | J248: 5862.803341 | K248: 777300.6328 | L248: 19427.91466
B249: North America | C249: 0 | D249: 0 | E249: 0 | F249: 0 | G249: 0 | H249: 0 | I249: 0 | J249: 0 | K249: 0 | L249: 0
B250: Europe | C250: 0 | D250: 0 | E250: 0 | F250: 0 | G250: 0 | H250: 0 | I250: 0 | J250: 0 | K250: 0 | L250: 0
B251: Asia | C251: 0 | D251: 0 | E251: 0 | F251: 0 | G251: 0 | H251: 0 | I251: 0 | J251: 0 | K251: 0 | L251: 0
B254: SASB - EM-MM-510a.1
B256: Description: Description of the management system for preventing corruption and bribery throughout the value chain
B258: Year | C258: Vale's answer | I258: Assurance
B259: 2020 | C259: By determination of the Board of Directors, with the recommendation of the Extraordinary Investigation Independent Advisory Committee, Vale created the Compliance Board in March 2020. The Chief Compliance Officer (CCO), appointed in July 2020, is directly linked to the Board of Directors and continuously interacts with the Audit Committee, granting a degree of autonomy and independence from the other executive structures of the company. The CCO is responsible for supervising the Whistleblower Channel, the Internal Audit and the Corporate Integrity area. Vale has a channel for registering cases of non-compliance with the Code of Conduct and legislation. The channel is operated by an independent company and structured to guarantee absolute secrecy, protecting the whistleblower's anonymity and preserving the information so that a fair investigation can occur. Vale's compliance and ethics standards adhere to the recommendations of the United Nations, the International Council on Mining and Metals (ICMM), the eight Fundamental Conventions of the International Labor Organization (ILO) and the Extractive Industry Transparency Initiative (EITI). | I259: -
B260: 2021 | C260: Vale has zero tolerance for corruption and bribery. The company's anti-corruption rules are mechanisms to ensure compliance with all applicable anti-corruption laws, including the US Foreign Corrupt Practices Act (FCPA), the Brazilian Anti-Corruption Law (Law No. Act. The Global Anti-Corruption Policy is the main document on the subject and reiterates Vale's commitment to doing business with integrity. Employees also rely on the Global Anti-Corruption Handbook for practical guidance. Suppliers, on the other hand, must follow the guidelines of the Anti-Corruption Guide, developed especially for third parties. Vale acts in compliance with the laws and regulations to which it is subject, including, but not limited to, Law 12,846/13 – Brazilian Anti-Corruption Law, the FCPA, U.S. Foreign Corrupt Practices Act and the UK Bribery Act. | I260: -
B261: 2022 | C261: Vale has zero tolerance for corruption and bribery. In addition to the Code of Conduct, the Ethics & Compliance Program presents anti-corruption rules. The Global Anti-Corruption Policy is the main document on the subject and reiterates Vale's commitment to doing business with integrity. Employees also rely on the Global Anti-Corruption Handbook for practical guidance. Suppliers, on the other hand, must follow the guidelines of the Guide to combat corruption, developed especially for third parties. Vale acts in accordance with the laws and regulations to which it is subject, including but not limited to Law 12,846/13 - Brazilian Anti-Corruption Law, the FCPA, U.S. Foreign Corrupt Practices Act and the UK Bribery Act. | I261: -
B262: 2023 | C262: Vale has zero tolerance for corruption and bribery. In addition to the Code of Conduct, the Ethics & Compliance Program presents anti-corruption rules. The Global Anti-Corruption Policy is the main document on the subject and reiterates Vale's commitment to doing business with integrity. Employees also rely on the Global Anti-Corruption Handbook for practical guidance. Suppliers, on the other hand, must follow the guidelines of the Guide to combat corruption, developed especially for third parties. Vale acts in accordance with the laws and regulations to which it is subject, including but not limited to Law 12,846/13 - Brazilian Anti-Corruption Law, the FCPA, U.S. Foreign Corrupt Practices Act and the UK Bribery Act. | I262: -
B263: 2024 | C263: The Vale Ethics & Compliance Program represents an evolution in the management of ethics and integrity issues, which have always been part of the company's management model. The program, structured to prevent, detect, and correct misconduct, is based on seven pillars: (1) Governance, (2) Guidelines, (3) Communication and Training, (4) Risk Analysis, (5) Monitoring and Control, (6) Whistleblower Channel, and (7) Consequence Management. The Audit and Compliance Department is responsible for the Vale Ethics & Compliance Program. Reporting directly to the Board of Directors, the department is supervised by the Audit and Risk Committee and works in partnership with the Conduct and Integrity Committee. This structure reflects our ongoing commitment to the highest standards of ethics and corporate governance. The program's guidelines include the Code of Conduct and anti-corruption rules. The Global Anti-Corruption Policy is the main document on the subject and reiterates Vale's commitment to conducting business with integrity. Employees also have the Global Anti-Corruption Manual for practical guidance. Suppliers must follow the guidelines of the Anti-Corruption Guide, developed especially for third parties. Corporate Integrity acts as the 2nd line of defense specializing in the management of Corruption Risk in our company. As part of this work, the Corporate Integrity area conducts a series of analyses on suppliers and third parties; external socio-environmental and institutional expenditures; conflicts of interest; gifts, travel, and hospitality. We also have a methodology for continuous assessment of corruption risk, which allows our monitoring, communication, and training actions to be customized according to the level of risk exposure of each area. | I263: -
B266: SASB - EM-MM-510a.2
B268: Description: Production in countries that have the 20 lowest corruption perception scores from Transparency International
B270: Year | C270: Vale's answer | I270: Assurance
B271: 2020 | C271: Vale does not have operations in any of the 20 worst countries listed in the Transparency International corruption perception ranking. | I271: -
B272: 2021 | C272: Vale does not have operations in any of the 20 worst countries listed in the Transparency International corruption perception ranking. | I272: -
B273: 2022 | C273: Vale does not have operations in any of the 20 worst countries listed in the Transparency International corruption perception ranking. | I273: -
B274: 2023 | C274: Vale does not have operations in any of the 20 worst countries listed in the Transparency International corruption perception ranking. | I274: -
B275: 2024 | C275: Vale does not have operations in any of the 20 worst countries listed in the Transparency International corruption perception ranking. | I275: -
B278: SASB EM-MM-000.A
B280: Descrição: Production of (1) metal ores and (2) finished metal products
B283: 2024
B284: Iron Ore Solutions (thousand metric tons)
B285: Iron ore fines | D285: 327675
... 78 more rows

Sheet Economic Data Backup (hidden)
I4: ESG Databook 2024
B8: Economic
B10: GRI 201-2 (2016)
B12: Description: Financial implications and other risks and opportunities due to climate change
B14: Year | C14: Vale's answer | I14: Assurance
B15: 2020 | C15: Physical Risk: Impacts associated with climate change, such as increased temperatures, changes in precipitation patterns, extreme events and rising sea levels can negatively impact operations, workforce and surrounding communities and environment. Among the potential implications, there may be a production stoppage, the need for repairs and modifications to infrastructure, among others. Financial implications before taking preventive measures is variable. The loss of machinery and production downtime can eventually run into millions of dollars. For risk management, Vale has developed an adaptation strategy based on the inclusion of climate change variables in existing risk management processes - this makes it possible to predict possible future problems and reassess controls, eliminating and/or minimizing thus the impacts. Regulatory Risk: A carbon pricing may imply additional costs, both directly and indirectly, which in turn may impact the competitiveness of companies. Carbon pricing can impact the company in three main ways: (i) operating costs; (ii) cost of electricity; (iii) fuel costs. As a way of managing risk, Vale monitors climate legislation in areas where Vale operates and maintains engagement in the process of developing regulations, either directly or through forums and associations in which Vale participates. General Risk: A change in the pattern of coal consumption as a result of the perception of it as a highly emitting product could impact the demand for the commodity in the future. Vale conducts regulatory monitoring of the pricing of greenhouse gas emissions, mainly in the countries where its customers are located. Among the opportunities arising from climate change are: replacing the purchase of electricity with self-production of clean and/or renewable energy; Greater demand for less carbon intensive products could positively impact Vale, which has the lowest carbon intensity per unit of gross revenue among large mining companies; Vale identifies as an opportunity the maintenance of the forest carbon stock, mainly in Brazil, in the context of defining the national carbon market. | I15: Independently assured by Bureau Veritas Certification
B16: 2021 | C16: At Vale, we assess transition risks (i.e. carbon prices, reputation issues, new technology issues) and physical risks (i.e. operational impacts caused by climate variables) related to climate change in accordance with the TCFD recommendation . Our Climate Change Team works with our Risk Management Team to constantly map transition risks related to climate change recorded in Vale's Bwise System. As for physical risks, we have developed a methodology called "Vale Climate Forecast" to deal with short- and long-term risks related to physical impacts on our assets. For more information, please consult Vale's Climate Change Report: http://www.vale.com/esg/pt/Documents/vale-CCR-2021-PT.pdf | I16: -
B17: 2022 | C17: We assess transition risks (for example, emerging regulations at state, national and international levels related to the price of carbon, issues of a reputational nature that could potentially arise from the perception of our performance in addressing climate change, and issues related to technology that may materially disrupt or alter planning and trade routes), as well as physical risks (e.g. operational impacts due to extreme weather conditions whose intensity is increased as a consequence of climate change) as per the recommendations of the Task Force on Climate Related Financial Disclosures (TCFD). Our climate change team identifies and monitors risks with the support of our risk management team to constantly map transition risks related to climate change. For transition risks, we have a systematic approach to monitoring the regulatory landscape and emerging climate-related trends such as proposals, initiatives, laws, etc. Potential impacts are calculated and qualified within Vale's executive committee and through the governance of the company's "Low Carbon Forum". In parallel, we seek cutting-edge information and stakeholder alignment, as well as the company's advanced positioning on climate-related policies, through our broader senior management process around climate change, with participation in Global Forums, such as the International Conference on Mining and Metals (ICMM), the World Economic Forum, the World Business Council on Sustainable Development, and international events on this topic, such as the annual Conference of the Parties (COP), the annual meeting of the UN General Assembly and "NYC Climate Week", and other events in critical jurisdictions such as Brazil, Canada, China, USA, Europe, Indonesia, Middle East. For physical risks, we have developed a methodology called "Vale Climate Forecast" to deal with short and long term risks related to physical impacts on our assets due to climate change. For more information, please see https://www.vale.com/web/esg/climate-change. | I17: -
B18: 2023 | C18: We assess transition risks (e.g., emerging regulations at state, national, and international levels related to carbon pricing, issues of a reputational nature that may potentially arise from the perception of our performance in addressing climate change, and emerging technology-related issues that may disturb or materially alter planning and trade routes), as well as physical risks (e.g. operational impacts due to extreme weather conditions whose intensity is increased as a consequence of climate change) in accordance with the recommendations of the Task Force on Climate Related Financial Disclosures (TCFD). Our climate change team identifies and monitors risks with the support of our risk management team to constantly map transition risks related to climate change. For transition risks, we have a systematic approach to monitoring the regulatory landscape and emerging climate-related trends, such as proposals, initiatives, laws, etc. Potential impacts are calculated and qualified within Vale's executive committee and through the governance of the company's "Low Carbon Forum". In parallel, we seek cutting-edge information and stakeholder alignment, as well as the company's advanced positioning on climate-related policies, through our broader senior management process around climate change, with participation in Global Forums such as the International Council on Mining and Metals (ICMM), the World Economic Forum, the World Business Council on Sustainable Development, and international events on this topic, such as the annual Conference of the Parties (COP), the annual meeting of the UN General Assembly and the "NYC Climate Week", and other events in critical jurisdictions such as Brazil, Canada, China, USA, Europe, Indonesia, the Middle East. For physical risks, we have developed a methodology called "Vale Climate Forecast" to address short- and long-term risks related to physical impacts on our assets due to climate change. For more information, please see the Climate page on the ESG Portal. | I18: -
B19: 2024 | C19: Avaliamos tanto os riscos de transição (como regulamentações emergentes em níveis estaduais, nacionais e internacionais relacionadas ao preço do carbono, questões reputacionais decorrentes da percepção de nosso desempenho na abordagem das mudanças climáticas, e tecnologias emergentes que podem alterar materialmente o planejamento e as rotas comerciais) quanto os riscos físicos (como impactos operacionais devido a condições climáticas extremas intensificadas pelas mudanças climáticas) em conformidade com o IFRS S2 e como early adopter, a Vale está comprometida em fornecer informações detalhadas sobre os riscos e oportunidades relacionados ao clima. A governança dos riscos climáticos na Vale é supervisionada pelo Comitê Executivo e pelo "Fórum de Baixo Carbono". Nossa equipe de mudanças climáticas, em conjunto com a equipe de gerenciamento de riscos, identifica e monitora continuamente os riscos de transição e físicos. Participamos ativamente de fóruns globais, como o ICMM, o Fórum Econômico Mundial e a COP, para alinhar nossas políticas e práticas com as melhores práticas internacionais. Nossa estratégia de gerenciamento de riscos climáticos inclui: monitoramento sistemático de regulamentações emergentes, tendências climáticas e tecnologias disruptivas para os riscos de transição, avaliando os impactos potenciais dessas mudanças e ajustando nossas estratégias de negócios conforme necessário; e a implementação da metodologia "Vale Climate Forecast" para prever e mitigar impactos de curto e longo prazo em nossos ativos devido a condições climáticas extremas para os riscos físicos. Adotamos uma abordagem integrada para identificar, avaliar, priorizar e monitorar riscos climáticos. Nossos processos são incorporados ao gerenciamento geral de riscos da empresa, garantindo que as decisões estratégicas considerem os riscos e oportunidades climáticas. Relatamos nosso desempenho e avanço em relação a pautas climáticas, incluindo: emissões de Gases de Efeito Estufa (GEE), com desagregação das emissões de Escopo 1, Escopo 2 e Escopo 3; metas de redução de emissões, com progresso em direção às metas de descarbonização estabelecidas pela Vale; e iniciativas de sustentabilidade, como o desenvolvimento de tecnologias sustentáveis, incluindo caminhões bicombustíveis e elétricos, e parcerias estratégicas para inovação. A Vale está comprometida com a transição para uma economia de baixo carbono, integrando práticas de sustentabilidade em todas as áreas de negócios. Nosso relatório de riscos climáticos, alinhado ao IFRS S2, reflete nosso compromisso com a transparência e a responsabilidade ambiental. Para mais informações, consulte a página de Clima do Portal ESG da Vale. | I19: -
B20: Links: | C20: ESG Portal - Climate
B23: 2024 - Risks and opportunities arising from climate change
B24: Tipe | C24: Category | D24: Subcategory | E24: Impact on | F24: Description | H24: Level | I24: Financial Implications before action is taken | J24: Methods used to manage risk/opportunity | L24: Costs of measures taken to manage risk/opportunity
B25: Risco | C25: Regulatórios | D25: Regulação das emissões internacional, nacional, regional ou estadual | E25: Custo | F25: Em 2024, a Organização Marítima Internacional (IMO) implementou uma série de novas regras para reduzir as emissões de gases de efeito estufa (GEE) no transporte marítimo. Aqui estão os principais destaques e as perspectivas para 2025: Implementações em 2024 Redução de Emissões de GEE: A IMO continuou a avançar com sua Estratégia de Redução de Emissões de GEE, visando emissões líquidas zero até 2050. As medidas implementadas incluem: Índice de Eficiência Energética de Navios Existentes (EEXI): Todos os navios com mais de 400 toneladas devem calcular seu EEXI, que mede a eficiência energética dos navios existentes. Indicador de Intensidade de Carbono (CII): Os navios são classificados de A a E com base na intensidade de suas emissões de carbono. Navios classificados como D ou E por três anos consecutivos precisam tomar medidas corretivas para melhorar sua eficiência energética e reduzir suas emissões. Plano de Gestão da Eficiência Energética dos Navios (SEEMP): Este plano obrigatóri | H25: Elevado | I25: Variável. As novas regras exigirão que as empresas de navegação invistam em novas tecnologias e práticas operacionais, o que aumentará os custos de operação. O custo na navegação é um desafio para o negócio Vale dada a maior distância dos nossos maiores compradores (especialmente a China), em comparação aos nossos competidores. | J25: A Vale S.A. adota uma abordagem multifacetada para gerenciar os riscos e oportunidades dentro da empresa, buscando sempre equilibrar esses elementos para maximizar o retorno do investimento e minimizar possíveis perdas. A estratégia central da Vale é a diversificação, investindo em tecnologia e inovação no setor da mineração com o foco principal em tecnologias menos carbono intensivas. Em se tratando de navegação a empresa tem o programa Ecoshipping que é uma iniciativa para reduzir as emissões de carbono e promover a sustentabilidade no transporte marítimo. Utiliza tecnologias como velas de rotor e lubrificação do casco, além de investir em combustíveis de baixo carbono. A Vale também colabora com portos e investe em pesquisa. | L25: Em 2021 a Vale anunciou que a Vale anunciou que irá investir entre US$ 4 bilhões e US$ 6 bilhões em ações ligadas à sustentabilidade até 2030. este valor indiretamente serve para atender ao as novas regras da IMO. Um grande destaque é o programa ecoshipping da navegação que vem desenvolvendo projetos inovadores no ramo.
B26: Risco | C26: Físicos | D26: Aumento na incidência de tempestades e furacões | E26: Receita | F26: Variável. A perda de maquinário e parada de produção pode chegar eventualmente a milhões de dólares. | H26: Elevado | I26: Variável. A perda de maquinário e parada de produção pode chegar eventualmente a milhões de dólares. | J26: Metodologia de Gestão de Riscos Físicos : Vale Climate Forecast. A metodologia é inspirada na Metodologia Bowtie de Gestão de Risco. A Vale tem desenvolvido uma estratégia de adaptação que tem como base a inserção de variáveis de mudança do clima nos processos de gerenciamento de risco existentes - isso permite prever possíveis problemas futuros e reavaliar os controles, eliminando e/ou minimizando assim os impactos. Melhorias na Gestão de Risco de Mudanças Climáticas vem sendo implementadas e a Gestão de riscos físicos - " Vale Climate Forecast" para o longo prazo a Vale vem desenvolvendo estudos de vulnerabilidade aos cenários climáticos com projeções climáticas e mapeamentos de riscos operacionais. | L26: Os custos de resposta ao risco de alterações nos padrões de precipitação e a extrema variabilidade nos padrões climáticos são soma dos investimentos em Vale Climate Forecast e Mapa de Impacto Físico relativos a dados de previsão de longo prazo com base nos cenários do IPCC RCP 4.5 e RCP 8.5 que foram realizados em 2022 para Corredor Norte (US$ 1,6 milhões + US$ 255.000).
B27: Risco | C27: Regulatórios | D27: Taxação de carbono | E27: Custo | F27: A Câmara dos Deputados aprovou o projeto de lei que regulamenta o mercado de carbono no Brasil no dia 19 de novembro de 2024. Agora esta esperando a sanção que deve ocorrer ate dia 13/12/2024 pelo presidente da republica. O mercado de carbono brasileiro será um mercado regulado, o que significa que as empresas e instituições que emitirem GEE serão obrigadas a compensar suas emissões por meio da compra de créditos de carbono. Esses créditos poderão ser gerados por projetos que reduzam ou removam emissões de GEE, como projetos de energia renovável, florestação e restauração florestal, captura e armazenamento de carbono e eficiência energética. | H27: Intermediário | I27: Variável. As implicações financeiras do mercado de carbono brasileiro para a VALE dependerão de uma série de fatores, incluindo: O preço dos créditos de carbono. Se o preço dos créditos de carbono aumentar, a VALE poderá lucrar com seus projetos de redução de emissões ou gastar mais com a compra de créditos de carbono para compensar suas emissões. O volume de emissões da VALE: Quanto maior o volume de emissões da VALE, maior será o volume destinado a compras de créditos de carbono; Interoperabilidade entre mercado regulado e voluntário. | J27: A VALE está tomando uma série de medidas para se preparar para o mercado de carbono brasileiro, incluindo: Investindo em projetos de redução de emissões: A VALE está investindo em projetos de redução de emissões focados em NBS projetos de eficiência energética ou projetos de uso de energias renováveis. Esses investimentos podem ajudar a empresa a reduzir suas emissões e a ganhar créditos de carbono no mercado de carbono brasileiro. Se preparando para comprar créditos de carbono: A VALE está se preparando para comprar créditos de carbono no mercado de carbono brasileiro. A empresa está desenvolvendo processos para identificar e avaliar projetos de redução de emissões e para comprar créditos de carbono de forma eficiente com um due delligence robusto considerando as meljhores praticas do mercado. | L27: Os custos das medidas tomadas pela VALE para se preparar para o mercado de carbono brasileiro são difíceis de estimar com precisão. No entanto, os investimentos em projetos de redução de emissões representam um um custo significativo para a empresa. Custo esse gerenciado pela gama de projetos citados na curva MACC. A Vale anunciou que irá investir entre US$ 4 bilhões e US$ 6 bilhões em ações ligadas à sustentabilidade até 2030 para atingir suas metas de redução de emissão. Valores estes que indiretamente serão destinados a mitigação dos impactos do futuro mercado de carbono regulado brasileiro.
B28: Risco | C28: Geral | D28: Outros | E28: Receita | F28: Impacto reputacional causado pelo não atendimento de metas estabelecidas como o " Nao atendimento da Meta Carbono 2030 " da Vale, que é reduzir as emissões de Escopos 1 e 2 em 33% até 2030. Considera-se impactos financeiros possivelmente causados pela perda de market share por conta de questões reputacionais. | H28: Elevado | I28: Ainda não estimado. | J28: É utilizado o método Bowtie de análise de Risco, com o registro do mesmo e acompanhamento pelo sistema Bwise (sistema de Gestão de Risco utilizado pela Vale). Foram criados controles preventivos e mitigatórios para gerir o Risco em questão. | L28: Investimentos nos projetos de redução de emissão contidos na Curva Mac - Curva de Custo Marginal de Abatimento. Investimento previsto para os próximos anos é de até 6 bilhões de dólares para implantação de todos os projetos.
B29: Risco | C29: Regulatórios | D29: Taxação de carbono | E29: Receita | F29: O CBAM, ou Mecanismo de Ajuste de Carbono na Fronteira, é uma política proposta pela União Europeia (UE) que visa garantir que os bens importados paguem um preço pelas suas emissões de carbono comparável ao preço pago pelos produtores nacionais da UE através do EU-ETS. O CBAM entrará em vigor em 2026, mas já em outubro de 2023 está em um período de transição, em que os importadores da UE terão de reportar o total de emissões de carbono embutidas nos produtos que importaram. Para a VALE, o CBAM representa um risco e uma oportunidade. O risco é que a empresa será obrigada a pagar uma taxa adicional sobre os seus produtos exportados para a UE, o que ira aumentar os seus custos e reduzir a sua competitividade. A oportunidade é que a empresa pode aproveitar o CBAM para se posicionar como uma empresa líder em sustentabilidade, já que tem um histórico de redução das suas emissões de carbono e metas atreladas a causa. | H29: Elevado | I29: Variável. O impacto dependerá de uma série de fatores, incluindo: O preço das licenças de carbono no mercado europeu; O volume de produtos exportados pela VALE para a UE; A intensidade de carbono da produção da VALE. | J29: Planejamento e gestão de risco: A empresa está realizando um planejamento detalhado para mitigar o impacto do CBAM, incluindo a identificação de riscos, o desenvolvimento de cenários e a implementação de medidas de mitigação por meio da análise de projetos na curva MACC. Comunicação: A empresa está comunicando proativamente com os seus clientes e stakeholders sobre o CBAM, para garantir que todos estejam cientes dos potenciais impactos. No mais, vem desenvolvendo em parceria com a consultoria Way Carbon o primeiro relatório do período de transição do CBAM previsto para ser entregue no final de janeiro. Inovação: A empresa está investindo em inovação para reduzir as suas emissões de carbono, o que ajudará a mitigar o impacto do CBAM. | L29: O custo do CBAM para a Vale podem chegar a US$ 109 milhões por ano. Os custos das medidas tomadas pela VALE para gerir o risco/oportunidade representado pelo CBAM são difíceis de estimar com precisão. No entanto,a Vale anunciou que irá investir entre US$ 4 bilhões e US$ 6 bilhões em ações ligadas à sustentabilidade até 2030 para atingir suas metas de redução de emissão. Valores estes que indiretamente serão destinados a mitigação dos impactos do CBAM.
B30: Risco | C30: Regulatórios | D30: Regulação das emissões internacional, nacional, regional ou estadual | E30: Receita | F30: O Influction reduction Act (IRA) é uma legislação dos Estados Unidos aprovada em agosto de 2022. O objetivo do IRA é reduzir a inflação e apoiar a economia. O IRA faz isso investindo em energia limpa e mudanças climáticas, bem como em saúde. Energia limpa e mudanças climáticas O IRA investe US$ 369 bilhões em energia limpa e mudanças climáticas. Esses investimentos incluem: Créditos fiscais para produção de energia renovável, como energia solar e eólica Investimentos em eficiência energética e modernização da rede elétrica Financiamento para pesquisa e desenvolvimento de tecnologias limpas Incentivos para a adoção de veículos elétricos Apoio a tecnologias de captura e armazenamento de carbono Esses investimentos são projetados para reduzir as emissões de gases de efeito estufa e promover a transição para uma economia mais limpa. Saúde O IRA também investe US$ 203 bilhões em saúde. Esses investimentos incluem: Prorrogação dos subsídios para as mensalidades do Affo | H30: Intermediário | I30: Variável. As implicações para a Vale do IRA seriam relacionadas principalmente aos gastos futuros nos já planejados projetos na expansão da produção de metais de transição principalmente no Canadá e no desenvolvimento de novos projetos de hidrogênio e CCS. Para isso o IRA possui ulinhas de financiamento interessantes: 1. Investimento de US$ 20 bilhões em infraestrutura de energia limpa, incluindo estações de carregamento de veículos elétricos e linhas de transmissão. 2. Aportes de US$ 50 bilhões em pesquisa e desenvolvimento de tecnologias de mitigação e adaptação às mudanças climáticas, com ênfase na descarbonização. 3. Financiamento de aproximadamente US$ 369 bilhões para o desenvolvimento de "Hidrogênio Limpo", incentivando a produção de hidrogênio com baixas emissões de gases de efeito estufa. 4. Melhorias no crédito fiscal para a captura e armazenamento de carbono (CCS), com investimentos de US$ 10 bilhões em projetos de demonstração, US$ 5 bilhões em pesquisa e desenvolvimento. | J30: A Vale S.A. adota uma abordagem multifacetada para gerenciar os riscos e oportunidades dentro da empresa, buscando sempre equilibrar esses elementos para maximizar o retorno do investimento e minimizar possíveis perdas. A estratégia central da Vale é a diversificação, investindo em tecnologia e inovação no setor da mineração com o foco principal em tecnologias menos carbono intensivas. Na gestão do portifólio usamos a curva MACC para a priorização dos projetos no pipeline de desenvolvimento para atingir as metas de redução. Além disso, a empresa realiza rebalanceamentos periódicos em sua carteira de investimentos, assegurando que ela permaneça alinhada com os objetivos de risco e retorno. A alocação de ativos é cuidadosamente planejada, levando em consideração o horizonte de investimento de longo prazo e o perfil de tolerância ao risco da empresa. Para gerenciar os riscos específicos, a Vale emprega equipes especializadas em gestão financeira, operacional e ambiental, responsáveis po | L30: Em 2021 a Vale anunciou que irá investir entre US$ 4 bilhões e US$ 6 bilhões em ações ligadas à sustentabilidade até 2030.Sendo investido até o momneto US$1.161 bilhões na reduçaõ de gases do efeito estufa ´sendo investidos em 2023 US$351 milhões principalmente em P&D, Capex, Opex, no desenvolvimento de produtos menos intensos e carbono e de transição.Este valor indiretamente serve para atender ao IRA, principalmente os projetos no Canada de expansão de produção de cobre e niquel.
B32: Oportunidade | C32: Geral | D32: Mudanças de atitude de consumidores | E32: Receita | F32: Uma maior demanda por produtos menos intensos em carbono pode impactar positivamente a Vale, que tem a menor intensidade de carbono por unidade de receita bruta entre as grandes mineradoras. A competitividade tem aumentado de forma significativa e novas taxações estão sendo discutidas para produtos intensivos em carbono. Os minerais de transição, por exemplo, são estratégicos e fundamentais para a futura economia de baixo carbono. A Vale está acompanhando as oportunidades, especialmente em níquel e cobre, expandindo além da produção atual. Nossos produtos de níquel estão entre os de menor intensidade de CO2 da indústria e nosso cobre também é crítico para a infraestrutura exigida pela transição de baixo carbono. | H32: Intermediário | I32: Ainda não estimado | J32: O desenvolvimento e uso de tecnologias menos emissoras e mais eficientes é uma das prioridades da Vale e, portanto, a empresa tem estudado o ciclo de vida de alguns de seus produtos (pegada de carbono) para avaliar e divulgar para seus clientes variáveis como a baixa emissão em relação à média. Avançamos significativamente no mapeamento da pegada de carbono dos produtos Iron Solutions, aumentando a cobertura percentual de volume com pegada de carbono para 90% de produtos vendidos em 2023. Além disso, tem estudado o impacto no Ebtida, a demanda por produtos que são necessários para a transição para uma economia de baixo carbono considerando os cenários da Agência Internacional de Energia. | L32: Ainda não estimados pois são considerados riscos emergentes.
B33: Oportunidade | C33: Geral | D33: Outros | E33: Custo | F33: Investimento em projetos de geração de energia elétrica limpa e/ou renovável. Esta oportunidade é bem vista globalmente principalmente após as definições e implicações da ultima COP 28 pois está alinhada a redução de consumo de energia a partir de fontes fósseis e também a meta de escopo 2 da Vale. A meta era zerar as emissões de escopo 2 até 2025 no Brasil. Fato, que a companhia conseguiu já no final de 2023. Globalmente esta meta esta para 2030. Esta meta auxilia a reduzir a pegada de carbono dos produtos da Vale. No mais, em 2024 a Vale comprou a Alinaça Energia que possui na maioria do seu portifolio hidroeletricas auxiliando o portifolio de fontes renovavies de energia. | H33: Intermediário | I33: Variável. Uma vez que apresar do desenvolvimento do projeto Sol do Cerrado e a Compra da Aliança Energia a Vale esta optando pela compra de PPA que se configura como mais acessivel economicamante. | J33: Vale tem investido na autoprodução/aquisição de energia elétrica a partir de fontes renováveis. A estratégia de descarbonização é gerida por meio da área de energia considerando a gestão de riscos dos empreendimentos de energia, com apoio de Mudanças Climáticas e Planejamento estratégico. | L33: O custo estimado do Projeto do Sol do Cerrado é um investimento de US$ 500 milhões. O Projeto Sol do Cerrado, com capacidade instalada de 766 megawatts-pico, produzirá aproximadamente 193 megawatts de energia por ano para as operações da Vale, contribuindo significativamente com a meta de escopo zero 2 no Brasil em 2023.A Vale concluiu a aquisição da Aliança Energia por R$ 2,7 bilhões. Com essa compra, a Vale adquiriu a participação de 45% da Cemig Geração e Transmissão S.A., passando a deter 100% do capital da Aliança Energia.
B37: GRI 201-3 (2016)
B39: Description: Defined benefit plan obligations and other retirement plans
B41: Year | C41: Vale's answer | I41: Assurance
B42: 2020 | C42: Brazilian employees of Vale and most of its Brazilian subsidiaries can participate in retirement plans managed by Valia. Most participants in Valia's plans are participants in a plan called “Vale Mais”, which Valia implemented in 2000. This plan is primarily a defined contribution plan with a defined benefit in relation to service prior to 2000 and other defined benefits to cover temporary or permanent disability, retirement and financial protection for dependents in the event of death. Valia also operates a defined benefit plan, closed to new members since May 2000, with benefits based on years of service, salary and social security benefits. This plan covers retired participants and their beneficiaries, as well as a relatively small number of employees who did not want to switch from the old plan to the “Vale Mais” plan, when it was established in May 2000. Employees of our base metals operations participate in defined benefit pension plans and defined contribution pension plans. Defined benefit plans have been closed to new participants since 2009, and all new employees in our Base Metals operations are eligible to participate in defined contribution pension plans. | I42: Independently audited by PriceWaterhouseCoopers Auditores Independentes nas demonstrações financeiras.
B43: 2021 | C43: Salaries and benefits for Vale and its subsidiaries are generally established on a business basis. Our benefits policy is in line with our attraction and retention strategy, in accordance with applicable laws and market practices in the countries where we operate. We provide an attractive and competitive benefits package that guarantees health, well-being, protection and quality of life. Among the main benefits offered are medical and dental assistance, life insurance, private pension plans and short- and long-term disability benefits. Brazilian employees of Vale and most of its Brazilian subsidiaries can participate in retirement plans managed by Valia. Most participants in Valia's plans are participants in a plan called “Vale Mais”, which Valia implemented in 2000. This plan is primarily a defined contribution plan with a defined benefit in relation to service prior to 2000 and other defined benefits to cover temporary or permanent disability, retirement and financial protection for dependents in the event of death. Valia also operates a defined benefit plan, closed to new members since May 2000, with benefits based on years of service, salary and social security benefits. This plan covers retired participants and their beneficiaries, as well as a relatively small number of employees who did not want to switch from the old plan to the “Vale Mais” plan, when it was established in May 2000. Employees of our base metals operations participate in defined benefit pension plans and defined contribution pension plans. Defined benefit plans have been closed to new participants since 2009, and all new employees in our Base Metals operations are eligible to participate in defined contribution pension plans. | I43: Independently audited by PricewaterhouseCoopers Auditores Independentes Ltda nas demonstrações financeiras.
B44: 2022 | C44: Brazilian employees of Vale and most of its Brazilian subsidiaries can participate in retirement plans managed by Valia. Most participants in Valia's plans are participants in a plan called “Vale Mais”, which Valia implemented in 2000. This plan is primarily a defined contribution plan with a defined benefit in relation to service prior to 2000 and other defined benefits to cover temporary or permanent disability, retirement and financial protection for dependents in the event of death. Valia also operates a defined benefit plan, closed to new members since May 2000, with benefits based on years of service, salary and social security benefits. This plan covers retired participants and their beneficiaries, as well as a relatively small number of employees who did not want to switch from the old plan to the “Vale Mais” plan, when it was established in May 2000. Employees of our base metals operations participate in defined benefit pension plans and defined contribution pension plans. Defined benefit plans have been closed to new participants since 2009, and all new employees in our Base Metals operations are eligible to participate in defined contribution pension plans. | I44: Independently audited by PricewaterhouseCoopers Auditores Independentes Ltda nas demonstrações financeiras.
B45: 2023 | C45: Brazilian employees of Vale and most of its Brazilian subsidiaries can participate in retirement plans administered by Valia. Most of the participants in Valia's plans are participants in a plan called "Vale Mais", which Valia implemented in 2000. This plan is primarily a defined contribution plan with a defined benefit in relation to pre-2000 service and other defined benefits to cover temporary or permanent disability, retirement, and financial protection for dependents in the event of death. Valia also operates a defined benefit plan, closed to new entrants since May 2000, with benefits based on years of service, salary and social security benefits. This plan covers retired participants and their beneficiaries, as well as a relatively small number of employees who did not want the change from the old plan to the "Vale Mais" plan when it was established in May 2000. The majority of employees in our base metals’ operations participate in defined benefit pension plans and defined contribution pension plans. Defined benefit plans have been closed to new entrants since 2009, and all new employees in our Base Metals’ operations are eligible to participate in defined contribution pension plans. In 2023, Vale Canada, as the administrator of Canadian defined benefit pension plans, completed the purchase of annuity contracts to transfer approximately US$ 836 million of pension plan obligations and associated assets to approximately 3,000 Canadian retirees and beneficiaries. | I45: -
B46: 2024 | C46: No Brasil, a gestão dos planos de previdência complementar da Companhia é responsabilidade da Fundação Vale do Rio Doce de Seguridade Social (“Valia”), entidade sem fins lucrativos, com autonomia administrativa e financeira. Os planos do Brasil são os seguintes: - Plano de benefícios Vale Mais (“Vale Mais”) e plano de benefícios Valiaprev (“Valiaprev”) - Os empregados da Companhia participantes da Valia estão associados, em sua maioria, ao plano Vale Mais, que tem componente de benefício definido (benefício saldado oriundo do antigo Plano BD e benefício específico para cobertura por morte, aposentadoria por invalidez e auxílio-doença) e componente de contribuição definida (para benefícios programáveis). O plano Valiaprev é semelhante ao plano Vale Mais, com exceção de não ter o benefício saldado e benefício de auxílio-doença. Os planos Vale Mais e Valiaprev estavam superavitários em 31 de dezembro de 2024 e 2023 - Plano de benefício definido (“Plano BD”) - O Plano BD está fechado para novas adesões desde o ano 2000, quando foi implantado o Vale Mais. É um plano de previdência complementar com características de benefício definido, que cobre quase exclusivamente aposentados e seus beneficiários. O plano estava superavitário em 31 de dezembro de 2024 e 2023 e as contribuições realizadas pela Companhia para seu custeio não são materiais. - Plano de benefício Abono complementação - A Companhia patrocina um grupo específico de ex-empregados com direito a receber pagamentos suplementares aos benefícios normais da Valia. As contribuições da Companhia foram encerradas em 2014. O plano Abono complementação estava superavitário em 31 de dezembro de 2024 e 2023. - Outros benefícios - A Companhia patrocina planos de assistência médica para funcionários que atendam critérios específicos e para funcionários participantes do plano Abono complementação. Apesar de não serem planos específicos de aposentadoria, são utilizados cálculos atuariais para calcular as obrigações futuras. Por serem planos de assistência médica não capitalizados, têm natureza deficitária e estão assim apresentados em 31 de dezembro de 2024 e 2023. No exterior, os planos são administrados de acordo com suas regiões. Estão divididos entre planos no Canadá, Estados Unidos da América e Reino Unido. Os planos de pensão no Canadá são compostos de um benefício definido e um componente de contribuição definida. Atualmente os planos de benefício definido não permitem novas adesões. A maioria dos planos de benefício definido no exterior estavam deficitários em 31 de dezembro de 2024 e 2023, sendo que dois planos estavam superavitários em 31 de dezembro de 2024 e 2023. Em dezembro de 2023, a Companhia celebrou determinados contratos de anuidade ("annuity contracts") para transferir US$836 (R$4.178 milhões) em obrigações de plano de pensão e seus ativos associados. Esta transação resultou na liquidação e remensuração do plano de pensão e, como consequência, a Companhia reconheceu uma perda de US$5 (R$25 milhões), sem efeito caixa, na demonstração do resultado como “Outras despesas”, mensurada pela diferença entre o prêmio e as obrigações transferidas. | I46: -
B47: Note: More detailed information on retirement plans can be found in the Financial Statements - IFRS (Chapter "Explanatory Notes to the Financial Statements" item "27. Employee benefits" sub-item "Obligations with retirement benefits"). This information is also present in the Reference Forms (Item "14.3 - Description of the Employee Compensation Policy" sub-item "b. benefit policy").
B49: Links: | C49: Financial Statements | E49: Reference Form
B51: GRI 201-4 (2016)
B53: Description: Financial assistance received from the government.
B55: Year | C55: Vale's answer | I55: Assurance
B56: 2020 | C56: Within the concept of financial support received from the government, Vale has some tax incentives, which are informed in the Financial Statements and Fiscal Transparency Report, available for consultation. | I56: -
B57: 2021 | C57: Within the concept of financial support received from the government, Vale has some tax incentives, which are informed in the Financial Statements and Fiscal Transparency Report, available for consultation. | I57: -
B58: 2022 | C58: Within the concept of financial support received from the government, Vale has some tax incentives, which are informed in the Financial Statements and Fiscal Transparency Report, available for consultation. | I58: -
B59: 2023 | C59: Within the concept of financial support received from the government, Vale has some tax incentives, which are informed in the Financial Statements and Fiscal Transparency Report, available for consultation. | I59: -
B60: 2024 | C60: Dentro do conceito de Apoio financeiro recebido do governo, a Vale possui alguns incentivos fiscais, que são informados nas Demonstrações Financeiras e Relatório de Transparência Fiscal1, disponíveis para consulta. | I60: -
B61: Notes: Links to the mentioned documents can be found in the "References" tab. 1 The publication of the 2022 Tax Transparency Report will take place after the Integrated Report is published, to access it simply access the link in the table above.
B64: GRI 202-1 (2016)
B66: Description: Ratios of standard entry level wageby g ender compared to local minimum wage
B68: Year | C68: Vale's answer | I68: Assurance
B69: 2020 | C69: Vale respects the local minimum wage defined by law, and there is no difference in base wages between women and men who perform the same functions, as determined by the Human Resources Policy. | I69: Independently assured by Bureau Veritas Certification
B70: 2021 | C70: Vale respects the local minimum wage defined by law, and there is no difference in base wages between women and men who perform the same functions, as determined by the Human Resources Policy. | I70: -
B71: 2022 | C71: Vale remunerates 100% of its employees within the international parameters of the Living Wage global coalition (a term for living wages) , aimed at establishing remuneration standards necessary for the well-being of workers and their families. | I71: -
B72: 2023 | C72: We pay 100% of our employees a living wage1, according to an external evaluation carried out in 2022. Deductions or restrictions on remuneration that could result in the employee being indebted to the company are prohibited. | I72: -
B73: 2024 | C73: Remuneramos 100% dos nossos empregados com um salário digno1 , de acordo com avaliação externa pela BSR (Business for Social Responsibility), finalizada em janeiro de 2025. Essa análise foi realizada utilizando o Wage Indicator Benchmark, tendo como base a remuneração praticada pela Vale em 2024 e está alinhada aos princípios da agenda do Pacto Global (movimento Salário Digno – Ambição 2030). Deduções ou restrições de remuneração que possam resultar em que o trabalhador fique em dívida com a empresa são proibidas. | I73: -
B74: Notes: ¹ Pagar um salário digno significa oferecer o valor necessário para proporcionar um padrão de vida decente aos trabalhadores e suas famílias, levando em consideração as circunstâncias de cada país e calculado sobre o trabalho realizado durante a carga horária regular.
B76: GRI 202-2 (2016)
B78: Description: Proportion of senior management hired from the local community
B80: Year | C80: Vale's answer | I80: Assurance
B81: 2020 | C81: 66% of own employees come from local communities 40% of senior management members are from the local hiring community | I81: Independently assured by Bureau Veritas Certification
B82: 2021 | C82: 54% of own employees come from local communities 45% of senior management members are from the local hiring community | I82: -
B83: 2022 | C83: 62% of own employees come from local communities 48% of senior management members are from the local hiring community | I83: -
B84: 2023 | C84: 60% of own employees come from local communities 34% of senior management members are from the local hiring community | I84: -
B85: 2024 | C85: 63% dos empregados próprios são provenientes de comunidades locais. 37% dos membros da alta gerência são naturais da comunidade local de contratação local. | I85: -
B88: GRI 203-1 (2016)
B90: Description: Investments in infrastructure and services supported
B92: Year | C92: Vale's answer | I92: Assurance
B93: 2020 | C93: In 2020, Vale contributed USD 1 billion in socio-environmental expenditures, including projects related to repairing the rupture of Dam I, in Brumadinho. In the social sphere, the largest investments were focused on health (43%) – including actions to combat Covid-19, urban infrastructure (12%), culture (12%), education (6%) and social protection (6% ), for a total of US$390 million. In the environmental field, the amount spent was USD 609.9 million, mainly related to water resources (21%), environmental liabilities (18%), waste (13%), environmental conservation (13%) and atmospheric emissions (11%) . | I93: Independently assured by Bureau Veritas Certification
B94: 2021 | C94: In 2021, Vale contributed USD 1.3 billion in socio-environmental expenditures, including those related to Brumadinho, which represented an increase of 28% compared to 2020. As for environmental expenditures, the contribution totaled USD 804.2 million, of which water, environmental liabilities and energy the biggest expenses. Social expenditures totaled USD 473.5, of which 73% came from own resources and 27% through incentive laws. The main expenditures were on urban infrastructure and mobility, culture, health and social protection. | I94: Independently assured by PricewaterhouseCoopers Auditores Independentes Ltda.
B95: 2022 | C95: In 2022, there were US$2.4 billion in socio-environmental and institutional expenditures, including those related to Brumadinho, which represented a 83% increase compared to 2021, as follows: - US$1,609 billion dedicated to social and institutional initiatives, of which 94% are own resources and 6% are investments from incentivized resources. The main expenses were in the areas of infrastructure and mobility, social protection, health, and culture. - US$766.9 million dedicated to environmental initiatives considering Vale's internal expenditures, with main expenses in environmental liabilities, water resources and atmospheric emissions. | I95: Independently assured by PricewaterhouseCoopers Auditores Independentes Ltda.
B96: 2023 | C96: In 2023, Vale contributed around USD 1.6 billion in socio-environmental and institutional expenditures, including those related to Brumadinho, as follows: - USD 677.3 million dedicated to social and institutional initiatives, of which approximately 40% is related to voluntary investment and institutional relations and operational impact management (USD 269 million); 41% are obligations (USD 277 million) and 19% are investments from Incentivized Resources1 (USD 131 million) - USD 913.9 million dedicated to environmental initiatives, considering Vale's internal and external expenditures | I96: Independently assured by PricewaterhouseCoopers Auditores Independentes Ltda.
B97: 2024 | C97: Em 2024, a Vale aportou USD2.3 bilhão em dispêndios socioambientais e institucionais, incluindo os relacionados a Brumadinho, sendo: - USD1.116,7 milhões dedicados às iniciativas sociais e institucionais, dos quais 34% estão relacionadas a investimento voluntário e relacionamento institucional e gestão de impacto operacional (USD380 milhões); 20% são de cumprimento de obrigação (USD229 milhões) e 45% são investimentos oriundos de Recursos Incentivados1 (USD508milhões). - USD1.141 milhões dedicados as iniciativas ambientais, considerando dispêndios internos da Vale - USD1.226 milhões dedicados as iniciativas ambientais, considerando dispêndios internos e externos da Vale
B98: Notes: 1 Amount includes expenses with Incentive Laws and Pará Structure Program The concept of significant investments used for reporting indicator 203-1 can be verified on the "Base of Preparation" tab of this document.
B101: GRI 203-2 (2016)
B103: Description: Significant indirect economic impacts
B105: Year | C105: Vale's answer | I105: Assurance
B106: 2020 | C106: The significant indirect economic impacts identified were: ◦ Increased pressure on public infrastructure (health, education, security, social protection and housing); ◦ Increase in the local cost of living; ◦ Development of social investment and local development programs and actions; ◦ Development and hiring of local labor, suppliers and purchases of local products and services, generating an increase in tax collection and the public power's investment capacity; ◦ Increase in the population's income level, incentives for the expansion of the service sector, commercial activities and greater formalization of the economy; ◦ Strengthening community organization based on social participation in the company's initiatives and its value chain. | I106: Independently assured by Bureau Veritas Certification
B107: 2021 | C107: The significant indirect economic impacts identified in the socio-environmental studies presented for the environmental licensing processes were: • Increased pressure on public infrastructure (health, education, security, social protection and housing) • Road system overload • Change in the population's daily life, in social and cultural relationships built and uncomfortable for the population • Generation of Expectations Regarding Employability and Business • Generation of Expectations regarding the Land Negotiation • Strengthening Community Organization and Social Development • Generation of opportunities and new business • Development and hiring of local labor, suppliers and purchases of local products and services, generating an increase in tax collection and investment capacity of the public authorities • Increase in the population's income level, incentives for the expansion of the service sector, commercial activities and greater formalization of the economy | I107: -
B108: 2022 | C108: The significant indirect economic impacts identified in the socio-environmental studies presented for the environmental licensing processes were: • Increased pressure on public infrastructure (health, education, security, social protection and housing) • Road system overload • Change in the population's daily life, in social and cultural relationships built and uncomfortable for the population • Change in migration flow • Generation of Expectations Regarding Employability and Business • Generation of Expectations regarding the Land Negotiation • Strengthening Community Organization and Social Development • Generation of opportunities and new business • Development and hiring of local labor, suppliers and purchases of local products and services, generating an increase in tax collection and investment capacity of the public authorities • Increase in the population's income level, incentives for the expansion of the service sector, commercial activities and greater formalization of the economy Other information on the indirect economic impact can be verified in the "Material Issues" tab of this document in the Management Form of the theme Local Communities. | I108: -
B109: 2023 | C109: The significant indirect economic impacts identified in the socio-environmental studies presented for the environmental licensing processes were: Positive: - Improvement of local accessibility - Dynamization of economic activities - Strengthening Community Organization and Social Development - Development of local suppliers - Generation of direct and indirect jobs - Tax Revenue Collection - Local development - Demands for services, equipment and inputs with local suppliers - Inclusion of workers in the social safety net - Improvement of local employability conditions - Increase in household income and purchasing power of the population - Dynamization of the tertiary sector - Generation of opportunities and new business - Strengthening of companies by increasing the demand for goods and services - Preparation for the labour market. Negative: - Nuisances associated with mobility, noise, vibration and particulate emissions. - Generation of vehicle and people traffic - Alteration in the social and cultural relations built - Change in Pressure on Public Services and Equipment - Changing Demographic Dynamics - Alteration of the Daily Life of Populations - Loss of Archaeological Heritage - Negative impact on fishing areas due to the creation of an exclusion zone - Alteration of the Health Conditions of the Population - Generation of Expectations regarding Land Negotiation - Generation of Expectations regarding Employability and Business - Alteration of existing productive activities - Disorderly occupation of urban space - Increase in the sale and rental value of properties - Changing Economic Dynamics - Change in the Labour and Goods and Services Market - Generation of expectations in the population - Visual disturbance due to the alteration of the landscape. | I109: -
B111: 2024 | C111: Os impactos econômicos indiretos significativos identificados nos estudos socioambientais apresentados para os processos de licenciamento ambiental foram: Positivos: - Melhoria da acessibilidade local - Dinamização das atividades econômicas - Fortalecimento de Cadeias Produtivas e Desenvolvimento Social - Desenvolvimento de fornecedores locais - Geração de empregos diretos e indiretos - Arrecadação de Receitas Tributárias - Desenvolvimento local - Inserção dos trabalhadores na rede de seguridade social - Melhoria das condições de empregabilidade local - Aumento do poder aquisitivo da população - Geração de oportunidades e novos negócios - Fortalecimento das empresas a partir da ampliação da demanda por bens e serviços - Qualificação da Mão de Obra Local. Negativos: - Alteração nas relações sociais e culturais construídas - Alteração da Pressão sobre Serviços e Equipamentos Públicos - Alteração da Dinâmica Demográfica - Alteração do Cotidiano das Populações - Perda de Patrimônio Arqueológico - Impacto negativo nas áreas de pesca devido à criação de zona de exclusão - Geração de Expectativas quanto à Negociação de terras e imóveis - Alteração de atividades produtivas existentes - Alteração da Dinâmica Econômica - Alteração no Mercado de Trabalho e de Bens e Serviços - Geração de expectativas na população - Perturbação visual pela alteração da paisagem.
B114: GRI 204-1 (2016)
B116: Description: Proportion of spending on local suppliers
B118: Year | C118: Vale's answer | I118: Assurance
B119: 2020 | C119: In 2020, the percentage of Vale's local purchases, considering purchases made within the states/provinces of the operations that made the purchases, was 52%. | I119: -
B120: 2021 | C120: In 2021, the percentage of Vale's local purchases, considering purchases made within the states/provinces of the operations that made the purchases, was 53%. | I120: -
B121: 2022 | C121: In 2022, the percentage of Vale's local purchases, considering purchases made within the states/provinces of the operations that made the purchases, was 56%. | I121: -
B122: 2023 | C122: In 2023, the percentage of Vale's local purchases, considering purchases made within the states/provinces of the operations that made the purchases, was 55%. | I122: -
B123: 2024 | C123: Em 2024, a porcentagem de compras locais da Vale, considerando como local as compras realizadas dentro os estados/províncias das operações que efetuaram a compra, foi de 58%.
B124: Note: The data has no differentiation of important Operational Units, as these are the values referring to local purchases for the entire company. The reporting will be improved for the next cycles.
B127: GRI 205-1 (2016)
B129: Description: Operations assessed for risks related to corruption
B131: Year | C131: Vale's answer | I131: Assurance
B132: 2020 | C132: 17 controls related to Vale's anti-corruption rules, 6 of which are classified as key controls. They are: socio-environmental investments, donations and sponsorships, suppliers in general, high-risk suppliers, hiring public agents and training. These controls are replicated to 41 risk owners (first line of defense), who must monitor their areas more closely, bearing in mind Vale's risk methodology, based on the three lines of defense. 100% of Vale's operations are covered by such controls and were assessed for risks related to corruption. | I132: Independently assured by Bureau Veritas Certification
B133: 2021 | C133: In 2021, 100% of Vale's operations were subject to an assessment of risks related to corruption, the Corporate Integrity model of operation is segmented by region and not by line of business. We have 3 regions: Latin America and Africa; Canada and Europe; APME. These risks are deployed internally among the areas according to the degree of exposure to corruption and have associated controls and clear anti-corruption rules. In total, 17 controls are related to Vale's anti-corruption rules, six of which are classified as key controls and related to approvals of socio-environmental investments, specific conditions for donations and sponsorships, suppliers in general, high-risk suppliers, hiring public agents and Ethics & Compliance Program training. | I133: Independently assured by PricewaterhouseCoopers Auditores Independentes Ltda.
B134: 2022 | C134: In 2022, 100% of Vale's operations (57 operating units) were subject to an assessment of risks related to corruption, the Corporate Integrity model of operation is segmented by region and not by business line. We have 3 regions: Latin America and Africa; Canada and Europe; APME. These risks are deployed internally among the areas according to the degree of exposure to corruption and have associated controls and clear anti-corruption rules. In total, 19 controls are related to Vale's anti-corruption rules, six of which are classified as key controls and related to approvals of socio-environmental investments, specific conditions for donations and sponsorships, suppliers in general, high-risk suppliers, hiring public agents and Ethics & Compliance Program training. | I134: Independently assured by PricewaterhouseCoopers Auditores Independentes Ltda.
B135: 2023 | C135: In 2023, 100% of Vale's operations (57 operating units) were submitted to a risk assessment related to corruption, the Corporate Integrity operating model is segmented by regions and not by line of business. We have 3 regions: Latin America and Africa; Canada and Europe; APME. These risks are deployed internally across areas according to the degree of exposure to corruption and have associated controls and clear anti-corruption rules. In total, 17 controls are related to Vale's anti-corruption rules, five of which are classified as key controls and related to approvals of social and environmental investments, specific conditions for donations and sponsorships, suppliers in general, high-risk suppliers, hiring of public agents and Ethics & Compliance Program training. | I135: Independently assured by PricewaterhouseCoopers Auditores Independentes Ltda.
B136: 2024 | C136: Em 2024, 100% das operações da Vale (52 unidades operacionais) foram submetidas a avaliação de riscos relacionados à corrupção, o modelo de atuação da Integridade Corporativa é segmentado por regiões e não por linha de negócio. Temos 3 regiões: América Latina e África; Canadá e Europa; APME. Esses riscos são desdobrados internamente entre as áreas conforme o grau de exposição à corrupção e possuem controles associados e regras anticorrupção claras. No total, 17 controles estão relacionados às regras anticorrupção da Vale, sendo cinco deles classificados como controles-chave e relacionados a aprovações de investimentos socioambientais, condições específicas de doações e patrocínios, fornecedores em geral, fornecedores de alto risco, contratação de agentes públicos e treinamentos do Programa de Ética & Compliance.
B137: Note: Reports prior to 2020 referred to due diligences carried out for transactions with Vale. As of 2020, we changed the criteria and are reporting more in line with the company's risk map. We started to report the number of controls we have related to anti-corruption rules. In Vale's consolidated risk map, there are 3 potential risks related to corruption pointed out. They are: (1) public agent corruption; (2) liabilities from unlawful acts related to corruption due to corporate transactions; and (3) undue influence during the investigation process, related to corruption, conducted by public bodies. And for these 3 potential risks mentioned, Vale has 17 controls related to anti-corruption rules, 15 of which are preventive and 2 are mitigating.
B140: GRI 205-2 (2016)
B142: Description: Communication and training on anti-corruption policies and procedures
B144: Year | C144: Vale's answer | I144: Assurance
B145: 2020 | C145: 82.88% of own employees participated in the Movement for Integrity, which addresses ethics and integrity issues. 79.16% of employees received specific training on anti-corruption policies and rules. 1,603 employees from areas classified as priority (more sensitive to the risk of corruption) received specific and targeted training on Vale's anti-corruption rules. 57% of senior governance employees were informed about the anti-corruption policy and procedures. Regarding training on the subject, in 2020, no specific training was carried out on anti-corruption rules for Vale's senior governance, which from 2020 became biannual. Only follow-up meetings were held. Training for this audience was carried out in 2019 and will be repeated in 2021. With regard to commercial partners, 2.46% suppliers (100% of those classified as high risk) were informed about the organization's anti-corruption policy and procedures. | I145: Independently assured by Bureau Veritas Certification
B146: 2021 | C146: In 2021, 83.54% of Vale's workforce signed the new Code acknowledgment and commitment term. 100% of senior management (50 members), directors, executive managers, supervisors, area managers and coordinators were informed about the anti-corruption policy and procedures adopted by the organization. Regarding the staffs, 72% were notified. For business partners, 1597 partners (2.4%) were informed about Vale's anti-corruption policy. This percentage takes into account only suppliers classified as “high risk” of corruption that have active contracts with Vale. All suppliers at high risk of corruption must receive a copy of Vale's anti-corruption guide and adhere to its terms. In 2021, mass communication actions were also carried out for Vale's suppliers, including the release of a message from the company's leadership on the International Day Against Corruption: http://www.vale.com/brasil/PT/aboutvale/ news/Pages/dia-internacional-contra-a-corrupcao-learn-more-about-the-valley-commitment-to-ethics.aspx. We carried out the first global edition of the conflict of interest campaign at a global level, with the participation of 34,422 employees (64.17% of employees with access to a computer). In the year, there was also the launch of a new online ethics and compliance course, where 89.0% of the staff was trained. With regard to high governance, 74% of members were trained in combating corruption. | I146: Independently assured by PricewaterhouseCoopers Auditores Independentes Ltda.
B147: 2022 | C147: About notices regarding Vale's anti-corruption policies and procedures: • The 22 members (100%) of Vale's top leadership received communications about the company's anti-corruption rules, participated in the Ethics Week and/or accountability meetings of the Ethics & Compliance Program; • 100% of senior leadership (22 members), directors (40 employees), executive managers (159 employees), supervisors (2748 employees), area managers and coordinators (2166 employees) were informed about the anti-corruption policy and procedures adopted by organization. Regarding the staffs, 74% (43757 employees with access to e-mail) were notified. • With regard to commercial partners, 525 were communicated on the subject, representing 6% of the partners. This percentage takes into account only suppliers classified as “high risk” of corruption that have active contracts with Vale. All suppliers at high risk of corruption must receive a copy of Vale's anti-corruption guide available at https://vale.com/fornecedores On anti-corruption training: • More than 60,000 Vale employees received training, representing 93% of the workforce; • 20 members (91%) of Vale's senior management, including the Executive Committee and Board of Directors, underwent training. | I147: Independently assured by PricewaterhouseCoopers Auditores Independentes Ltda.
B148: 2023 | C148: Sobre comunicados a respeito das políticas e procedimentos anticorrupção da Vale: • Os 22 membros (100%) da alta liderança da Vale receberam comunicações sobre as regras anticorrupção da empresa, participaram de ações da Semana da Ética e/ou de reuniões de prestação de contas do Programa de Ética & Compliance; • 100% da alta liderança (22 membros, sendo 9 membros do Comitê Executivo (incluindo o Presidente da Vale) e 13 membros do Conselho de Administração), 96,0% dos diretores (217 empregados), 100% dos gerentes gerais (292 empregados), 99,2% dos gerentes (1189 empregados), 99,3% dos coordenadores (973 empregados), 100% dos supervisores (2749 empregados), 87,2% especialistas técnicos (130 empregados), 97,2% dos staff administrativos (1557 empregados), 98,8% dos staff operacionais (45538 empregados) e 99,8% dos técnicos profissionais (12474 empregados) foram comunicados acerca da política e procedimentos anticorrupção adotados pela organização. • Em relação aos parceiros comerciais, 492 foram comunicados sobre o tema representando 6% dos parceiros. Este percentual leva em consideração apenas os fornecedores classificados como “alto risco” de corrupção que possuem contratos ativos com a Vale. Todos os fornecedores de alto risco de corrupção devem receber uma cópia do guia de combate à corrupção da Vale disponível no site https://vale.com/fornecedores Sobre treinamentos no combate à corrupção: • Mais de 63.000 empregados próprios da Vale receberam treinamento, representando 95,7% do quadro de empregados próprios; • 20 membros (90,9%) da alta governança da Vale, considerando o Comitê Executivo e Conselho de Administração, passaram por treinamento. | I148: Independently assured by PricewaterhouseCoopers Auditores Independentes Ltda.
B149: 2024 | C149: Sobre comunicados a respeito das políticas e procedimentos anticorrupção da Vale: • Os 23 membros (100%) da alta liderança da Vale receberam comunicações sobre as regras anticorrupção da empresa, participaram de ações da Semana da Ética e/ou de reuniões de prestação de contas do Programa de Ética & Compliance; • 100% da alta liderança (23 membros, sendo 10 membros do Comitê Executivo (incluindo o Presidente da Vale) e 13 membros do Conselho de Administração), 95,4% dos diretores (206 empregados), 100% dos gerentes gerais (320 empregados), 99,9% dos gerentes (1114 empregados), 99,9% dos coordenadores (1057 empregados), 100% dos supervisores (2601 empregados), 87,2% especialistas técnicos (130 empregados), 97,1% dos staff administrativos (1392 empregados), 98,1% dos staff operacionais (43.296 empregados) e 99,5% dos técnicos profissionais (13.483 empregados) foram comunicados acerca da política e procedimentos anticorrupção adotados pela organização. • Em relação aos parceiros comerciais, 1.055 foram comunicados sobre o tema representando 13% dos parceiros. Este percentual leva em consideração apenas os fornecedores classificados como “alto risco” de corrupção que possuem contratos ativos com a Vale. Todos os fornecedores de alto risco de corrupção devem receber uma cópia do guia de combate à corrupção da Vale disponível no site https://vale.com/fornecedores Sobre treinamentos no combate à corrupção: • Mais de 61.000 empregados próprios da Vale receberam treinamento, representando 95,2% do quadro de empregados próprios; • 7 membros (30,4%) da alta governança da Vale, considerando o Comitê Executivo e Conselho de Administração, passaram por treinamento.
B150: Note: Foi realizada uma correção no valor da porcentagens de empregados treinados em 2023 para todas as categorias funcionais (GRI 2-4).
B152: Country | C152: Own Employees (GRI 2-7) | D152: Total people communicated | E152: % of people communicated | F152: Total people who received training | G152: % of people who received training | H152: Total number of people who received specific training | I152: % of people who received specific training
B153: Brasil | C153: 55669 | D153: 55084 | E153: 0.9894914584 | F153: 53850 | G153: 0.9673247229 | H153: 1964 | I153: 0.03527995833
B154: Argentina | C154: 1 | D154: 1 | E154: 1 | F154: 1 | G154: 1 | H154: 0 | I154: 0
B155: Austrália | C155: 11 | D155: 11 | E155: 1 | F155: 11 | G155: 1 | H155: 0 | I155: 0
B156: Canadá | C156: 7262 | D156: 6894 | E156: 0.9493252548 | F156: 6033 | G156: 0.8307628752 | H156: 188 | I156: 0.02588818507
B157: Chile | C157: 16 | D157: 16 | E157: 1 | F157: 14 | G157: 0.875 | H157: 5 | I157: 0.3125
B158: China | C158: 138 | D158: 136 | E158: 0.9855072464 | F158: 134 | G158: 0.9710144928 | H158: 70 | I158: 0.5072463768
B159: Índia | C159: 1 | D159: 1 | E159: 1 | F159: 1 | G159: 1 | H159: 0 | I159: 0
B160: Indonésia | C160: 92 | D160: 92 | E160: 1 | F160: 90 | G160: 0.9782608696 | H160: 28 | I160: 0.3043478261
B161: Japão | C161: 80 | D161: 80 | E161: 1 | F161: 80 | G161: 1 | H161: 2 | I161: 0.025
B162: Malásia | C162: 394 | D162: 394 | E162: 1 | F162: 394 | G162: 1 | H162: 13 | I162: 0.03299492386
B163: Holanda | C163: 19 | D163: 19 | E163: 1 | F163: 18 | G163: 0.9473684211 | H163: 3 | I163: 0.1578947368
B164: Omã | C164: 598 | D164: 598 | E164: 1 | F164: 592 | G164: 0.9899665552 | H164: 68 | I164: 0.1137123746
B165: Peru | C165: 24 | D165: 23 | E165: 0.9583333333 | F165: 20 | G165: 0.8333333333 | H165: 7 | I165: 0.2916666667
B166: Singapura | C166: 40 | D166: 40 | E166: 1 | F166: 38 | G166: 0.95 | H166: 7 | I166: 0.175
B167: Suíça | C167: 52 | D167: 52 | E167: 1 | F167: 52 | G167: 1 | H167: 7 | I167: 0.1346153846
B168: United Arab Emirates - Dubai | C168: 16 | D168: 16 | E168: 1 | F168: 16 | G168: 1 | H168: 10 | I168: 0.625
B169: Reino Unido | C169: 200 | D169: 200 | E169: 1 | F169: 169 | G169: 0.845 | H169: 6 | I169: 0.03
B170: Estados Unidos | C170: 3 | D170: 3 | E170: 1 | F170: 1 | G170: 0.3333333333 | H170: 2 | I170: 0.6666666667
B171: Total Vale Global | C171: 64616 | D171: 63660 | E171: 0.9852049028 | F171: 61514 | G171: 0.9519933143 | H171: 2380 | I171: 0.03683298254
B172: Nota: Não foram contabilizados membros do conselho administrativo, pois não são empregados próprios.
B175: GRI 205-3 (2016)
B177: Description: Confirmed cases of corruption and measures taken
B179: Year | C179: Vale's answer | I179: Assurance
B180: 2020 | C180: In 2020, 7 cases of private corruption were confirmed, in all cases employees were dismissed or punished. There was also the blocking of 3 suppliers after verification. There were no corruption-related lawsuits filed against the organization or its employees during the reporting period. | I180: Independently assured by Bureau Veritas Certification
B181: 2021 | C181: In 2021, no cases of corruption involving public agents were identified. Through the company's Whistleblower Channel, 3 cases of bribery involving private companies were identified, all of which resulted in actions to terminate the employees involved. There were no corruption-related legal proceedings filed/initiated between January 1 and December 31, 2021. | I181: Independently assured by PricewaterhouseCoopers Auditores Independentes Ltda.
B182: 2022 | C182: In 2022, 4 cases of private corruption were confirmed, which resulted in the dismissal of an employee and a notification to a third party. There were no cases of termination or non-renewal of contracts due to corruption in any jurisdiction. Vale is a party to confidential and non-confidential judicial, administrative and arbitration proceedings, considered relevant individually or jointly, and, based on applicable legislation and regulations, duly discloses such proceedings in its Reference Form available on the company's website : https://vale.com/pt/comunicados-resultados-apresentacoes-e-reports. | I182: Independently assured by PricewaterhouseCoopers Auditores Independentes Ltda.
B183: 2023 | C183: In 2023, 2 cases of private corruption were confirme. In the first case, the accused was demobilized from the contract during the investigation process for low performance, in the second case, the employee will be terminated for misconduct, in addition to its low performance, according to the ongoing action plan. There have been no cases of termination or non-renewal of contracts due to corruption in any jurisdiction. Vale is a party to confidential and non-confidential judicial, administrative and arbitration proceedings, considered relevant individually or jointly, and, based on the applicable laws and regulations, duly discloses such proceedings in its 2023 Reference Form. | I183: Independently assured by PricewaterhouseCoopers Auditores Independentes Ltda.
B184: 2024 | C184: Em 2024, foi confirmado 1 casos de corrupção privada. Nesse caso, um analista participou de esquema de recebimento de pagamento de fornecedores, com participação do coordenador e de outros analistas da área. Todos os empregados envolvidos nesse caso foram desligados. Não houve nenhum caso de rescisão ou não renovação de contrato por motivo de corrupção em nenhuma jurisdição. A Vale é parte de processos judiciais, administrativos e arbitrais sigilosos e não sigilosos, considerados relevantes individualmente ou em conjunto, e, com base na legislação e regulamentação aplicáveis, realiza a devida divulgação de tais processos em seu Formulário de Referência 2024.
B185: Links: | C185: Reference Form
B187: GRI 206-1 (2016)
B189: Description: Legal actions for anti-competitive behavior, anti-trust, and monopoly practices
B191: Year | C191: Vale's answer | I191: Assurance
B192: 2020 | C192: There were no lawsuits for competitive behavior, antitrust and monopoly practices | I192: Independently assured by Bureau Veritas Certification
B193: 2021 | C193: There were no lawsuits for competitive behavior, antitrust and monopoly practices | I193: -
B194: 2022 | C194: There were no lawsuits for competitive behavior, antitrust and monopoly practices | I194: -
B195: 2023 | C195: There were no lawsuits for competitive behavior, antitrust and monopoly practices | I195: -
B196: 2024 | C196: Não houve ações judiciais por comportamento concorrencial, antitruste e práticas de monopólio. | I196: -
B199: GRI 207-1 (2019)
B201: Description: Approach to tax
B203: Year | C203: Vale's answer | I203: Assurance
B204: 2022 | C204: The data referring to this indicator was not part of the assurance reporting scope, since the Tax Transparency Report will be published after the publication date of the Integrated Report. The data should be consulted through the link: https://www.vale.com/en/comunicados-resultados-apresentacoes-e-relatorios. | I204: -
B205: 2023 | C205: Vale discloses its approach to tax risks, its approach to tax planning and other general guidelines through its Tax Compliance Policy - POL-0046-G. The data referring to this indicator that are not in the Tax Compliance Policy were not part of the scope of assurance reporting, since the Tax Transparency Report that will contain references to this indicator will be released after the date of publication of the Integrated Report. The data should be consulted through the link below. | I205: -
B206: 2024 | C206: A Vale divulga sua abordagem dos riscos tributários, sua abordagem do planejamento tributário e outras diretrizes gerais por meio da Política de Conformidade Fiscal - POL-0046-G. Os dados referentes a este indicador não fez parte do escopo de reporte de asseguração, visto que o Relatório de Tax Transparency que conterá referências desse indicador e será publicado após a data de publicação do Relato Integrado. Os dados devem ser consultados através do link abaixo. | I206: -
B208: Links: | C208: Tax Policy - POL-0046-G | E208: Tax Transparency report
B210: GRI 207-2 (2019)
B212: Description: Tax governance, control and risk management
B214: Year | C214: Vale's answer | I214: Assurance
B215: 2022 | C215: The data referring to this indicator was not part of the assurance reporting scope, since the Tax Transparency Report will be published after the publication date of the Integrated Report. The data should be consulted through the link: https://www.vale.com/en/comunicados-resultados-apresentacoes-e-relatorios. | I215: -
B216: 2023 | C216: Vale discloses its approach to tax risks, its approach to tax planning and other general guidelines through its Tax Compliance Policy - POL-0046-G. The data referring to this indicator that are not in the Tax Compliance Policy were not part of the scope of assurance reporting, since the Tax Transparency Report that will contain references to this indicator will be released after the date of publication of the Integrated Report. The data should be consulted through the link below. | I216: -
B217: 2024 | C217: A Vale divulga sua abordagem dos riscos tributários, sua abordagem do planejamento tributário e outras diretrizes gerais por meio da Política de Conformidade Fiscal - POL-0046-G. Os dados referentes a este indicador não fez parte do escopo de reporte de asseguração, visto que o Relatório de Tax Transparency que conterá referências desse indicador e será publicado após a data de publicação do Relato Integrado. Os dados devem ser consultados através do link abaixo. | I217: -
B219: Links: | C219: Tax Policy - POL-0046-G | E219: Tax Transparency report
B221: GRI 207-3 (2019)
B223: Description: Stakeholder engagement and management of concerns related to tax
B225: Year | C225: Vale's answer | I225: Assurance
B226: 2022 | C226: The data referring to this indicator was not part of the assurance reporting scope, since the Tax Transparency Report will be published after the publication date of the Integrated Report. The data should be consulted through the link: https://www.vale.com/en/comunicados-resultados-apresentacoes-e-relatorios. | I226: -
B227: 2023 | C227: Vale discloses its approach to tax risks, its approach to tax planning and other general guidelines through its Tax Compliance Policy - POL-0046-G. The data referring to this indicator that are not in the Tax Compliance Policy were not part of the scope of assurance reporting, since the Tax Transparency Report that will contain references to this indicator will be released after the date of publication of the Integrated Report. The data should be consulted through the link below. | I227: -
B228: 2024 | C228: A Vale divulga sua abordagem dos riscos tributários, sua abordagem do planejamento tributário e outras diretrizes gerais por meio da Política de Conformidade Fiscal - POL-0046-G. Os dados referentes a este indicador não fez parte do escopo de reporte de asseguração, visto que o Relatório de Tax Transparency que conterá referências desse indicador e será publicado após a data de publicação do Relato Integrado. Os dados devem ser consultados através do link abaixo. | I228: -
B230: Links: | C230: Tax Policy - POL-0046-G | E230: Tax Transparency report
B232: GRI 2-27 (2021)
B234: Description: Compliance with laws and regulations
B235: Note: The information reported in this indicator was independently assured by PricewaterhouseCoopers Auditores Independentes Ltda.
B236: Region | C236: Vale's answer
C237: Non-monetary sanctions and fines for significant1 cases in 2024
C238: Environment | E238: Social | G238: Mining regulation | I238: Labor | K238: Others1
C239: Non-monetary sanctions | D239: Fines | E239: Non-monetary sanctions | F239: Fines | G239: Non-monetary sanctions | H239: Fines | I239: Non-monetary sanctions | J239: Fines | K239: Non-monetary sanctions | L239: Fines
B240: South America | C240: 3 | D240: 5 | E240: 0 | F240: 0 | G240: 0 | H240: 108² | I240: 0 | J240: 0 | K240: 0 | L240: 0
B241: North America | C241: 0 | D241: 0 | E241: 0 | F241: 0 | G241: 0 | H241: 0 | I241: 0 | J241: 0 | K241: 0 | L241: 0
B242: Europe | C242: 0 | D242: 0 | E242: 0 | F242: 0 | G242: 0 | H242: 0 | I242: 0 | J242: 0 | K242: 0 | L242: 0
B243: Asia | C243: 0 | D243: 0 | E243: 0 | F243: 0 | G243: 0 | H243: 0 | I243: 0 | J243: 0 | K243: 0 | L243: 0
B244: Nota: ¹ Para informações sobre o conceito considerado para o termo “significativos”, bem como demais áreas jurídicas abrangidas pelo reporte, que estão considerados na coluna "Outros" das tabelas, consultar o Databook na aba “Glossário – Base de Preparação" ² Correspondem a 108 autos de infração (AI's) por não observância normas regulamentares lavrados entre 2021 e 2022. À época da lavratura dos autos foram protocolizados pedidos de reconsideração junto à ANM e, em 2024, foram publicadas decisões não acatando o pedido de reconsideração e impondo as multas. Destes 108 AI's, foram protocolados novos recursos para 102. Os outros 06 tiveram sua multas pagas no exercício de 2024.
B247: Region | C247: Vale's answer
C248: Fines paid in the reporting year | H248: Total monetary value of fines paid in the reporting year (USD)
C249: Environment | D249: Social | E249: Mining regulation | F249: Labor | G249: Others | H249: Environment | I249: Social | J249: Mining regulation | K249: Labor | L249: Others
B250: South America | C250: 5 | D250: 19 | E250: 6 | F250: 33 | G250: 12 | H250: 187560.5529 | I250: 80500.74955 | J250: 5862.803341 | K250: 715820.5085 | L250: 154900.72
B251: North America | C251: 0 | D251: 0 | E251: 0 | F251: 0 | G251: 0 | H251: 0 | I251: 0 | J251: 0 | K251: 0 | L251: 0
B252: Europe | C252: 0 | D252: 0 | E252: 0 | F252: 0 | G252: 0 | H252: 0 | I252: 0 | J252: 0 | K252: 0 | L252: 0
B253: Asia | C253: 0 | D253: 0 | E253: 0 | F253: 0 | G253: 0 | H253: 0 | I253: 0 | J253: 0 | K253: 0 | L253: 0
B256: SASB - EM-MM-510a.1
B258: Description: Description of the management system for preventing corruption and bribery throughout the value chain
B260: Year | C260: Vale's answer | I260: Assurance
B261: 2020 | C261: By determination of the Board of Directors, with the recommendation of the Extraordinary Investigation Independent Advisory Committee, Vale created the Compliance Board in March 2020. The Chief Compliance Officer (CCO), appointed in July 2020, is directly linked to the Board of Directors and continuously interacts with the Audit Committee, granting a degree of autonomy and independence from the other executive structures of the company. The CCO is responsible for supervising the Whistleblower Channel, the Internal Audit and the Corporate Integrity area. Vale has a channel for registering cases of non-compliance with the Code of Conduct and legislation. The channel is operated by an independent company and structured to guarantee absolute secrecy, protecting the whistleblower's anonymity and preserving the information so that a fair investigation can occur. Vale's compliance and ethics standards adhere to the recommendations of the United Nations, the International Council on Mining and Metals (ICMM), the eight Fundamental Conventions of the International Labor Organization (ILO) and the Extractive Industry Transparency Initiative ( EITI). | I261: -
B262: 2021 | C262: Vale has zero tolerance for corruption and bribery. The company's anti-corruption rules are mechanisms to ensure compliance with all applicable anti-corruption laws, including the US Foreign Corrupt Practices Act (FCPA), the Brazilian Anti-Corruption Law (Law No. Act. The Global Anti-Corruption Policy is the main document on the subject and reiterates Vale's commitment to doing business with integrity. Employees also rely on the Global Anti-Corruption Handbook for practical guidance. Suppliers, on the other hand, must follow the guidelines of the Anti-Corruption Guide, developed especially for third parties. Vale acts in compliance with the laws and regulations to which it is subject, including, but not limited to, Law 12,846/13 – Brazilian Anti-Corruption Law, the FCPA, U.S. Foreign Corrupt Practices Act and the UK Bribery Act. | I262: -
B263: 2022 | C263: Vale has zero tolerance for corruption and bribery. In addition to the Code of Conduct, the Ethics & Compliance Program presents anti-corruption rules. The Global Anti-Corruption Policy is the main document on the subject and reiterates Vale's commitment to doing business with integrity. Employees also rely on the Global Anti-Corruption Handbook for practical guidance. Suppliers, on the other hand, must follow the guidelines of the Guide to combat corruption, developed especially for third parties. Vale acts in accordance with the laws and regulations to which it is subject, including but not limited to Law 12,846/13 - Brazilian Anti-Corruption Law, the FCPA, U.S. Foreign Corrupt Practices Act and the UK Bribery Act. | I263: -
B264: 2023 | C264: Vale has zero tolerance for corruption and bribery. In addition to the Code of Conduct, the Ethics & Compliance Program presents anti-corruption rules. The Global Anti-Corruption Policy is the main document on the subject and reiterates Vale's commitment to doing business with integrity. Employees also rely on the Global Anti-Corruption Handbook for practical guidance. Suppliers, on the other hand, must follow the guidelines of the Guide to combat corruption, developed especially for third parties. Vale acts in accordance with the laws and regulations to which it is subject, including but not limited to Law 12.846/13 - Brazilian Anti-Corruption Law, the FCPA, U.S. Foreign Corrupt Practices Act and the UK Bribery Act. | I264: -
B265: 2024
B268: SASB - EM-MM-510a.2
B270: Description: Production in countries that have the 20 lowest corruption perception scores from Transparency International
B272: Year | C272: Vale's answer | I272: Assurance
B273: 2020 | C273: Vale does not have operations in any of the 20 worst countries listed in the Transparency International corruption perception ranking. | I273: -
B274: 2021 | C274: Vale does not have operations in any of the 20 worst countries listed in the Transparency International corruption perception ranking. | I274: -
B275: 2022 | C275: Vale does not have operations in any of the 20 worst countries listed in the Transparency International corruption perception ranking. | I275: -
B276: 2023 | C276: Vale does not have operations in any of the 20 worst countries listed in the Transparency International corruption perception ranking. | I276: -
B277: 2024 | C277: Vale does not have operations in any of the 20 worst countries listed in the Transparency International corruption perception ranking. | I277: -
B280: GRI 201-1 (2016)
B282: Description: Direct economic value generated and distributed
B284: Note: The information reported in indicator 201-1 was independently audited in the financial statements.
B285: 2023
B286: Value generated and distributed (In US$ million)
... 54 more rows

Sheet Economic Performance
I4: ESG Databook 2025
B8: Economic Performance
B10: GRI 204-1 (2016) | 14.9.5 (2024)
B12: Description: Proportion of spending on local suppliers
B14: Year | C14: Vale's answer | I14: Assurance
B15: 2021 | C15: In 2021, the percentage of Vale's local purchases, considering purchases made within the states/provinces of the operations that made the purchases, was 53%. | I15: -
B16: 2022 | C16: In 2022, the percentage of Vale's local purchases, considering purchases made within the states/provinces of the operations that made the purchases, was 56%. | I16: -
B17: 2023 | C17: In 2023, the percentage of Vale's local purchases, considering purchases made within the states/provinces of the operations that made the purchases, was 55%. | I17: -
B18: 2024 | C18: In 2024, 58% of Vale’s purchases were categorized as local, defined as purchases made within the states or provinces where the operations that made the purchases are located. | I18: -
B19: 2025 | C19: In 2025, 62% of Vale’s purchases were categorized as local, defined as purchases made within the states or provinces where the operations that made the purchases are located. For the Iron Ore Solutions segment, the local purchasing percentage was 61%. For Vale Base Metals, the local purchasing percentage was 65%. | I19: -
B20: Note: The data is not disaggregated by key Operational Units.
B23: GRI 207-1 (2019) | 14.23.4 (2024)
B25: Description: Approach to tax
B27: Year | C27: Vale's answer | I27: Assurance
B28: 2022 | C28: The data referring to this indicator was not part of the assurance reporting scope, since the Tax Transparency Report will be published after the publication date of the Integrated Report. The data should be consulted through the link: https://www.vale.com/en/comunicados-resultados-apresentacoes-e-relatorios. | I28: -
B29: 2023 | C29: Vale discloses its approach to tax risks, its approach to tax planning and other general guidelines through its Tax Compliance Policy - POL-0046-G. The data referring to this indicator that are not in the Tax Compliance Policy were not part of the scope of assurance reporting, since the Tax Transparency Report that will contain references to this indicator will be released after the date of publication of the Integrated Report. The data should be consulted through the link below. | I29: -
B30: 2024 | C30: Vale discloses its approach to tax risks, its approach to tax planning and other general guidelines in its Tax Compliance Policy – POL-0046-G. The data relating to this indicator was not part of the scope of the assurance report, since the Tax Contributions Report will contain references to this indicator and will be published after the date of publication of the Integrated Report. This data should be consulted via the link below. | I30: -
B31: 2025 | C31: Vale discloses its approach to tax risks, its approach to tax planning, and other general guidelines through the Tax Compliance Policy – POL‑0046‑G, available at the policy link below. The content of this indicator will also be published in the 2025 Tax Contributions Report. The data should be consulted through the report link below; for reference, the content of this indicator was reported on pages 26 and 29 of the 2024 Tax Contributions Report. | I31: -
B33: Links: | C33: Tax Policy - POL-0046-G | E33: Tax Contributions Report
B36: GRI 207-2 (2019) | 14.23.5 (2024)
B38: Description: Tax governance, control and risk management
B40: Year | C40: Vale's answer | I40: Assurance
B41: 2022 | C41: The data referring to this indicator was not part of the assurance reporting scope, since the Tax Transparency Report will be published after the publication date of the Integrated Report. The data should be consulted through the link: https://www.vale.com/en/comunicados-resultados-apresentacoes-e-relatorios. | I41: -
B42: 2023 | C42: Vale discloses its approach to tax risks, its approach to tax planning and other general guidelines through its Tax Compliance Policy - POL-0046-G. The data referring to this indicator that are not in the Tax Compliance Policy were not part of the scope of assurance reporting, since the Tax Transparency Report that will contain references to this indicator will be released after the date of publication of the Integrated Report. The data should be consulted through the link below. | I42: -
B43: 2024 | C43: Vale discloses its approach to tax risks, its approach to tax planning and other general guidelines in its Tax Compliance Policy – POL-0046-G. The data relating to this indicator was not part of the scope of the assurance report, since the Tax Transparency Report will contain references to this indicator and will be published after the date of publication of the Integrated Report. This data should be consulted via the link below. | I43: -
B44: 2025 | C44: Vale discloses its approach to tax risks, its approach to tax planning, and other general guidelines through the Tax Compliance Policy – POL‑0046‑G, available at the policy link below. The content of this indicator will also be published in the 2025 Tax Contributions Report. The data should be consulted through the report link below; for reference, the content of this indicator was reported on pages 26, 29 and 41 of the 2024 Tax Contributions Report. | I44: -
B46: Links: | C46: Tax Policy - POL-0046-G | E46: Tax Contributions Report
B49: GRI 207-3 (2019) | 14.23.6 (2024)
B51: Description: Stakeholder engagement and management of concerns related to tax
B53: Year | C53: Vale's answer | I53: Assurance
B54: 2022 | C54: The data referring to this indicator was not part of the assurance reporting scope, since the Tax Transparency Report will be published after the publication date of the Integrated Report. The data should be consulted through the link: https://www.vale.com/en/comunicados-resultados-apresentacoes-e-relatorios. | I54: -
B55: 2023 | C55: Vale discloses its approach to tax risks, its approach to tax planning and other general guidelines through its Tax Compliance Policy - POL-0046-G. The data referring to this indicator that are not in the Tax Compliance Policy were not part of the scope of assurance reporting, since the Tax Transparency Report that will contain references to this indicator will be released after the date of publication of the Integrated Report. The data should be consulted through the link below. | I55: -
B56: 2024 | C56: Vale discloses its approach to tax risks, its approach to tax planning and other general guidelines in its Tax Compliance Policy – POL-0046-G. The data relating to this indicator was not part of the scope of the assurance report, since the Tax Transparency Report will contain references to this indicator and will be published after the date of publication of the Integrated Report. This data should be consulted via the link below. | I56: -
B57: 2025 | C57: Vale discloses its approach to tax risks, its approach to tax planning, and other general guidelines through the Tax Compliance Policy – POL‑0046‑G, available at the policy link below. The content of this indicator will also be published in the 2025 Tax Contributions Report. The data should be consulted through the report link below; for reference, the content of this indicator was reported on page 41 of the 2024 Tax Contributions Report. | I57: -
B59: Links: | C59: Tax Policy - POL-0046-G | E59: Tax Contributions Report
B62: GRI 207-4 (2019) | 14.23.7 (2024) | WEF Stakeholder Capitalism Metrics - Total tax paid
B64: Description: Country-by-country reporting
B66: Year | C66: Vale's answer | I66: Assurance
B67: 2025 | C67: Information on payments to governments can be consulted in the GRI 201-1 table. For further details, Vale discloses its tax information in the 2025 Tax Contributions Report. | I67: -
B68: Links: | C68: Tax Contributions Report
B71: GRI 201-1 (2016) | 14.9.2 (2024) | 14.23.2 (2024) | WEF Stakeholder Capitalism Metrics - Net economic contribution
B73: Description: Direct economic value generated and distributed
B75: Note: The information reported in indicator 201-1 was independently audited in the financial statements.
B77: 2025
B78: Value generated and distributed (In US$ million)
C79: North America, except Canada | D79: Canada | E79: South America, except Brazil | F79: Brazil | G79: Europe | H79: Africa | I79: Middle East | J79: Asia | K79: Oceania | L79: TOTAL
B80: Incomes | C80: 0 | D80: 1906.1 | E80: 0 | F80: 3143.6 | G80: 28176.6 | H80: 0 | I80: 0 | J80: 5177.1 | K80: 0 | L80: =SUM(C80:K80) -> 38403.4
B81: Direct Economic Value Generated | C81: 0 | D81: 1906.1 | E81: 0 | F81: 3143.6 | G81: 28176.6 | H81: 0 | I81: 0 | J81: 5177.1 | K81: 0 | L81: =L80 -> 38403.4
B82: Operational costs | C82: 0 | D82: 3219.7 | E82: 0 | F82: 12505.7 | G82: 5404.5 | H82: 0 | I82: 211.1 | J82: 714.1 | K82: 0 | L82: =SUM(C82:K82) -> 22055.1
B83: Employee wages and benefits | C83: 0.5 | D83: 778.8 | E83: 0 | F83: 2363.6 | G83: 36.9 | H83: 0 | I83: 35.4 | J83: 77.4 | K83: 0 | L83: 3292.6
B84: Research and Development | C84: 2.9 | D84: 111.3 | E84: 16.2 | F84: 499.2 | G84: 21.9 | H84: 0 | I84: 7.1 | J84: 34 | K84: 0.5 | L84: 693.1
B85: Payments to Capital Providers | C85: 462.9 | D85: 66.8 | E85: 0 | F85: 3956.4 | G85: 104.9 | H85: 0 | I85: 0 | J85: 0 | K85: 0 | L85: 4591
B86: Payments to Government | C86: 3.53 | D86: -231.74 | E86: 2.56 | F86: 5407.97 | G86: -22.29 | H86: 0 | I86: 9.73 | J86: -7.83 | K86: 0.16 | L86: 5162.09
B87: Environmental Expenditures | C87: 0 | D87: 141.33 | E87: 0.28 | F87: 678.08 | G87: 0.01 | H87: 0 | I87: 2.63 | J87: 4.88 | K87: 0 | L87: 827.21
B88: Social Expenditures | C88: 1.35 | D88: 2.99 | E88: 5.72 | F88: 821.79 | G88: 0.01 | H88: 0 | I88: 2.43 | J88: 2.7 | K88: 0 | L88: 836.99
B89: Distributed Economic Value | C89: =SUM(C82:C88) -> 471.18 | D89: 4089.18 | E89: 24.76 | F89: 26232.74 | G89: 5545.93 | H89: 0 | I89: 268.39 | J89: 825.25 | K89: 0.66 | L89: 37458.09
B90: Accumulated Economic Value | C90: -471.18 | D90: -2183.08 | E90: -24.76 | F90: -23089.14 | G90: 22630.67 | H90: 0 | I90: -268.39 | J90: 4351.85 | K90: -0.66 | L90: =L80-L89 -> 945.31
B92: 2024
B93: Value generated and distributed (In US$ million)
C94: North America, except Canada | D94: Canada | E94: South America, except Brazil | F94: Brazil | G94: Europe | H94: Africa | I94: Middle East | J94: Asia | K94: Oceania | L94: TOTAL
B95: Incomes | C95: 0 | D95: 1583.7 | E95: 0 | F95: 3716.5 | G95: 29269.9 | H95: 0 | I95: 0 | J95: 3485.8 | K95: 0 | L95: =SUM(C95:K95) -> 38055.9
B96: Direct Economic Value Generated | C96: 0 | D96: 1583.7 | E96: 0 | F96: 3716.5 | G96: 29269.9 | H96: 0 | I96: 0 | J96: 3485.8 | K96: 0 | L96: =L95 -> 38055.9
B97: Operational costs | C97: 0 | D97: 3075.2 | E97: 0.2 | F97: 12934.4 | G97: 5300.7 | H97: 0 | I97: 276.3 | J97: 761.8 | K97: 0 | L97: =SUM(C97:K97) -> 22348.6
B98: Employee wages and benefits | C98: 0 | D98: 584.6 | E98: 0 | F98: 1636.1 | G98: 34.9 | H98: 0 | I98: 37.6 | J98: 78 | K98: 0 | L98: 2371.2
B99: Research and Development | C99: 0 | D99: 163.1 | E99: 16.8 | F99: 510.1 | G99: 17.9 | H99: 0 | I99: 2.4 | J99: 78.8 | K99: 1 | L99: 790.1
B100: Payments to Capital Providers | C100: 475.9 | D100: 32.9 | E100: 0 | F100: 4169.3 | G100: 123.9 | H100: 0 | I100: 0 | J100: 0 | K100: 0 | L100: 4802
B101: Payments to Government | C101: 1.55 | D101: -276.01 | E101: 2.43 | F101: 5517.95 | G101: 13.55 | H101: 0 | I101: 17.23 | J101: 137.04 | K101: 0.07 | L101: 5413.81
B102: Environmental Expenditures | C102: 0 | D102: 152.6 | E102: 0.31 | F102: 1065.49 | G102: 0.01 | H102: 0 | I102: 1.3 | J102: 6.29 | K102: 0 | L102: 1226
B103: Social Expenditures | C103: 0.45 | D103: 6.77 | E103: 0.26 | F103: 882.86 | G103: 0 | H103: 0 | I103: 0 | J103: 10.07 | K103: 0 | L103: 900.41
B104: Distributed Economic Value | C104: 477.9 | D104: 3739.16 | E104: 20 | F104: 26716.2 | G104: 5490.96 | H104: 0 | I104: 334.83 | J104: 1072 | K104: 1.07 | L104: =SUM(C104:K104) -> 37852.12
B105: Accumulated Economic Value | C105: -477.9 | D105: -2155.46 | E105: -20 | F105: -22999.7 | G105: 23778.94 | H105: 0 | I105: -334.83 | J105: 2413.8 | K105: -1.07 | L105: =L95-L104 -> 203.78
B107: 2023
B108: Value generated and distributed (In US$ million)
C110: North America, except Canada | D110: Canada | E110: South America, except Brazil | F110: Brazil | G110: Europe | H110: Africa | I110: Middle East | J110: Asia | K110: Oceania | L110: TOTAL
B111: Incomes | C111: 0 | D111: 2099.354815 | E111: 0 | F111: 3870.784964 | G111: 32578.82738 | I111: 4.190951586e-15 | J111: 3235.413544 | K111: 0 | L111: =SUM(C111:K111) -> 41784.38071
B112: Direct Economic Value Generated | C112: 0 | D112: 2099.354815 | E112: 0 | F112: 3870.784964 | G112: 32578.82738 | H112: 0 | J112: 3235.413544 | K112: 0 | L112: =L111 -> 41784.38071
B114: Operational costs | C114: 0 | D114: 2860.801787 | E114: 0.097 | F114: 12860.79263 | G114: 4798.606588 | I114: 289.0057849 | J114: 1336.033228 | K114: 0 | L114: =SUM(C114:K114) -> 22145.33702
B115: Employee wages and benefits | C115: 0 | D115: 497.731114 | E115: 0 | F115: 1500.904478 | G115: 11.84751189 | I115: 32.72871443 | J115: 97.96285897 | K115: 0.332 | L115: 2141.506677
B116: Research and Development | C116: 0 | D116: 167.1397221 | E116: 16.61639769 | F116: 416.0985864 | G116: 6.686283194 | I116: 0 | J116: 112.0056729 | K116: 3.941930037 | L116: 722.4885923
B117: Payments to Capital Providers | C117: 385.317625 | D117: 23.25479361 | E117: 0 | F117: 5713.828925 | G117: 133.5986566 | I117: 0 | J117: 0 | K117: 0 | L117: 6256
B118: Payments to Government | C118: 6.68 | D118: -254.51 | E118: 2.17 | F118: 7995.84 | G118: -19.45 | H118: 0 | I118: 15.47 | J118: 141.28 | K118: 0.83 | L118: 7888.31
B119: Environmental Expenditures | C119: 0 | D119: 93.75543963 | E119: 0.90342279 | F119: 800.6522401 | G119: 0.03717630923 | H119: 0 | I119: 1.74958233 | J119: 16.81 | K119: 0 | L119: 913.9078611
B120: Social Expenditures | C120: 0.1024975321 | D120: 3.459144185 | E120: 0.14385 | F120: 660.68 | G120: 0 | H120: 0 | I120: 1.69387003 | J120: 11.2 | K120: 0 | L120: 677.2793617
B121: Distributed Economic Value | C121: =SUM(C114:C120) -> 392.1001225 | D121: =SUM(D114:D120) -> 3391.632001 | E121: =SUM(E114:E120) -> 19.93067048 | F121: 29948.79686 | G121: 4931.326216 | H121: 0 | I121: 340.6479517 | J121: 1715.29176 | K121: =SUM(K114:K120) -> 5.103930037 | L121: =SUM(C121:K121) -> 40744.82951
B122: Accumulated Economic Value | C122: =C111-C121 -> -392.1001225 | D122: -1292.277186 | E122: -19.93067048 | F122: -26078.0119 | G122: 27647.50117 | H122: 0 | I122: -340.6479517 | J122: 1520.121784 | K122: -5.103930037 | L122: 1039.551196
B124: 2022
B125: Value generated and distributed (In US$ million)
C127: North America, except Canada | D127: Canada | E127: South America, except Brazil | F127: Brazil | G127: Europe | H127: Africa | I127: Middle East | J127: Asia | K127: Oceania | L127: TOTAL
B128: Incomes | C128: 0 | D128: 2151.363279 | E128: 2.424 | F128: 4296.559392 | G128: 33691.66315 | H128: 0 | I128: -7.101334631e-14 | J128: 3697.450731 | K128: 0 | L128: =SUM(C128:K128) -> 43839.46055
B129: Direct Economic Value Generated | C129: =C128 -> 0 | D129: =D128 -> 2151.363279 | E129: =E128 -> 2.424 | F129: 4296.559392 | G129: 33691.66315 | H129: 0 | J129: 3697.450731 | K129: 0 | L129: =L128 -> 43839.46055
B131: Operational costs | C131: 0 | D131: 2964.04238 | E131: 7.419 | F131: 11725.61882 | G131: 6010.769139 | H131: 0 | I131: 302.8937556 | J131: 1201.454039 | K131: 0.181367 | L131: =SUM(C131:K131) -> 22212.3785
B132: Employee wages and benefits | C132: 0 | D132: 521.9097635 | E132: 3.126 | F132: 1292.195636 | G132: 26.7438026 | H132: 0 | I132: 35.53884438 | J132: 121.2659651 | K132: 0.75586991 | L132: =SUM(C132:K132) -> 2001.535882
B133: Research and Development | C133: 0 | D133: 163.7436398 | E133: 28.33784522 | F133: 356.1692788 | G133: 5.800225471 | H133: 0 | I133: 0 | J133: 101.5175478 | K133: 4.36703587 | L133: 659.935573
B134: Payments to Capital Providers | C134: 515.249 | D134: 242.3409913 | E134: 0 | F134: 6583.748753 | G134: 46.66125551 | H134: 0 | I134: 0 | J134: 0 | K134: 0 | L134: =SUM(C134:K134) -> 7388
B135: payments to government | C135: 24.3 | D135: -246 | E135: 3.4 | F135: 7995.7 | G135: -27 | H135: 22.3 | I135: 13.6 | J135: 144.6 | K135: 0.7 | L135: =SUM(C135:K135) -> 7931.6
B136: Environmental Expenditures | C136: 0 | D136: 33.16962167 | E136: 0.99462832 | F136: 712.273 | G136: 0.7865882215 | H136: 0 | I136: 2.27647209 | J136: 1.324192481 | K136: 16.02766933 | L136: =SUM(C136:K136) -> 766.8521721
B137: expenditures Social | C137: 0 | D137: 6.06151078 | E137: 0.1834008 | F137: 1590.012548 | G137: 1.145097124 | H137: 0 | I137: 1.91125082 | J137: 5.969897294 | K137: 4.056756846 | L137: =SUM(C137:K137) -> 1609.340462
B138: Distributed Economic Value | C138: =SUM(C131:C137) -> 539.549 | D138: =SUM(D131:D137) -> 3685.267907 | E138: =SUM(E131:E137) -> 43.46087434 | F138: 30255.71803 | G138: 6064.906108 | H138: 22.3 | I138: 356.2203229 | J138: 1576.131642 | K138: =SUM(K131:K137) -> 26.08869895 | L138: =SUM(C138:K138) -> 42569.64259
B139: Accumulated Economic Value | C139: =C128-C138 -> -539.549 | D139: -1533.904627 | E139: -41.03687434 | F139: -25959.15864 | G139: 27626.75704 | H139: -22.3 | I139: -356.2203229 | J139: 2121.319089 | K139: -26.08869895 | L139: 1269.817961
B142: 2021
B143: Value generated and distributed (In US$ million)
C146: North America, except Canada | D146: Canada | E146: South America, except Brazil | F146: Brazil | G146: Europe | H146: Africa | I146: Australasia | J146: Middle East | K146: TOTAL
B147: Incomes | C147: ˗ | D147: 1.805,5 | E147: 1,3 | F147: 5.272,6 | G147: 44.317,2 | H147: ˗ | I147: 3.104,9 | J147: (0,0) | K147: 54.501,5
B148: Direct Economic Value Generated | C148: ˗ | D148: 1.805,5 | E148: 1,3 | F148: 5.272,6 | G148: 44.317,2 | H148: ˗ | I148: 3.104,9 | J148: (0,0) | K148: 54.501,5
B150: Operational costs | C150: ˗ | D150: 2.312,5 | E150: 13,3 | F150: 10.565,4 | G150: 6.097,5 | H150: ˗ | I150: 796,0 | J150: 240,6 | K150: 20.025,3
B151: Employee wages and benefits | C151: ˗ | D151: 435,0 | E151: 6,9 | F151: 1.252,4 | G151: 30,8 | H151: ˗ | I151: 106,2 | J151: 41,0 | K151: 1.872,3
B152: Research and Development | C152: ˗ | D152: 110,2 | E152: 26,4 | F152: 324,1 | G152: 20,9 | H152: ˗ | I152: 67,1 | J152: ˗ | K152: 548,6
B153: Payments to Capital Providers | C153: 421,9 | D153: 252,0 | E153: ˗ | F153: 13.475,8 | G153: 26,2 | H153: ˗ | I153: ˗ | J153: ˗ | K153: 14.176,0
B154: payments to government | C154: 17,5 | D154: (194,3) | E154: 2,8 | F154: 7.740,4 | G154: (21,8) | H154: 60,0 | I154: 86,3 | J154: 3,7 | K154: 7.694,6
B155: Environmental Expenditures | D155: 106,5 | E155: 0,7 | F155: 670,8 | G155: 1,2 | H155: 19,7 | I155: 1,5 | J155: 3,7 | K155: 804,2
B156: expenditures Social | D156: 6,0 | E156: 0,0 | F156: 449,2 | G156: 1,7 | H156: 14,2 | I156: 1,6 | J156: 0,8 | K156: 473,5
B157: Distributed Economic Value | C157: 439,4 | D157: 3.027,9 | E157: 50,0 | F157: 34.478,1 | G157: 6.156,6 | H157: 93,9 | I157: 1.058,9 | J157: 289,7 | K157: 45.594,6
B158: Accumulated Economic Value | C158: 439,4 | D158: 1.222,4 | E158: (48,8) | F158: (29.205,5) | G158: 38.160,7 | H158: (93,9) | I158: 2.046,0 | J158: (289,7) | K158: 8.906,9
B161: WEF Stakeholder Capitalism Metrics - Creating Wealth and Employment
B163: Metric: Financial investment contribution
B165: Year | C165: Vale's answer
B166: 2021 | C166: 1. Investment for capital expenditures in 2021 was US$5 billion, including approximately US$4 billion to sustain our existing operations and replacement projects and approximately US$999 million for project execution. 2. On April 1, 2021, our Board of Directors approved a share buyback program limited to a maximum of 270,000,000 shares and their respective ADRs, representing up to 5.3% of the total number of shares outstanding on that date. This program was completed in November 2021 with the repurchase of all shares, corresponding to the amount of US$5,281 million (R$27,642 million), of which US$2,273 million (R$12,068 million) through wholly-owned subsidiaries and US$ 3,008 (R$15,574 million) directly by Vale S.A.
B167: 2022 | C167: 1. Our investment guidance for capital expenditures in 2023 is approximately US$6 billion and after 2023 our average estimated capital expenditures ranges between US$6 billion and US$6.5 billion per year. A principal amount of US$160 million of our debt matures in 2023. We expect to incur a total amount of US$3,486 million relating to the remediation and compensation in connection with the Brumadinho dam collapse, de-characterization of dams and contributions to Fundação Renova in 2023 and after 2023 our aggregate expected expenses with provision is US$7,074 million. We have an aggregate principal amount of US$1,910 million debt maturing between 2024 and 2026, and US$8,964 million maturing after 2026. We expect that our existing cash and cash equivalents and our operating cash flows will be sufficient to satisfy our obligations due in 2023 and thereafter. We are constantly evaluating opportunities for additional cash generation. Finally, we are committed to continue the reduction in our costs and expenses, maintain our debt leverage and discipline in capital allocation. 2. During 2022, the Company paid dividends and interest on capital to its shareholders in the amount of US$6,615 millions. During 2022, the Company repurchased 357,442,577 common shares or their respective ADRs, corresponding to the total amount of US$6,036 millions.
B168: 2023 | C168: 1. Investments made in 2023 totaled BRL 29.4 billion (USD5.9 billion), in line with guidance, with BRL 8.2 billion in capital projects and BRL 21.2 billion in maintenance projects. Investments were 4.5% higher than in 2022, mainly due to higher investments in growth projects. By 2024, we expect to invest US$6.5 billion of our production, support our low-carbon initiatives, and capture growth opportunities. 2. By December 2023, we have completed 72% of our third share repurchase program, initiated in 2022, with the repurchase of 360.3 million shares (out of an anticipated total of 500 million shares), corresponding to a total value of $5.46 billion. Of this total, approximately 181.7 million common shares and their respective ADRs were repurchased in the year, corresponding to a total value of US$ 2.67 billion (R$ 13.37 billion). In October 2023, we initiated a new share buyback program of up to 150 million shares, which will be implemented over an 18-month period. As of December 31, 2023, we have repurchased 3 million common shares and their respective ADRs, corresponding to a total amount of US$ 44.1 million (R$ 218 million).
B169: 2024 | C169: 1. Investments made in 2024 totaled USD 6.0 billion, in line with the guidance, with USD 1.5 billion in capital projects and USD 4.5 billion in maintenance projects. Investments were 10.9% higher than in 2023, mainly due to increased investments in maintenance projects. 2. From 2021 to the end of 2024, through four share buyback programs, we acquired a total of 864.2 million shares for a total of USD 14.7 billion, representing more than 20% of the shares outstanding as of the date of this report, reflecting our strong commitment to shareholder returns. By December 2024, we completed 22.6% of our fourth share buyback program, initiated in October 2023, with the repurchase of 33.9 million shares (out of a total planned of 150 million shares), corresponding to a total value of USD 453.1 million. Of this total, approximately 30.9 million common shares and their respective ADRs were repurchased during the year, corresponding to a total value of USD 409.1 million (BRL 2.05 billion).
B170: 2025 | C170: 1. Investments made in 2025 totaled BRL 30.6 billion (USD 5.5 billion), in line with the guidance, of which BRL 6.3 billion (USD 1.1 billion) in capital projects and BRL 24.3 billion (USD 4.3 billion) in sustaining projects, representing a 6% reduction compared to 2024. 2. From 2021 through the end of 2025, Vale acquired approximately 864.2 million shares through its share buyback programs, representing around 20% of the shares outstanding.
B173: Innovation in Better Products and Services
B175: Metric: R&D expense rate (%)
B177: Year | C177: Vale's answer
B178: 2021 | C178: In 2021, research and development expenses totaled US$ 549 million.
B179: 2022 | C179: Our research and development expenses totaled US$ 660 million in 2022, a 20.2% increase from US$549 million recorded in 2021, mainly due to projects of drilling and geology exploration and mineral exploration in all segments.
B180: 2023 | C180: Our research and development expenses totaled US$ 723 million in 2023, a 9.5% increase from US$ 660 million recorded in 2023.
B181: 2024 | C181: Our research and development expenses totaled US$ 790 million in 2024
B182: 2025 | C182: Our research and development expenses totaled US$ 693 million in 2025

Sheet Governance and Compliance
I4: ESG Databook 2025
B8: Governance and Compliance
B10: GRI 201-4 (2016) | 14.23.3 (2024)
B12: Description: Financial assistance received from the government.
B14: Year | C14: Vale's answer | I14: Assurance
B15: 2021 | C15: Within the concept of financial support received from the government, Vale has some tax incentives, which are informed in the Financial Statements and Fiscal Transparency Report, available for consultation. | I15: -
B16: 2022 | C16: Within the concept of financial support received from the government, Vale has some tax incentives, which are informed in the Financial Statements and Fiscal Transparency Report, available for consultation. | I16: -
B17: 2023 | C17: Within the concept of financial support received from the government, Vale has some tax incentives, which are informed in the Financial Statements and Tax Contribution Report*, available for consultation. | I17: -
B18: 2024 | C18: In terms of financial support received from the government, Vale benefits from certain tax incentives, which are reported in the Financial Statements and Tax Contribution Report*, both of which are available for public consultation. | I18: -
B19: 2025 | C19: In terms of financial support received from the government, Vale benefits from certain tax incentives, which are reported in the Financial Statements and Tax Contribution Report*, both of which are available for public consultation.
B20: Notes: * The publication of the 2025 Tax Contribution Report will take place after the Annual Report is published, to access it simply access the link in the table below.
B21: Links: | C21: Tax Contributions Report | E21: Financial Statements
B24: GRI 205-1 (2016) | 14.22.2 (2024)
B26: Description: Operations assessed for risks related to corruption
B28: Year | C28: Vale's answer | I28: Assurance
B29: 2021 | C29: In 2021, 100% of Vale's operations were subject to an assessment of risks related to corruption, the Corporate Integrity model of operation is segmented by region and not by line of business. We have 3 regions: Latin America and Africa; Canada and Europe; APME. These risks are deployed internally among the areas according to the degree of exposure to corruption and have associated controls and clear anti-corruption rules. In total, 17 controls are related to Vale's anti-corruption rules, six of which are classified as key controls and related to approvals of socio-environmental investments, specific conditions for donations and sponsorships, suppliers in general, high-risk suppliers, hiring public agents and Ethics & Compliance Program training. | I29: Independently assured by PricewaterhouseCoopers Auditores Independentes Ltda.
B30: 2022 | C30: In 2022, 100% of Vale's operations (57 operating units) were subject to an assessment of risks related to corruption, the Corporate Integrity model of operation is segmented by region and not by business line. We have 3 regions: Latin America and Africa; Canada and Europe; APME. These risks are deployed internally among the areas according to the degree of exposure to corruption and have associated controls and clear anti-corruption rules. In total, 19 controls are related to Vale's anti-corruption rules, six of which are classified as key controls and related to approvals of socio-environmental investments, specific conditions for donations and sponsorships, suppliers in general, high-risk suppliers, hiring public agents and Ethics & Compliance Program training. | I30: Independently assured by PricewaterhouseCoopers Auditores Independentes Ltda.
B31: 2023 | C31: In 2023, 100% of Vale's operations (57 operating units) were submitted to a risk assessment related to corruption, the Corporate Integrity operating model is segmented by regions and not by line of business. We have 3 regions: Latin America and Africa; Canada and Europe; APME. These risks are deployed internally across areas according to the degree of exposure to corruption and have associated controls and clear anti-corruption rules. In total, 17 controls are related to Vale's anti-corruption rules, five of which are classified as key controls and related to approvals of social and environmental investments, specific conditions for donations and sponsorships, suppliers in general, high-risk suppliers, hiring of public agents and Ethics & Compliance Program training. | I31: Independently assured by PricewaterhouseCoopers Auditores Independentes Ltda.
B32: 2024 | C32: In 2024, 100% of Vale’s operations (52 operating sites) underwent a corruption risk assessment. The company’s corporate integrity operating model is segmented by region rather than by business line. We have three regions: (1) Americas, (2) Asia Pacific, Europe, and Middle East; (3) Canada, Indonesia, and Japan. These risks are analyzed internally across different areas according to the degree of exposure to corruption and they have associated controls and clear anti-corruption rules. In all, there are 15 controls related to Vale’s anti-corruption rules. Five of them are classified as key controls. They are related to approvals of social and environmental investments, suppliers in general, high-risk suppliers, hiring of public officials, and Ethics and Compliance Program training. | I32: Independently assured by PricewaterhouseCoopers Auditores Independentes Ltda.
B33: 2025 | C33: In 2025, 100% of Vale’s operations (53 operating sites) underwent a corruption risk assessment. The company’s corporate integrity operating model is segmented by region rather than by business line. We have three regions: (1) Latin America and Africa; (2) Canada and Europe; and (3) Asia Pacific, Europe and Middle East. Corruption risks are analyzed internally across different areas according to the degree of exposure to corruption and they have associated controls and clear anti-corruption rules. In the Iron Ore Solutions segment, 15 controls are related to Vale’s anti-corruption rules. Five of them are classified as key controls and are associated with approvals of social and environmental investments, specific conditions for donations and sponsorship, suppliers in general, high-risk suppliers, the hiring of public officials and training under the Ethics & Compliance Program. For Vale Base Metals, nine controls are related to Vale’s anti-corruption rules. Five of them are classified as key controls and are associated with approvals of social and environmental investments, specific conditions for donations and sponsorship, suppliers in general, high-risk suppliers, the hiring of public officials and training under the Ethics & Compliance Program. | I33: Independently assured by PricewaterhouseCoopers Auditores Independentes Ltda.
B34: Note: Vale’s consolidated risk map identifies three potential corruption-related risks: (1) corruption involving public officials; (2) liabilities arising from unlawful acts related to corruption in the context of corporate transactions; and (3) undue influence during corruption-related investigations conducted by public authorities.
B37: GRI 205-2 (2016) | 14.22.3 (2024)
B39: Description: Communication and training on anti-corruption policies and procedures
B41: Year | C41: Vale's answer | I41: Assurance
B42: 2021 | C42: In 2021, 83.54% of Vale's workforce signed the new Code acknowledgment and commitment term. 100% of senior management (50 members), directors, executive managers, supervisors, area managers and coordinators were informed about the anti-corruption policy and procedures adopted by the organization. Regarding the staffs, 72% were notified. For business partners, 1597 partners (2.4%) were informed about Vale's anti-corruption policy. This percentage takes into account only suppliers classified as “high risk” of corruption that have active contracts with Vale. All suppliers at high risk of corruption must receive a copy of Vale's anti-corruption guide and adhere to its terms. In 2021, mass communication actions were also carried out for Vale's suppliers, including the release of a message from the company's leadership on the International Day Against Corruption: http://www.vale.com/brasil/PT/aboutvale/ news/Pages/dia-internacional-contra-a-corrupcao-learn-more-about-the-valley-commitment-to-ethics.aspx. We carried out the first global edition of the conflict of interest campaign at a global level, with the participation of 34,422 employees (64.17% of employees with access to a computer). In the year, there was also the launch of a new online ethics and compliance course, where 89.0% of the staff was trained. With regard to high governance, 74% of members were trained in combating corruption. | I42: Independently assured by PricewaterhouseCoopers Auditores Independentes Ltda.
B43: 2022 | C43: About notices regarding Vale's anti-corruption policies and procedures: • The 22 members (100%) of Vale's top leadership received communications about the company's anti-corruption rules, participated in the Ethics Week and/or accountability meetings of the Ethics & Compliance Program; • 100% of senior leadership (22 members), directors (40 employees), executive managers (159 employees), supervisors (2748 employees), area managers and coordinators (2166 employees) were informed about the anti-corruption policy and procedures adopted by organization. Regarding the staffs, 74% (43757 employees with access to e-mail) were notified. • With regard to commercial partners, 525 were communicated on the subject, representing 6% of the partners. This percentage takes into account only suppliers classified as “high risk” of corruption that have active contracts with Vale. All suppliers at high risk of corruption must receive a copy of Vale's anti-corruption guide available at https://vale.com/fornecedores On anti-corruption training: • More than 60,000 Vale employees received training, representing 93% of the workforce; • 20 members (91%) of Vale's senior management, including the Executive Committee and Board of Directors, underwent training. | I43: Independently assured by PricewaterhouseCoopers Auditores Independentes Ltda.
B44: 2023 | C44: Communications regarding Vale’s anti-corruption policies and procedures: • All 22 members (100%) of Vale’s top leadership received communications about the company’s anti-corruption rules and participated in Ethics Week activities and/or reporting meetings as part of the Ethics and Compliance Program. • The following people were informed of the company’s anti-corruption policy and procedures: 100% of top management (22 people, comprising nine members of the Executive Committee, including the CEO, and 13 members of the Board of Directors), 96.0% of directors (217 employees), 100% of general managers (292 employees), 99.2% of managers (1,189 employees), 99.3% of coordinators (973 employees), 100% of supervisors (2,749 employees), 87.2% of technical specialists (130 employees), 97.2% of administrative staff (1,557 employees), 98.8% of operational staff (45,538 employees) and 99.8% of professional technicians (12,474 employees). • With regard to business partners, 492 were informed about this subject, representing 6% of partners. This percentage only includes suppliers classified as being at “high risk” of corruption that have active contracts with Vale. All high-risk suppliers are required to receive a copy of Vale’s anti-corruption guide, available at https://vale.com/en/suppliers. Anti-corruption training: • More than 63,000 of Vale’s employees received training, representing 95.7% of the company’s workforce. • 20 members (90.9%) of Vale’s top governance bodies, namely the Executive Committee and Board of Directors, underwent training. | I44: Independently assured by PricewaterhouseCoopers Auditores Independentes Ltda.
B45: 2024 | C45: Communications regarding Vale’s anti-corruption policies and procedures: • The following people were informed of the company’s anti-corruption policy and procedures: 100% of top management (23 people, comprising 10 members of the Executive Committee, including the CEO, and 13 members of the Board of Directors), 95.4% of directors (206 employees), 100% of general managers (320 employees), 99.9% of managers (1,114 employees), 99.9% of coordinators (1,057 employees), 100% of supervisors (2,601 employees), 99.5% of technical specialists (191 employees), 97.2% of administrative staff (1,392 employees), 98.1% of operational staff (43,296 employees) and 99.5% of professional technicians (13,483 employees). • With regard to business partners, 1,055 were informed about this subject, representing 13% of partners. This percentage takes into account two criteria. (1) Suppliers classified as 'high risk' of corruption who have active contracts with Vale. All high-risk corruption suppliers must receive a copy of Vale's anti-corruption guide available on the website https://vale.com/suppliers. (2) Suppliers with active contracts who also participated in Anti-Corruption or Ethics & Compliance training were also considered. Anti-corruption training: • More than 61,000 of Vale’s employees received training, representing 95.2% of the company’s workforce. • Seven members (30.4%) of Vale’s top governance bodies, namely the Executive Committee and Board of Directors, underwent training. | I45: -
B46: 2025 | C46: Communications regarding Vale’s anti-corruption policies and procedures: • All 21 members (100%) of Vale’s senior leadership (comprising 8 members of the Executive Committee—including Vale’s CEO—and 13 members of the Board of Directors) received communications on the company’s anti-corruption rules, policy and procedures, and participated in Ethics Week activities and/or accountability meetings under the Ethics & Compliance Program. • 5 members (23.8%) of Vale’s senior governance bodies, comprising the Executive Committee and the Board of Directors, underwent training. For the Iron Ore Solutions segment: • 534 business partners were notified on the topic, representing 6% of partners. This percentage considers only suppliers classified as “high risk” for corruption that have active contracts. All high-risk suppliers must receive a copy of Vale’s anti-corruption guide, available at Vale - Suppliers (link below). • More than 50,000 employees received training, representing 96.9% of the workforce. For Vale Base Metals: • 167 business partners were notified on the topic, representing 19% of partners. This percentage considers only suppliers classified as “high risk” for corruption that have active contracts. All high-risk suppliers must receive a copy of Vale’s anti-corruption guide, available at Vale - Suppliers (link below). • More than 11,000 employees received training, representing 84.7% of the workforce. | I46: -
B47: Links: | C47: Vale - Suppliers
C50: Vale’s response
C51: Percentage of employees informed about the organization’s anti-corruption policy and procedures
B52: Year | C52: Directors | D52: General managers | E52: Managers | F52: Technical managers | G52: Coordinators | H52: Supervisors | I52: Technical specialists
B53: 2024 | C53: 1 | D53: 1 | E53: 0.999 | F53: - | G53: 0.999 | H53: 1 | I53: 0.995
B54: 2025 | C54: 0.986 | D54: 0.994 | E54: 0.997 | F54: 0.996 | G54: 0.996 | H54: 0.995 | I54: 0.985
C57: Percentage of employees informed about the organization’s anti-corruption policy and procedures | I57: Assurance
B58: Year | C58: Operational staff | E58: Administrative staff | G58: Technical/professional
B59: 2024 | C59: 0.981 | E59: 0.971 | G59: 0.995 | I59: -
B60: 2025 | C60: 0.96 | E60: 0.988 | G60: 0.985 | I60: -
B63: Country | C63: Employees (GRI 2-7) | D63: Total people communicated | E63: % of people communicated | F63: Total people who received training | G63: % of people who received training | H63: Total number of people who received specific training | I63: % of people who received specific training
B64: Brazil | C64: 57045 | D64: 56007 | E64: 0.9818038391 | F64: 55157 | G64: 0.9669033219 | H64: 745 | I64: 0.01305986502
B65: Australia | C65: 10 | D65: 10 | E65: 1 | F65: 10 | G65: 1 | H65: 2 | I65: 0.2
B66: Canada | C66: 7230 | D66: 6188 | E66: 0.8558782849 | F66: 5454 | G66: 0.7543568465 | H66: 0 | I66: 0
B67: Chile | C67: 10 | D67: 10 | E67: 1 | F67: 10 | G67: 1 | H67: 0 | I67: 0
B68: China | C68: 140 | D68: 140 | E68: 1 | F68: 132 | G68: 0.9428571429 | H68: 32 | I68: 0.2285714286
B69: India | C69: 1 | D69: 1 | E69: 1 | F69: 1 | G69: 1 | H69: 0 | I69: 0
B70: Indonesia | C70: 77 | D70: 77 | E70: 1 | F70: 71 | G70: 0.9220779221 | H70: 1 | I70: 0.01298701299
B71: Japan | C71: 79 | D71: 79 | E71: 1 | F71: 79 | G71: 1 | H71: 6 | I71: 0.07594936709
B72: Malaysia | C72: 402 | D72: 399 | E72: 0.9925373134 | F72: 399 | G72: 0.9925373134 | H72: 15 | I72: 0.03731343284
B73: Netherlands | C73: 13 | D73: 13 | E73: 1 | F73: 11 | G73: 0.8461538462 | H73: 7 | I73: 0.5384615385
B74: Oman | C74: 454 | D74: 454 | E74: 1 | F74: 453 | G74: 0.9977973568 | H74: 37 | I74: 0.08149779736
B75: Peru | C75: 17 | D75: 17 | E75: 1 | F75: 13 | G75: 0.7647058824 | H75: 0 | I75: 0
B76: Singapore | C76: 34 | D76: 34 | E76: 1 | F76: 26 | G76: 0.7647058824 | H76: 8 | I76: 0.2352941176
B77: Switzerland | C77: 58 | D77: 58 | E77: 1 | F77: 57 | G77: 0.9827586207 | H77: 17 | I77: 0.2931034483
B78: Dubai, United Arab Emirates | C78: 23 | D78: 23 | E78: 1 | F78: 20 | G78: 0.87 | H78: 16 | I78: 0.696
B79: United Kingdom | C79: 208 | D79: 206 | E79: 0.9903846154 | F79: 185 | G79: 0.8894 | H79: 0 | I79: 0
B80: United States | C80: 4 | D80: 3 | E80: 0.75 | F80: 3 | G80: 0.75 | H80: 0 | I80: 0
B81: Global Total, Vale | C81: 65805 | D81: 63719 | E81: 0.9683002811 | F81: 62062 | G81: 0.9431198237 | H81: 870 | I81: 0.01322087987
B82: Note: Members of the Board of Directors were not included, as they are not employees.
B85: GRI 205-3 (2016) | 14.23.4 (2024)
B87: Description: Confirmed cases of corruption and measures taken
B89: Year | C89: Vale's answer | I89: Assurance
B90: 2021 | C90: In 2021, no cases of corruption involving public agents were identified. Through the company's Whistleblower Channel, 3 cases of bribery involving private companies were identified, all of which resulted in actions to terminate the employees involved. There were no corruption-related legal proceedings filed/initiated between January 1 and December 31, 2021. | I90: Independently assured by PricewaterhouseCoopers Auditores Independentes Ltda.
B91: 2022 | C91: In 2022, 4 cases of private corruption were confirmed, which resulted in the dismissal of an employee and a notification to a third party. There were no cases of termination or non-renewal of contracts due to corruption in any jurisdiction. Vale is a party to confidential and non-confidential judicial, administrative and arbitration proceedings, considered relevant individually or jointly, and, based on applicable legislation and regulations, duly discloses such proceedings in its Reference Form available on the company's website : https://vale.com/pt/comunicados-resultados-apresentacoes-e-reports. | I91: Independently assured by PricewaterhouseCoopers Auditores Independentes Ltda.
B92: 2023 | C92: In 2023, 2 cases of private corruption were confirmed. In the first case, the accused was demobilized from the contract during the investigation process for low performance, in the second case, the employee will be terminated for misconduct, in addition to its low performance, according to the ongoing action plan. There have been no cases of termination or non-renewal of contracts due to corruption in any jurisdiction. Vale is a party to confidential and non-confidential judicial, administrative and arbitration proceedings, considered relevant individually or jointly, and, based on the applicable laws and regulations, duly discloses such proceedings in its 2023 Reference Form. | I92: Independently assured by PricewaterhouseCoopers Auditores Independentes Ltda.
B93: 2024 | C93: In 2024, no cases of corruption involving public officials were identified. One case of private corruption was confirmed. In this case, an analyst was found to have received illegal payments from suppliers, in collusion with the coordinator and other analysts in the area. All the employees involved in this case were dismissed. There were no cases of termination or non-renewal of contracts due to corruption in any jurisdiction. Vale is a party to confidential and non-confidential judicial, administrative and arbitration proceedings, considered relevant individually or jointly, and, based on applicable legislation and regulations, duly disclosed such proceedings in its 2024 Reference Form, submitted to the Brazilian Securities and Exchange Commission (CVM). | I93: Independently assured by PricewaterhouseCoopers Auditores Independentes Ltda.
B94: 2025 | C94: In 2025, four cases of private corruption were confirmed in the Iron Ore Solutions segment: two involving the transfer of financial value or advantages and two involving an attempted bribe. These cases resulted in five terminations and two removals of the individuals involved, as well as two cases of contract termination or non-renewal due to corruption. No cases of corruption were recorded at Vale Base Metals. Vale is a party to judicial, administrative and arbitration proceedings, both confidential and non-confidential, considered material individually or in the aggregate, and, in accordance with applicable laws and regulations, provides proper disclosure of such proceedings in its 2025 Reference Form. | I94: Independently assured by PricewaterhouseCoopers Auditores Independentes Ltda.
B95: Links: | C95: Reference Form
B98: GRI 206-1 (2016)
B100: Description: Legal actions for anti-competitive behavior, anti-trust, and monopoly practices
B102: Year | C102: Vale's answer | I102: Assurance
B103: 2021 | C103: There were no lawsuits for competitive behavior, antitrust and monopoly practices | I103: -
B104: 2022 | C104: There were no lawsuits for competitive behavior, antitrust and monopoly practices | I104: -
B105: 2023 | C105: There were no lawsuits for competitive behavior, antitrust and monopoly practices | I105: -
B106: 2024 | C106: There were no lawsuits against the company for anticompetitive, antitrust or monopolistic practices. | I106: -
B107: 2025 | C107: There were no lawsuits against the company for anticompetitive, antitrust or monopolistic practices. | I107: Independently assured by PricewaterhouseCoopers Auditores Independentes Ltda.
B110: GRI 406-1 (2016) | 14.21.7 (2024)
B112: Description: Incidents of discrimination and corrective actions taken
B114: Year | C114: Vale's Answer | I114: Assurance
B115: 2021 | C115: In 2021, 3 cases of discrimination were registered, being notified to the contracted company, employee dismissal, demobilization of outsourced employee, DSS on the subject of discrimination, among other actions. | I115: Independently assured by PricewaterhouseCoopers Auditores Independentes Ltda.
B116: 2022 | C116: In 2022, 8 cases of discrimination were confirmed by Vale's Whistleblower Channel. All these cases resulted in the application of disciplinary and preventive measures, which include dismissal of employees, demobilization of outsourced employees, holding conversation circles on the subject, among other actions. There is still 1 action plan in progress and 9 have already been implemented in the current period. Data related to cases of discrimination are frequently presented at senior management meetings and at the Audit and Conduct and Integrity Committees and are used as input for carrying out campaigns at the company related to diversity and inclusion issues. | I116: Independently assured by PricewaterhouseCoopers Auditores Independentes Ltda.
